Workbook

Sheet Main
B10: 2018-04-05
B12: Sheet No. | C12: Template Name | D12: Summary
B13: 1 | C13: Future Intra | D13: For Intraday trading in F&O segment
B14: 2 | C14: Cash Intra | D14: For Intraday trading in cash market segment
B15: 3 | C15: Mid-cap Intra | D15: For Intraday trading in Mid-cap stocks
B16: 4 | C16: Bulk Deals | D16: Reveals Bulk Deals carried on NSE & BSE
B17: 5 | C17: Call Tracker

Sheet Future Intra
M5: Back to Main Page
A6: FOR INTRA DAY TRADING | L6: =Main!B10 -> 2018-04-05
A9: Sr.no | B9: Sector | C9: Scrip | D9: CLOSE RATE | E9: Pivot Point | F9: Supports | I9: Resistances
B10: Sector | D10: Point | E10: Point | F10: S1 | G10: S2 | H10: S3 | I10: R1 | J10: R2 | K10: R3 | L10: HIGH | M10: LOW | N10: OI | O10: % Change in OI
A11: 1 | B11: Index | C11: BANKNIFTY | D11: 24148.60 | E11: 24321.12 | F11: 23943.23 | G11: 23737.87 | H11: 23359.98 | I11: 24526.48 | J11: 24904.37 | K11: 25109.73 | L11: 24699 | M11: 24115.75 | N11: 1920920 | O11: 15.09%
A12: 2 | B12: Index | C12: NIFTY | D12: 10146.60 | E12: 10190.53 | F12: 10077.07 | G12: 10007.53 | H12: 9894.07 | I12: 10260.07 | J12: 10373.53 | K12: 10443.07 | L12: 10304 | M12: 10121 | N12: 23531625 | O12: 12.21%
A13: 3 | B13: Index | C13: NIFTYCPSE | D13: 2827.05 | E13: 942.35 | F13: 1884.70 | G13: 942.35 | H13: 1884.70 | I13: 1884.70 | J13: 942.35 | K13: 1884.70 | L13: 0 | M13: 0 | N13: 0 | O13: 0.00%
A14: 4 | B14: Index | C14: NIFTYINFRA | D14: 3716.60 | E14: 1238.87 | F14: 2477.73 | G14: 1238.87 | H14: 2477.73 | I14: 2477.73 | J14: 1238.87 | K14: 2477.73 | L14: 0 | M14: 0 | N14: 0 | O14: 0.00%
A15: 5 | B15: Index | C15: NIFTYIT | D15: 12528.00 | E15: 12590.33 | F15: 12420.67 | G15: 12313.33 | H15: 12143.67 | I15: 12697.67 | J15: 12867.33 | K15: 12974.67 | L15: 12760 | M15: 12483 | N15: 43300 | O15: 53.55%
A16: 6 | B16: Index | C16: NIFTYMID50 | D16: 5007.45 | E16: 1669.15 | F16: 3338.30 | G16: 1669.15 | H16: 3338.30 | I16: 3338.30 | J16: 1669.15 | K16: 3338.30 | L16: 0 | M16: 0 | N16: 591400 | O16: 0.00%
A17: 7 | B17: Index | C17: NIFTYPSE | D17: 4380.60 | E17: 1460.20 | F17: 2920.40 | G17: 1460.20 | H17: 2920.40 | I17: 2920.40 | J17: 1460.20 | K17: 2920.40 | L17: 0 | M17: 0 | N17: 0 | O17: 0.00%
A18: 8 | B18: Cement | C18: ACC | D18: 1533.40 | E18: 1548.80 | F18: 1514.60 | G18: 1495.80 | H18: 1461.60 | I18: 1567.60 | J18: 1601.80 | K18: 1620.60 | L18: 1583 | M18: 1530 | N18: 1418400 | O18: -2.58%
A19: 9 | B19: Others | C19: ADANIENT | D19: 153.30 | E19: 156.93 | F19: 147.27 | G19: 141.23 | H19: 131.57 | I19: 162.97 | J19: 172.63 | K19: 178.67 | L19: 166.6 | M19: 150.9 | N19: 13632000 | O19: -14.00%
A20: 10 | B20: Others | C20: ADANIPORTS | D20: 367.95 | E20: 369.33 | F20: 364.12 | G20: 360.28 | H20: 355.07 | I20: 373.17 | J20: 378.38 | K20: 382.22 | L20: 374.55 | M20: 365.5 | N20: 14307500 | O20: -2.12%
A21: 11 | B21: Power | C21: ADANIPOWER | D21: 25.05 | E21: 25.43 | F21: 24.42 | G21: 23.78 | H21: 22.77 | I21: 26.07 | J21: 27.08 | K21: 27.72 | L21: 26.45 | M21: 24.8 | N21: 95240000 | O21: -0.61%
A22: 12 | B22: Pharma | C22: AJANTPHARM | D22: 1387.15 | E22: 1395.03 | F22: 1367.12 | G22: 1347.08 | H22: 1319.17 | I22: 1415.07 | J22: 1442.98 | K22: 1463.02 | L22: 1422.95 | M22: 1375 | N22: 628500 | O22: 5.45%
A23: 13 | B23: Banking | C23: ALBK | D23: 49.35 | E23: 49.73 | F23: 48.52 | G23: 47.68 | H23: 46.47 | I23: 50.57 | J23: 51.78 | K23: 52.62 | L23: 50.95 | M23: 48.9 | N23: 14180000 | O23: -0.28%
A24: 14 | B24: Automobile | C24: AMARAJABAT | D24: 798.60 | E24: 805.90 | F24: 786.85 | G24: 775.10 | H24: 756.05 | I24: 817.65 | J24: 836.70 | K24: 848.45 | L24: 824.95 | M24: 794.15 | N24: 1303400 | O24: 2.03%
A25: 15 | B25: Cement | C25: AMBUJACEM | D25: 235.60 | E25: 237.95 | F25: 232.75 | G25: 229.90 | H25: 224.70 | I25: 240.80 | J25: 246.00 | K25: 248.85 | L25: 243.15 | M25: 235.1 | N25: 11197500 | O25: -2.31%
A26: 16 | B26: Banking | C26: ANDHRABANK | D26: 42.55 | E26: 42.98 | F26: 41.72 | G26: 40.88 | H26: 39.62 | I26: 43.82 | J26: 45.08 | K26: 45.92 | L26: 44.25 | M26: 42.15 | N26: 21150000 | O26: -1.58%
A27: 17 | B27: Others | C27: APOLLOHOSP | D27: 1069.70 | E27: 1081.18 | F27: 1054.37 | G27: 1039.03 | H27: 1012.22 | I27: 1096.52 | J27: 1123.33 | K27: 1138.67 | L27: 1108 | M27: 1065.85 | N27: 556500 | O27: -4.71%
A28: 18 | B28: Automobile | C28: APOLLOTYRE | D28: 282.25 | E28: 284.43 | F28: 279.12 | G28: 275.98 | H28: 270.67 | I28: 287.57 | J28: 292.88 | K28: 296.02 | L28: 289.75 | M28: 281.3 | N28: 10947000 | O28: -5.37%
A29: 19 | B29: Textile | C29: ARVIND | D29: 400.45 | E29: 403.20 | F29: 394.45 | G29: 388.45 | H29: 379.70 | I29: 409.20 | J29: 417.95 | K29: 423.95 | L29: 411.95 | M29: 397.2 | N29: 4922000 | O29: -12.76%
A30: 20 | B30: Automobile | C30: ASHOKLEY | D30: 146.45 | E30: 147.73 | F30: 144.52 | G30: 142.58 | H30: 139.37 | I30: 149.67 | J30: 152.88 | K30: 154.82 | L30: 150.95 | M30: 145.8 | N30: 54159000 | O30: -1.28%
A31: 21 | B31: FMCG | C31: ASIANPAINT | D31: 1137.65 | E31: 1142.67 | F31: 1123.33 | G31: 1109.02 | H31: 1089.68 | I31: 1156.98 | J31: 1176.32 | K31: 1190.63 | L31: 1162 | M31: 1128.35 | N31: 4380600 | O31: 5.13%
A32: 22 | B32: Pharma | C32: AUROPHARMA | D32: 591.50 | E32: 592.92 | F32: 586.83 | G32: 582.17 | H32: 576.08 | I32: 597.58 | J32: 603.67 | K32: 608.33 | L32: 599 | M32: 588.25 | N32: 21886400 | O32: -1.59%
A33: 23 | B33: Banking | C33: AXISBANK | D33: 493.10 | E33: 496.83 | F33: 487.32 | G33: 481.53 | H33: 472.02 | I33: 502.62 | J33: 512.13 | K33: 517.92 | L33: 506.35 | M33: 491.05 | N33: 40225200 | O33: 0.97%
A34: 24 | B34: Automobile | C34: BAJAJ-AUTO | D34: 2775.90 | E34: 2786.85 | F34: 2744.05 | G34: 2712.20 | H34: 2669.40 | I34: 2818.70 | J34: 2861.50 | K34: 2893.35 | L34: 2829.65 | M34: 2755 | N34: 2325500 | O34: 2.81%
A35: 25 | B35: Others | C35: BAJAJFINSV | D35: 5251.20 | E35: 5310.32 | F35: 5170.88 | G35: 5090.57 | H35: 4951.13 | I35: 5390.63 | J35: 5530.07 | K35: 5610.38 | L35: 5449.75 | M35: 5230 | N35: 632750 | O35: 0.98%
A36: 26 | B36: Finance | C36: BAJFINANCE | D36: 1851.20 | E36: 1853.43 | F36: 1834.92 | G36: 1818.63 | H36: 1800.12 | I36: 1869.72 | J36: 1888.23 | K36: 1904.52 | L36: 1871.95 | M36: 1837.15 | N36: 4663500 | O36: -6.06%
A37: 27 | B37: Others | C37: BALKRISIND | D37: 1147.40 | E37: 1155.10 | F37: 1136.95 | G37: 1126.50 | H37: 1108.35 | I37: 1165.55 | J37: 1183.70 | K37: 1194.15 | L37: 1173.25 | M37: 1144.65 | N37: 945600 | O37: -7.00%
A38: 28 | B38: Others | C38: BALRAMCHIN | D38: 79.25 | E38: 78.77 | F38: 77.48 | G38: 75.72 | H38: 74.43 | I38: 80.53 | J38: 81.82 | K38: 83.58 | L38: 80.05 | M38: 77 | N38: 15480500 | O38: -1.71%
A39: 29 | B39: Banking | C39: BANKBARODA | D39: 140.40 | E39: 142.58 | F39: 137.57 | G39: 134.73 | H39: 129.72 | I39: 145.42 | J39: 150.43 | K39: 153.27 | L39: 147.6 | M39: 139.75 | N39: 53184000 | O39: 1.48%
A40: 30 | B40: Banking | C40: BANKINDIA | D40: 103.90 | E40: 106.12 | F40: 101.33 | G40: 98.77 | H40: 93.98 | I40: 108.68 | J40: 113.47 | K40: 116.03 | L40: 110.9 | M40: 103.55 | N40: 24600000 | O40: 3.30%
A41: 31 | B41: FMCG | C41: BATAINDIA | D41: 747.95 | E41: 756.23 | F41: 735.72 | G41: 723.48 | H41: 702.97 | I41: 768.47 | J41: 788.98 | K41: 801.22 | L41: 776.75 | M41: 744 | N41: 2477200 | O41: 2.55%
A42: 32 | B42: Capital_Goods | C42: BEL | D42: 144.30 | E42: 145.78 | F42: 142.47 | G42: 140.63 | H42: 137.32 | I42: 147.62 | J42: 150.93 | K42: 152.77 | L42: 149.1 | M42: 143.95 | N42: 25353900 | O42: -3.36%
A43: 33 | B43: Infrastructure | C43: BEML | D43: 1087.10 | E43: 1105.67 | F43: 1064.43 | G43: 1041.77 | H43: 1000.53 | I43: 1128.33 | J43: 1169.57 | K43: 1192.23 | L43: 1146.9 | M43: 1083 | N43: 2210400 | O43: -0.08%
A44: 34 | B44: Others | C44: BERGEPAINT | D44: 255.85 | E44: 256.82 | F44: 252.03 | G44: 248.22 | H44: 243.43 | I44: 260.63 | J44: 265.42 | K44: 269.23 | L44: 261.6 | M44: 253 | N44: 1471800 | O44: 3.40%
A45: 35 | B45: Finance | C45: BHARATFIN | D45: 1105.95 | E45: 1112.22 | F45: 1094.28 | G45: 1082.62 | H45: 1064.68 | I45: 1123.88 | J45: 1141.82 | K45: 1153.48 | L45: 1130.15 | M45: 1100.55 | N45: 4881000 | O45: 0.47%
A46: 36 | B46: Automobile | C46: BHARATFORG | D46: 718.45 | E46: 723.18 | F46: 707.67 | G46: 696.88 | H46: 681.37 | I46: 733.97 | J46: 749.48 | K46: 760.27 | L46: 738.7 | M46: 712.4 | N46: 8206800 | O46: 0.84%
A47: 37 | B47: Telecom | C47: BHARTIARTL | D47: 396.30 | E47: 399.28 | F47: 392.12 | G47: 387.93 | H47: 380.77 | I47: 403.47 | J47: 410.63 | K47: 414.82 | L47: 406.45 | M47: 395.1 | N47: 56118700 | O47: 1.29%
A48: 38 | B48: Capital_Goods | C48: BHEL | D48: 85.15 | E48: 85.83 | F48: 84.12 | G48: 83.08 | H48: 81.37 | I48: 86.87 | J48: 88.58 | K48: 89.62 | L48: 87.55 | M48: 84.8 | N48: 44790000 | O48: -7.20%
A49: 39 | B49: Pharma | C49: BIOCON | D49: 598.40 | E49: 602.32 | F49: 591.18 | G49: 583.97 | H49: 572.83 | I49: 609.53 | J49: 620.67 | K49: 627.88 | L49: 613.45 | M49: 595.1 | N49: 7797600 | O49: 4.31%
A50: 40 | B50: Automobile | C50: BOSCHLTD | D50: 19760.00 | E50: 19681.63 | F50: 19263.27 | G50: 18766.53 | H50: 18348.17 | I50: 20178.37 | J50: 20596.73 | K50: 21093.47 | L50: 20100 | M50: 19184.9 | N50: 178575 | O50: 5.51%
A51: 41 | B51: Oil_Gas | C51: BPCL | D51: 416.90 | E51: 420.98 | F51: 411.97 | G51: 407.03 | H51: 398.02 | I51: 425.92 | J51: 434.93 | K51: 439.87 | L51: 430 | M51: 416.05 | N51: 11714400 | O51: 5.94%
A52: 42 | B52: FMCG | C52: BRITANNIA | D52: 5022.65 | E52: 5045.75 | F52: 4974.90 | G52: 4927.15 | H52: 4856.30 | I52: 5093.50 | J52: 5164.35 | K52: 5212.10 | L52: 5116.6 | M52: 4998 | N52: 848000 | O52: -2.84%
A53: 43 | B53: Pharma | C53: CADILAHC | D53: 395.40 | E53: 395.98 | F53: 390.07 | G53: 384.73 | H53: 378.82 | I53: 401.32 | J53: 407.23 | K53: 412.57 | L53: 401.9 | M53: 390.65 | N53: 5913600 | O53: -4.30%
A54: 44 | B54: Banking | C54: CANBK | D54: 263.45 | E54: 266.67 | F54: 258.48 | G54: 253.52 | H54: 245.33 | I54: 271.63 | J54: 279.82 | K54: 284.78 | L54: 274.85 | M54: 261.7 | N54: 11395200 | O54: -8.89%
A55: 45 | B55: Others | C55: CANFINHOME | D55: 430.05 | E55: 433.40 | F55: 424.05 | G55: 418.05 | H55: 408.70 | I55: 439.40 | J55: 448.75 | K55: 454.75 | L55: 442.75 | M55: 427.4 | N55: 7870000 | O55: 4.12%
A56: 46 | B56: Finance | C56: CAPF | D56: 637.75 | E56: 641.48 | F56: 631.42 | G56: 625.08 | H56: 615.02 | I56: 647.82 | J56: 657.88 | K56: 664.22 | L56: 651.55 | M56: 635.15 | N56: 7773600 | O56: -0.92%
A57: 47 | B57: Oil_Gas | C57: CASTROLIND | D57: 205.90 | E57: 207.53 | F57: 202.37 | G57: 198.83 | H57: 193.67 | I57: 211.07 | J57: 216.23 | K57: 219.77 | L57: 212.7 | M57: 204 | N57: 11216800 | O57: 0.68%
A58: 48 | B58: Automobile | C58: CEATLTD | D58: 1575.15 | E58: 1595.05 | F58: 1552.15 | G58: 1529.15 | H58: 1486.25 | I58: 1618.05 | J58: 1660.95 | K58: 1683.95 | L58: 1637.95 | M58: 1572.05 | N58: 1056650 | O58: -6.30%
A59: 49 | B59: Textile | C59: CENTURYTEX | D59: 1168.60 | E59: 1184.50 | F59: 1147.10 | G59: 1125.60 | H59: 1088.20 | I59: 1206.00 | J59: 1243.40 | K59: 1264.90 | L59: 1221.9 | M59: 1163 | N59: 5970800 | O59: -0.76%
A60: 50 | B60: Power | C60: CESC | D60: 981.00 | E60: 992.65 | F60: 961.30 | G60: 941.60 | H60: 910.25 | I60: 1012.35 | J60: 1043.70 | K60: 1063.40 | L60: 1024 | M60: 972.95 | N60: 5820650 | O60: -0.36%
A61: 51 | B61: Power | C61: CGPOWER | D61: 79.10 | E61: 79.62 | F61: 77.78 | G61: 76.47 | H61: 74.63 | I61: 80.93 | J61: 82.77 | K61: 84.08 | L61: 81.45 | M61: 78.3 | N61: 21924000 | O61: 2.07%
A62: 52 | B62: Others | C62: CHENNPETRO | D62: 333.45 | E62: 337.42 | F62: 328.03 | G62: 322.62 | H62: 313.23 | I62: 342.83 | J62: 352.22 | K62: 357.63 | L62: 346.8 | M62: 332 | N62: 2602500 | O62: -1.31%
A63: 53 | B63: Others | C63: CHOLAFIN | D63: 1484.35 | E63: 1495.93 | F63: 1461.87 | G63: 1439.38 | H63: 1405.32 | I63: 1518.42 | J63: 1552.48 | K63: 1574.97 | L63: 1530 | M63: 1473.45 | N63: 437000 | O63: -2.02%
A64: 54 | B64: Pharma | C64: CIPLA | D64: 569.65 | E64: 570.03 | F64: 564.07 | G64: 558.48 | H64: 552.52 | I64: 575.62 | J64: 581.58 | K64: 587.17 | L64: 576 | M64: 564.45 | N64: 8040000 | O64: -0.24%
A65: 55 | B65: Others | C65: COALINDIA | D65: 274.10 | E65: 275.18 | F65: 271.37 | G65: 268.63 | H65: 264.82 | I65: 277.92 | J65: 281.73 | K65: 284.47 | L65: 279 | M65: 272.45 | N65: 17448200 | O65: 6.66%
A66: 56 | B66: FMCG | C66: COLPAL | D66: 1087.95 | E66: 1088.73 | F66: 1079.47 | G66: 1070.98 | H66: 1061.72 | I66: 1097.22 | J66: 1106.48 | K66: 1114.97 | L66: 1098 | M66: 1080.25 | N66: 1498700 | O66: 4.18%
A67: 57 | B67: Others | C67: CONCOR | D67: 1243.00 | E67: 1248.27 | F67: 1216.73 | G67: 1190.47 | H67: 1158.93 | I67: 1274.53 | J67: 1306.07 | K67: 1332.33 | L67: 1279.8 | M67: 1222 | N67: 988125 | O67: 1.28%
A68: 58 | B68: Capital_Goods | C68: CUMMINSIND | D68: 736.15 | E68: 741.32 | F68: 727.83 | G68: 719.52 | H68: 706.03 | I68: 749.63 | J68: 763.12 | K68: 771.43 | L68: 754.8 | M68: 733 | N68: 1996200 | O68: -6.07%
A69: 59 | B69: FMCG | C69: DABUR | D69: 336.00 | E69: 337.75 | F69: 333.60 | G69: 331.20 | H69: 327.05 | I69: 340.15 | J69: 344.30 | K69: 346.70 | L69: 341.9 | M69: 335.35 | N69: 12570000 | O69: -3.70%
A70: 60 | B70: Cement | C70: DALMIABHA | D70: 2886.45 | E70: 2896.00 | F70: 2849.00 | G70: 2811.55 | H70: 2764.55 | I70: 2933.45 | J70: 2980.45 | K70: 3017.90 | L70: 2943 | M70: 2858.55 | N70: 586500 | O70: -1.41%
A71: 61 | B71: Banking | C71: DCBBANK | D71: 166.35 | E71: 167.42 | F71: 164.03 | G71: 161.72 | H71: 158.33 | I71: 169.73 | J71: 173.12 | K71: 175.43 | L71: 170.8 | M71: 165.1 | N71: 4383000 | O71: -0.81%
A72: 62 | B72: Finance | C72: DHFL | D72: 522.10 | E72: 528.75 | F72: 512.60 | G72: 503.10 | H72: 486.95 | I72: 538.25 | J72: 554.40 | K72: 563.90 | L72: 544.9 | M72: 519.25 | N72: 27787500 | O72: 0.22%
A73: 63 | B73: Media | C73: DISHTV | D73: 71.00 | E73: 71.48 | F73: 69.77 | G73: 68.53 | H73: 66.82 | I73: 72.72 | J73: 74.43 | K73: 75.67 | L73: 73.2 | M73: 70.25 | N73: 48993000 | O73: 1.91%
A74: 64 | B74: Pharma | C74: DIVISLAB | D74: 1101.20 | E74: 1112.73 | F74: 1080.47 | G74: 1059.73 | H74: 1027.47 | I74: 1133.47 | J74: 1165.73 | K74: 1186.47 | L74: 1145 | M74: 1092 | N74: 2010400 | O74: -5.24%
A75: 65 | B75: Realty | C75: DLF | D75: 199.25 | E75: 202.32 | F75: 195.38 | G75: 191.52 | H75: 184.58 | I75: 206.18 | J75: 213.12 | K75: 216.98 | L75: 209.25 | M75: 198.45 | N75: 51440000 | O75: 2.50%
A76: 66 | B76: Pharma | C76: DRREDDY | D76: 2100.85 | E76: 2107.13 | F76: 2079.32 | G76: 2057.78 | H76: 2029.97 | I76: 2128.67 | J76: 2156.48 | K76: 2178.02 | L76: 2134.95 | M76: 2085.6 | N76: 4460000 | O76: 6.06%
A77: 67 | B77: Automobile | C77: EICHERMOT | D77: 29022.75 | E77: 28971.65 | F77: 28543.40 | G77: 28064.05 | H77: 27635.80 | I77: 29451.00 | J77: 29879.25 | K77: 30358.60 | L77: 29399.9 | M77: 28492.3 | N77: 205300 | O77: -1.25%
A78: 68 | B78: Infrastructure | C78: ENGINERSIN | D78: 162.75 | E78: 163.45 | F78: 161.30 | G78: 159.85 | H78: 157.70 | I78: 164.90 | J78: 167.05 | K78: 168.50 | L78: 165.6 | M78: 162 | N78: 6839000 | O78: -3.79%
A79: 69 | B79: Finance | C79: EQUITAS | D79: 146.80 | E79: 147.95 | F79: 144.15 | G79: 141.50 | H79: 137.70 | I79: 150.60 | J79: 154.40 | K79: 157.05 | L79: 151.75 | M79: 145.3 | N79: 17737600 | O79: -0.91%
A80: 70 | B80: Automobile | C80: ESCORTS | D80: 874.40 | E80: 884.07 | F80: 862.48 | G80: 850.57 | H80: 828.98 | I80: 895.98 | J80: 917.57 | K80: 929.48 | L80: 905.65 | M80: 872.15 | N80: 3093200 | O80: -9.26%
A81: 71 | B81: Automobile | C81: EXIDEIND | D81: 231.05 | E81: 232.72 | F81: 228.68 | G81: 226.32 | H81: 222.28 | I81: 235.08 | J81: 239.12 | K81: 241.48 | L81: 236.75 | M81: 230.35 | N81: 8112000 | O81: -10.15%
A82: 72 | B82: Banking | C82: FEDERALBNK | D82: 91.50 | E82: 92.35 | F82: 90.45 | G82: 89.40 | H82: 87.50 | I82: 93.40 | J82: 95.30 | K82: 96.35 | L82: 94.25 | M82: 91.3 | N82: 56270500 | O82: -1.89%
A83: 73 | B83: Oil_Gas | C83: GAIL | D83: 329.90 | E83: 328.47 | F83: 325.93 | G83: 321.97 | H83: 319.43 | I83: 332.43 | J83: 334.97 | K83: 338.93 | L83: 331 | M83: 324.5 | N83: 13833729 | O83: -4.51%
A84: 74 | B84: Pharma | C84: GLENMARK | D84: 549.05 | E84: 552.12 | F84: 543.53 | G84: 538.02 | H84: 529.43 | I84: 557.63 | J84: 566.22 | K84: 571.73 | L84: 560.7 | M84: 546.6 | N84: 5172300 | O84: -2.00%
A85: 75 | B85: Infrastructure | C85: GMRINFRA | D85: 18.35 | E85: 18.62 | F85: 17.88 | G85: 17.42 | H85: 16.68 | I85: 19.08 | J85: 19.82 | K85: 20.28 | L85: 19.35 | M85: 18.15 | N85: 287820000 | O85: 0.63%
A86: 76 | B86: Others | C86: GODFRYPHLP | D86: 848.30 | E86: 857.03 | F86: 835.37 | G86: 822.43 | H86: 800.77 | I86: 869.97 | J86: 891.63 | K86: 904.57 | L86: 878.7 | M86: 844.1 | N86: 631500 | O86: 1.85%
A87: 77 | B87: FMCG | C87: GODREJCP | D87: 1087.75 | E87: 1092.43 | F87: 1070.82 | G87: 1053.88 | H87: 1032.27 | I87: 1109.37 | J87: 1130.98 | K87: 1147.92 | L87: 1114.05 | M87: 1075.5 | N87: 2385600 | O87: -4.02%
A88: 78 | B88: FMCG | C88: GODREJIND | D88: 536.10 | E88: 543.80 | F88: 526.30 | G88: 516.50 | H88: 499.00 | I88: 553.60 | J88: 571.10 | K88: 580.90 | L88: 561.3 | M88: 534 | N88: 2416500 | O88: 15.90%
A89: 79 | B89: Pharma | C89: GRANULES | D89: 106.35 | E89: 107.55 | F89: 104.10 | G89: 101.85 | H89: 98.40 | I89: 109.80 | J89: 113.25 | K89: 115.50 | L89: 111 | M89: 105.3 | N89: 15480000 | O89: 3.06%
A90: 80 | B90: Cement | C90: GRASIM | D90: 1064.05 | E90: 1073.68 | F90: 1050.57 | G90: 1037.08 | H90: 1013.97 | I90: 1087.17 | J90: 1110.28 | K90: 1123.77 | L90: 1096.8 | M90: 1060.2 | N90: 5341500 | O90: 5.15%
A91: 81 | B91: Others | C91: GSFC | D91: 121.50 | E91: 122.85 | F91: 119.25 | G91: 117.00 | H91: 113.40 | I91: 125.10 | J91: 128.70 | K91: 130.95 | L91: 126.45 | M91: 120.6 | N91: 18288000 | O91: -0.22%
A92: 82 | B92: Others | C92: HAVELLS | D92: 505.25 | E92: 507.90 | F92: 500.90 | G92: 496.55 | H92: 489.55 | I92: 512.25 | J92: 519.25 | K92: 523.60 | L92: 514.9 | M92: 503.55 | N92: 5320000 | O92: 5.64%
A93: 83 | B93: Others | C93: HCC | D93: 24.20 | E93: 24.80 | F93: 23.40 | G93: 22.60 | H93: 21.20 | I93: 25.60 | J93: 27.00 | K93: 27.80 | L93: 26.2 | M93: 24 | N93: 45765000 | O93: 7.47%
A94: 84 | B94: Technology | C94: HCLTECH | D94: 963.35 | E94: 967.75 | F94: 950.60 | G94: 937.85 | H94: 920.70 | I94: 980.50 | J94: 997.65 | K94: 1010.40 | L94: 984.9 | M94: 955 | N94: 9802800 | O94: 2.20%
A95: 85 | B95: Finance | C95: HDFC | D95: 1807.80 | E95: 1815.18 | F95: 1790.12 | G95: 1772.43 | H95: 1747.37 | I95: 1832.87 | J95: 1857.93 | K95: 1875.62 | L95: 1840.25 | M95: 1797.5 | N95: 16663500 | O95: 3.44%
A96: 86 | B96: Banking | C96: HDFCBANK | D96: 1886.60 | E96: 1900.00 | F96: 1869.15 | G96: 1851.70 | H96: 1820.85 | I96: 1917.45 | J96: 1948.30 | K96: 1965.75 | L96: 1930.85 | M96: 1882.55 | N96: 17166000 | O96: 7.81%
A97: 87 | B97: Realty | C97: HDIL | D97: 40.85 | E97: 41.30 | F97: 39.90 | G97: 38.95 | H97: 37.55 | I97: 42.25 | J97: 43.65 | K97: 44.60 | L97: 42.7 | M97: 40.35 | N97: 27927000 | O97: -4.38%
A98: 88 | B98: Automobile | C98: HEROMOTOCO | D98: 3663.60 | E98: 3665.18 | F98: 3635.47 | G98: 3607.33 | H98: 3577.62 | I98: 3693.32 | J98: 3723.03 | K98: 3751.17 | L98: 3694.9 | M98: 3637.05 | N98: 1495000 | O98: 5.30%
A99: 89 | B99: Technology | C99: HEXAWARE | D99: 394.50 | E99: 397.13 | F99: 388.67 | G99: 382.83 | H99: 374.37 | I99: 402.97 | J99: 411.43 | K99: 417.27 | L99: 405.6 | M99: 391.3 | N99: 4689000 | O99: -2.13%
A100: 90 | B100: Metals | C100: HINDALCO | D100: 201.05 | E100: 204.20 | F100: 197.05 | G100: 193.05 | H100: 185.90 | I100: 208.20 | J100: 215.35 | K100: 219.35 | L100: 211.35 | M100: 200.2 | N100: 52895500 | O100: 6.12%
A101: 91 | B101: Oil_Gas | C101: HINDPETRO | D101: 345.25 | E101: 348.02 | F101: 340.73 | G101: 336.22 | H101: 328.93 | I101: 352.53 | J101: 359.82 | K101: 364.33 | L101: 355.3 | M101: 343.5 | N101: 24828300 | O101: 0.70%
A102: 92 | B102: FMCG | C102: HINDUNILVR | D102: 1360.05 | E102: 1356.20 | F102: 1350.00 | G102: 1339.95 | H102: 1333.75 | I102: 1366.25 | J102: 1372.45 | K102: 1382.50 | L102: 1362.4 | M102: 1346.15 | N102: 8666400 | O102: 2.68%
A103: 93 | B103: Metals | C103: HINDZINC | D103: 307.25 | E103: 308.18 | F103: 304.87 | G103: 302.48 | H103: 299.17 | I103: 310.57 | J103: 313.88 | K103: 316.27 | L103: 311.5 | M103: 305.8 | N103: 14860800 | O103: -2.00%
A104: 94 | B104: Finance | C104: IBULHSGFIN | D104: 1293.60 | E104: 1295.72 | F104: 1276.43 | G104: 1259.27 | H104: 1239.98 | I104: 1312.88 | J104: 1332.17 | K104: 1349.33 | L104: 1315 | M104: 1278.55 | N104: 14030000 | O104: -6.03%
A105: 95 | B105: Banking | C105: ICICIBANK | D105: 269.00 | E105: 269.73 | F105: 265.57 | G105: 262.13 | H105: 257.97 | I105: 273.17 | J105: 277.33 | K105: 280.77 | L105: 273.9 | M105: 266.3 | N105: 102577750 | O105: 0.25%
A106: 96 | B106: Others | C106: ICICIPRULI | D106: 389.65 | E106: 392.85 | F106: 383.80 | G106: 377.95 | H106: 368.90 | I106: 398.70 | J106: 407.75 | K106: 413.60 | L106: 401.9 | M106: 387 | N106: 4104100 | O106: -5.00%
A107: 97 | B107: Banking | C107: IDBI | D107: 70.35 | E107: 71.47 | F107: 68.68 | G107: 67.02 | H107: 64.23 | I107: 73.13 | J107: 75.92 | K107: 77.58 | L107: 74.25 | M107: 69.8 | N107: 45060000 | O107: 5.53%
A108: 98 | B108: Telecom | C108: IDEA | D108: 77.00 | E108: 77.20 | F108: 75.65 | G108: 74.30 | H108: 72.75 | I108: 78.55 | J108: 80.10 | K108: 81.45 | L108: 78.75 | M108: 75.85 | N108: 103579000 | O108: 0.60%
A109: 99 | B109: Finance | C109: IDFC | D109: 50.90 | E109: 51.35 | F109: 50.15 | G109: 49.40 | H109: 48.20 | I109: 52.10 | J109: 53.30 | K109: 54.05 | L109: 52.55 | M109: 50.6 | N109: 157185600 | O109: -1.17%
A110: 100 | B110: Banking | C110: IDFCBANK | D110: 48.30 | E110: 48.65 | F110: 47.75 | G110: 47.20 | H110: 46.30 | I110: 49.20 | J110: 50.10 | K110: 50.65 | L110: 49.55 | M110: 48.1 | N110: 184428000 | O110: 0.21%
A111: 101 | B111: Finance | C111: IFCI | D111: 20.40 | E111: 20.67 | F111: 19.93 | G111: 19.47 | H111: 18.73 | I111: 21.13 | J111: 21.87 | K111: 22.33 | L111: 21.4 | M111: 20.2 | N111: 74580000 | O111: -0.26%
A112: 102 | B112: Oil_Gas | C112: IGL | D112: 281.70 | E112: 282.50 | F112: 277.30 | G112: 272.90 | H112: 267.70 | I112: 286.90 | J112: 292.10 | K112: 296.50 | L112: 287.7 | M112: 278.1 | N112: 5830000 | O112: -16.96%
A113: 103 | B113: Cement | C113: INDIACEM | D113: 150.05 | E113: 151.52 | F113: 147.53 | G113: 145.02 | H113: 141.03 | I113: 154.03 | J113: 158.02 | K113: 160.53 | L113: 155.5 | M113: 149 | N113: 23145500 | O113: -0.96%
A114: 104 | B114: Banking | C114: INDIANB | D114: 303.25 | E114: 305.83 | F114: 297.42 | G114: 291.58 | H114: 283.17 | I114: 311.67 | J114: 320.08 | K114: 325.92 | L114: 314.25 | M114: 300 | N114: 3504000 | O114: -0.68%
A115: 105 | B115: Others | C115: INDIGO | D115: 1381.00 | E115: 1389.08 | F115: 1363.42 | G115: 1345.83 | H115: 1320.17 | I115: 1406.67 | J115: 1432.33 | K115: 1449.92 | L115: 1414.75 | M115: 1371.5 | N115: 3285600 | O115: 3.93%
A116: 106 | B116: Banking | C116: INDUSINDBK | D116: 1791.75 | E116: 1803.25 | F116: 1774.50 | G116: 1757.25 | H116: 1728.50 | I116: 1820.50 | J116: 1849.25 | K116: 1866.50 | L116: 1832 | M116: 1786 | N116: 5995200 | O116: 7.19%
A117: 107 | B117: Technology | C117: INFIBEAM | D117: 159.20 | E117: 160.00 | F117: 155.70 | G117: 152.20 | H117: 147.90 | I117: 163.50 | J117: 167.80 | K117: 171.30 | L117: 164.3 | M117: 156.5 | N117: 39108000 | O117: -1.29%
A118: 108 | B118: Telecom | C118: INFRATEL | D118: 330.40 | E118: 330.92 | F118: 328.48 | G118: 326.57 | H118: 324.13 | I118: 332.83 | J118: 335.27 | K118: 337.18 | L118: 333.35 | M118: 329 | N118: 5803800 | O118: 7.39%
A119: 109 | B119: Technology | C119: INFY | D119: 1126.90 | E119: 1133.07 | F119: 1117.33 | G119: 1107.77 | H119: 1092.03 | I119: 1142.63 | J119: 1158.37 | K119: 1167.93 | L119: 1148.8 | M119: 1123.5 | N119: 36819000 | O119: 2.60%
A120: 110 | B120: Oil_Gas | C120: IOC | D120: 171.65 | E120: 172.38 | F120: 169.77 | G120: 167.88 | H120: 165.27 | I120: 174.27 | J120: 176.88 | K120: 178.77 | L120: 175 | M120: 170.5 | N120: 38934000 | O120: 1.45%
A121: 111 | B121: Infrastructure | C121: IRB | D121: 236.00 | E121: 238.67 | F121: 231.98 | G121: 227.97 | H121: 221.28 | I121: 242.68 | J121: 249.37 | K121: 253.38 | L121: 245.35 | M121: 234.65 | N121: 14650000 | O121: -0.61%
A122: 112 | B122: FMCG | C122: ITC | D122: 259.10 | E122: 259.23 | F122: 257.37 | G122: 255.63 | H122: 253.77 | I122: 260.97 | J122: 262.83 | K122: 264.57 | L122: 261.1 | M122: 257.5 | N122: 91771200 | O122: 2.89%
A123: 113 | B123: Others | C123: JETAIRWAYS | D123: 607.25 | E123: 614.93 | F123: 593.77 | G123: 580.28 | H123: 559.12 | I123: 628.42 | J123: 649.58 | K123: 663.07 | L123: 636.1 | M123: 601.45 | N123: 8115600 | O123: 4.50%
A124: 114 | B124: Metals | C124: JINDALSTEL | D124: 219.90 | E124: 224.13 | F124: 213.87 | G124: 207.83 | H124: 197.57 | I124: 230.17 | J124: 240.43 | K124: 246.47 | L124: 234.4 | M124: 218.1 | N124: 34843500 | O124: 2.30%
A125: 115 | B125: Others | C125: JISLJALEQS | D125: 111.05 | E125: 112.50 | F125: 109.05 | G125: 107.05 | H125: 103.60 | I125: 114.50 | J125: 117.95 | K125: 119.95 | L125: 115.95 | M125: 110.5 | N125: 38133000 | O125: 1.32%
A126: 116 | B126: Realty | C126: JPASSOCIAT | D126: 19.50 | E126: 19.98 | F126: 18.87 | G126: 18.23 | H126: 17.12 | I126: 20.62 | J126: 21.73 | K126: 22.37 | L126: 21.1 | M126: 19.35 | N126: 212568000 | O126: -0.02%
A127: 117 | B127: Metals | C127: JSWSTEEL | D127: 296.35 | E127: 299.77 | F127: 291.63 | G127: 286.92 | H127: 278.78 | I127: 304.48 | J127: 312.62 | K127: 317.33 | L127: 307.9 | M127: 295.05 | N127: 65715000 | O127: 0.16%
A128: 118 | B128: Others | C128: JUBLFOOD | D128: 2319.70 | E128: 2328.23 | F128: 2299.47 | G128: 2279.23 | H128: 2250.47 | I128: 2348.47 | J128: 2377.23 | K128: 2397.47 | L128: 2357 | M128: 2308 | N128: 1810000 | O128: -0.69%
A129: 119 | B129: Others | C129: JUSTDIAL | D129: 462.70 | E129: 471.37 | F129: 452.28 | G129: 441.87 | H129: 422.78 | I129: 481.78 | J129: 500.87 | K129: 511.28 | L129: 490.45 | M129: 460.95 | N129: 4099200 | O129: -4.75%
A130: 120 | B130: Others | C130: KAJARIACER | D130: 565.95 | E130: 569.92 | F130: 556.18 | G130: 546.42 | H130: 532.68 | I130: 579.68 | J130: 593.42 | K130: 603.18 | L130: 583.65 | M130: 560.15 | N130: 1387200 | O130: 3.83%
A131: 121 | B131: Banking | C131: KOTAKBANK | D131: 1079.90 | E131: 1090.32 | F131: 1066.58 | G131: 1053.27 | H131: 1029.53 | I131: 1103.63 | J131: 1127.37 | K131: 1140.68 | L131: 1114.05 | M131: 1077 | N131: 10223200 | O131: 4.00%
A132: 122 | B132: Technology | C132: KPIT | D132: 219.95 | E132: 221.65 | F132: 217.40 | G132: 214.85 | H132: 210.60 | I132: 224.20 | J132: 228.45 | K132: 231.00 | L132: 225.9 | M132: 219.1 | N132: 9225000 | O132: -0.97%
A133: 123 | B133: Others | C133: KSCL | D133: 499.25 | E133: 502.20 | F133: 494.70 | G133: 490.15 | H133: 482.65 | I133: 506.75 | J133: 514.25 | K133: 518.80 | L133: 509.7 | M133: 497.65 | N133: 2281500 | O133: 1.88%
A134: 124 | B134: Banking | C134: KTKBANK | D134: 119.35 | E134: 120.48 | F134: 117.52 | G134: 115.68 | H134: 112.72 | I134: 122.32 | J134: 125.28 | K134: 127.12 | L134: 123.45 | M134: 118.65 | N134: 24886200 | O134: -1.78%
A135: 125 | B135: Finance | C135: L&TFH | D135: 161.75 | E135: 162.92 | F135: 159.03 | G135: 156.32 | H135: 152.43 | I135: 165.63 | J135: 169.52 | K135: 172.23 | L135: 166.8 | M135: 160.2 | N135: 29290500 | O135: -6.45%
A136: 126 | B136: Finance | C136: LICHSGFIN | D136: 536.10 | E136: 542.35 | F136: 527.15 | G136: 518.20 | H136: 503.00 | I136: 551.30 | J136: 566.50 | K136: 575.45 | L136: 557.55 | M136: 533.4 | N136: 12302400 | O136: -0.71%
A137: 127 | B137: Capital_Goods | C137: LT | D137: 1299.50 | E137: 1310.92 | F137: 1282.83 | G137: 1266.17 | H137: 1238.08 | I137: 1327.58 | J137: 1355.67 | K137: 1372.33 | L137: 1339 | M137: 1294.25 | N137: 12300000 | O137: 5.60%
A138: 128 | B138: Pharma | C138: LUPIN | D138: 777.25 | E138: 783.52 | F138: 766.13 | G138: 755.02 | H138: 737.63 | I138: 794.63 | J138: 812.02 | K138: 823.13 | L138: 800.9 | M138: 772.4 | N138: 13491000 | O138: -4.48%
A139: 129 | B139: Automobile | C139: M&M | D139: 759.65 | E139: 766.83 | F139: 745.32 | G139: 730.98 | H139: 709.47 | I139: 781.17 | J139: 802.68 | K139: 817.02 | L139: 788.35 | M139: 752.5 | N139: 14011000 | O139: -0.69%
A140: 130 | B140: Finance | C140: M&MFIN | D140: 467.60 | E140: 471.38 | F140: 460.77 | G140: 453.93 | H140: 443.32 | I140: 478.22 | J140: 488.83 | K140: 495.67 | L140: 482 | M140: 464.55 | N140: 7192500 | O140: -3.94%
A141: 131 | B141: Others | C141: MANAPPURAM | D141: 114.90 | E141: 115.57 | F141: 113.48 | G141: 112.07 | H141: 109.98 | I141: 116.98 | J141: 119.07 | K141: 120.48 | L141: 117.65 | M141: 114.15 | N141: 18636000 | O141: -0.89%
A142: 132 | B142: FMCG | C142: MARICO | D142: 327.05 | E142: 327.83 | F142: 325.57 | G142: 324.08 | H142: 321.82 | I142: 329.32 | J142: 331.58 | K142: 333.07 | L142: 330.1 | M142: 326.35 | N142: 4232800 | O142: 2.26%
A143: 133 | B143: Automobile | C143: MARUTI | D143: 9031.75 | E143: 9074.43 | F143: 8960.82 | G143: 8889.88 | H143: 8776.27 | I143: 9145.37 | J143: 9258.98 | K143: 9329.92 | L143: 9188.05 | M143: 9003.5 | N143: 2240700 | O143: 1.03%
A144: 134 | B144: FMCG | C144: MCDOWELL-N | D144: 3165.35 | E144: 3212.47 | F144: 3109.93 | G144: 3054.52 | H144: 2951.98 | I144: 3267.88 | J144: 3370.42 | K144: 3425.83 | L144: 3315 | M144: 3157.05 | N144: 2209000 | O144: -0.14%
A145: 135 | B145: Others | C145: MCX | D145: 725.50 | E145: 731.90 | F145: 713.65 | G145: 701.80 | H145: 683.55 | I145: 743.75 | J145: 762.00 | K145: 773.85 | L145: 750.15 | M145: 720.05 | N145: 3249500 | O145: -2.03%
A146: 136 | B146: Finance | C146: MFSL | D146: 452.10 | E146: 457.42 | F146: 442.88 | G146: 433.67 | H146: 419.13 | I146: 466.63 | J146: 481.17 | K146: 490.38 | L146: 471.95 | M146: 448.2 | N146: 2727000 | O146: 1.00%
A147: 137 | B147: Others | C147: MGL | D147: 990.45 | E147: 1000.55 | F147: 973.90 | G147: 957.35 | H147: 930.70 | I147: 1017.10 | J147: 1043.75 | K147: 1060.30 | L147: 1027.2 | M147: 984 | N147: 883800 | O147: -3.09%
A148: 138 | B148: Technology | C148: MINDTREE | D148: 780.50 | E148: 790.17 | F148: 768.33 | G148: 756.17 | H148: 734.33 | I148: 802.33 | J148: 824.17 | K148: 836.33 | L148: 812 | M148: 778 | N148: 1730400 | O148: 2.27%
A149: 139 | B149: Automobile | C149: MOTHERSUMI | D149: 333.55 | E149: 335.27 | F149: 331.03 | G149: 328.52 | H149: 324.28 | I149: 337.78 | J149: 342.02 | K149: 344.53 | L149: 339.5 | M149: 332.75 | N149: 14305600 | O149: -3.10%
A150: 140 | B150: Automobile | C150: MRF | D150: 75000.50 | E150: 75222.53 | F150: 74001.52 | G150: 73002.53 | H150: 71781.52 | I150: 76221.52 | J150: 77442.53 | K150: 78441.52 | L150: 76443.55 | M150: 74223.55 | N150: 42510 | O150: -3.04%
A151: 141 | B151: Others | C151: MRPL | D151: 110.70 | E151: 111.65 | F151: 109.20 | G151: 107.70 | H151: 105.25 | I151: 113.15 | J151: 115.60 | K151: 117.10 | L151: 114.1 | M151: 110.15 | N151: 4909500 | O151: 2.44%
A152: 142 | B152: Finance | C152: MUTHOOTFIN | D152: 416.35 | E152: 419.38 | F152: 409.57 | G152: 402.78 | H152: 392.97 | I152: 426.17 | J152: 435.98 | K152: 442.77 | L152: 429.2 | M152: 412.6 | N152: 1848000 | O152: -2.07%
A153: 143 | B153: Others | C153: NATIONALUM | D153: 70.15 | E153: 70.33 | F153: 68.97 | G153: 67.78 | H153: 66.42 | I153: 71.52 | J153: 72.88 | K153: 74.07 | L153: 71.7 | M153: 69.15 | N153: 35776000 | O153: -2.44%
A154: 144 | B154: Others | C154: NBCC | D154: 203.25 | E154: 205.97 | F154: 199.93 | G154: 196.62 | H154: 190.58 | I154: 209.28 | J154: 215.32 | K154: 218.63 | L154: 212 | M154: 202.65 | N154: 10308000 | O154: -3.05%
A155: 145 | B155: Infrastructure | C155: NCC | D155: 125.85 | E155: 126.72 | F155: 123.73 | G155: 121.62 | H155: 118.63 | I155: 128.83 | J155: 131.82 | K155: 133.93 | L155: 129.7 | M155: 124.6 | N155: 23744000 | O155: -4.96%
A156: 146 | B156: Others | C156: NESTLEIND | D156: 8395.05 | E156: 8403.33 | F156: 8351.72 | G156: 8308.38 | H156: 8256.77 | I156: 8446.67 | J156: 8498.28 | K156: 8541.62 | L156: 8454.95 | M156: 8360 | N156: 250000 | O156: 10.67%
A157: 147 | B157: Power | C157: NHPC | D157: 28.55 | E157: 28.82 | F157: 28.23 | G157: 27.92 | H157: 27.33 | I157: 29.13 | J157: 29.72 | K157: 30.03 | L157: 29.4 | M157: 28.5 | N157: 30267000 | O157: -2.69%
A158: 148 | B158: Technology | C158: NIITTECH | D158: 869.95 | E158: 878.40 | F158: 857.50 | G158: 845.05 | H158: 824.15 | I158: 890.85 | J158: 911.75 | K158: 924.20 | L158: 899.3 | M158: 865.95 | N158: 1540500 | O158: -3.57%
A159: 149 | B159: Metals | C159: NMDC | D159: 116.40 | E159: 117.67 | F159: 114.68 | G159: 112.97 | H159: 109.98 | I159: 119.38 | J159: 122.37 | K159: 124.08 | L159: 120.65 | M159: 115.95 | N159: 32184000 | O159: 7.95%
A160: 150 | B160: Power | C160: NTPC | D160: 166.50 | E160: 167.32 | F160: 164.98 | G160: 163.47 | H160: 161.13 | I160: 168.83 | J160: 171.17 | K160: 172.68 | L160: 169.65 | M160: 165.8 | N160: 33648000 | O160: 8.85%
A161: 151 | B161: Technology | C161: OFSS | D161: 3928.55 | E161: 3962.12 | F161: 3872.63 | G161: 3816.72 | H161: 3727.23 | I161: 4018.03 | J161: 4107.52 | K161: 4163.43 | L161: 4051.6 | M161: 3906.2 | N161: 62100 | O161: -5.69%
A162: 152 | B162: Oil_Gas | C162: OIL | D162: 216.10 | E162: 217.57 | F162: 213.68 | G162: 211.27 | H162: 207.38 | I162: 219.98 | J162: 223.87 | K162: 226.28 | L162: 221.45 | M162: 215.15 | N162: 3582546 | O162: 6.90%
A163: 153 | B163: Oil_Gas | C163: ONGC | D163: 175.95 | E163: 176.58 | F163: 174.67 | G163: 173.38 | H163: 171.47 | I163: 177.87 | J163: 179.78 | K163: 181.07 | L163: 178.5 | M163: 175.3 | N163: 33427500 | O163: 5.52%
A164: 154 | B164: Banking | C164: ORIENTBANK | D164: 93.00 | E164: 94.38 | F164: 90.92 | G164: 88.83 | H164: 85.37 | I164: 96.47 | J164: 99.93 | K164: 102.02 | L164: 97.85 | M164: 92.3 | N164: 13758000 | O164: -3.78%
A165: 155 | B165: Textile | C165: PAGEIND | D165: 22661.05 | E165: 22721.98 | F165: 22239.02 | G165: 21816.98 | H165: 21334.02 | I165: 23144.02 | J165: 23626.98 | K165: 24049.02 | L165: 23204.95 | M165: 22299.95 | N165: 28000 | O165: -2.78%
A166: 156 | B166: Others | C166: PCJEWELLER | D166: 299.85 | E166: 305.48 | F166: 292.47 | G166: 285.08 | H166: 272.07 | I166: 312.87 | J166: 325.88 | K166: 333.27 | L166: 318.5 | M166: 298.1 | N166: 8296500 | O166: 12.67%
A167: 157 | B167: Pharma | C167: PEL | D167: 2471.70 | E167: 2493.02 | F167: 2439.73 | G167: 2407.77 | H167: 2354.48 | I167: 2524.98 | J167: 2578.27 | K167: 2610.23 | L167: 2546.3 | M167: 2461.05 | N167: 1791464 | O167: -1.17%
A168: 158 | B168: Oil_Gas | C168: PETRONET | D168: 231.30 | E168: 231.90 | F168: 229.60 | G168: 227.90 | H168: 225.60 | I168: 233.60 | J168: 235.90 | K168: 237.60 | L168: 234.2 | M168: 230.2 | N168: 16308000 | O168: 1.93%
A169: 159 | B169: Finance | C169: PFC | D169: 86.25 | E169: 87.33 | F169: 84.72 | G169: 83.18 | H169: 80.57 | I169: 88.87 | J169: 91.48 | K169: 93.02 | L169: 89.95 | M169: 85.8 | N169: 70878000 | O169: 3.16%
A170: 160 | B170: FMCG | C170: PIDILITIND | D170: 961.20 | E170: 966.65 | F170: 950.10 | G170: 939.00 | H170: 922.45 | I170: 977.75 | J170: 994.30 | K170: 1005.40 | L170: 983.2 | M170: 955.55 | N170: 1704000 | O170: 2.10%
A171: 161 | B171: Banking | C171: PNB | D171: 94.85 | E171: 95.67 | F171: 93.73 | G171: 92.62 | H171: 90.68 | I171: 96.78 | J171: 98.72 | K171: 99.83 | L171: 97.6 | M171: 94.55 | N171: 70840000 | O171: -5.13%
A172: 162 | B172: Power | C172: POWERGRID | D172: 196.55 | E172: 197.63 | F172: 194.47 | G172: 192.38 | H172: 189.22 | I172: 199.72 | J172: 202.88 | K172: 204.97 | L172: 200.8 | M172: 195.55 | N172: 24380000 | O172: 2.92%
A173: 163 | B173: Power | C173: PTC | D173: 90.95 | E173: 92.10 | F173: 89.25 | G173: 87.55 | H173: 84.70 | I173: 93.80 | J173: 96.65 | K173: 98.35 | L173: 94.95 | M173: 90.4 | N173: 20720000 | O173: -1.22%
A174: 164 | B174: Others | C174: PVR | D174: 1262.75 | E174: 1268.50 | F174: 1248.35 | G174: 1233.95 | H174: 1213.80 | I174: 1282.90 | J174: 1303.05 | K174: 1317.45 | L174: 1288.65 | M174: 1254.1 | N174: 632400 | O174: -2.17%
A175: 165 | B175: Cement | C175: RAMCOCEM | D175: 759.50 | E175: 762.87 | F175: 752.78 | G175: 746.07 | H175: 735.98 | I175: 769.58 | J175: 779.67 | K175: 786.38 | L175: 772.95 | M175: 756.15 | N175: 959200 | O175: -2.84%
A176: 166 | B176: Others | C176: RAYMOND | D176: 937.95 | E176: 948.65 | F176: 924.30 | G176: 910.65 | H176: 886.30 | I176: 962.30 | J176: 986.65 | K176: 1000.30 | L176: 973 | M176: 935 | N176: 4722400 | O176: -0.14%
A177: 167 | B177: Banking | C177: RBLBANK | D177: 488.95 | E177: 492.30 | F177: 482.80 | G177: 476.65 | H177: 467.15 | I177: 498.45 | J177: 507.95 | K177: 514.10 | L177: 501.8 | M177: 486.15 | N177: 4242000 | O177: -1.03%
A178: 168 | B178: Telecom | C178: RCOM | D178: 22.45 | E178: 22.57 | F178: 21.58 | G178: 20.72 | H178: 19.73 | I178: 23.43 | J178: 24.42 | K178: 25.28 | L178: 23.55 | M178: 21.7 | N178: 98756000 | O178: 6.81%
A179: 169 | B179: Capital_Goods | C179: RNAVAL | D179: 30.25 | E179: 30.37 | F179: 28.78 | G179: 27.32 | H179: 25.73 | I179: 31.83 | J179: 33.42 | K179: 34.88 | L179: 31.95 | M179: 28.9 | N179: 40383000 | O179: 2.81%
A180: 170 | B180: Power | C180: RECLTD | D180: 128.05 | E180: 128.60 | F180: 126.60 | G180: 125.15 | H180: 123.15 | I180: 130.05 | J180: 132.05 | K180: 133.50 | L180: 130.6 | M180: 127.15 | N180: 34698000 | O180: 0.76%
A181: 171 | B181: Finance | C181: RELCAPITAL | D181: 436.55 | E181: 442.33 | F181: 428.22 | G181: 419.88 | H181: 405.77 | I181: 450.67 | J181: 464.78 | K181: 473.12 | L181: 456.45 | M181: 434 | N181: 11851500 | O181: -5.86%
A182: 172 | B182: Oil_Gas | C182: RELIANCE | D182: 895.55 | E182: 900.88 | F182: 888.07 | G182: 880.58 | H182: 867.77 | I182: 908.37 | J182: 921.18 | K182: 928.67 | L182: 913.7 | M182: 893.4 | N182: 54820000 | O182: -1.70%
A183: 173 | B183: Power | C183: RELINFRA | D183: 438.00 | E183: 443.42 | F183: 430.83 | G183: 423.67 | H183: 411.08 | I183: 450.58 | J183: 463.17 | K183: 470.33 | L183: 456 | M183: 436.25 | N183: 9895600 | O183: 1.24%
A184: 174 | B184: Others | C184: REPCOHOME | D184: 602.55 | E184: 598.17 | F184: 584.43 | G184: 566.32 | H184: 552.58 | I184: 616.28 | J184: 630.02 | K184: 648.13 | L184: 611.9 | M184: 580.05 | N184: 987300 | O184: -1.49%
A185: 175 | B185: Power | C185: RPOWER | D185: 42.70 | E185: 41.77 | F185: 39.13 | G185: 35.57 | H185: 32.93 | I185: 45.33 | J185: 47.97 | K185: 51.53 | L185: 44.4 | M185: 38.2 | N185: 62582000 | O185: 3.42%
A186: 176 | B186: Metals | C186: SAIL | D186: 72.60 | E186: 74.03 | F186: 70.82 | G186: 69.03 | H186: 65.82 | I186: 75.82 | J186: 79.03 | K186: 80.82 | L186: 77.25 | M186: 72.25 | N186: 93636000 | O186: 1.46%
A187: 177 | B187: Banking | C187: SBIN | D187: 247.60 | E187: 249.17 | F187: 244.43 | G187: 241.27 | H187: 236.53 | I187: 252.33 | J187: 257.07 | K187: 260.23 | L187: 253.9 | M187: 246 | N187: 78078000 | O187: -0.85%
A188: 178 | B188: Cement | C188: SHREECEM | D188: 16346.45 | E188: 16479.15 | F188: 16118.30 | G188: 15890.15 | H188: 15529.30 | I188: 16707.30 | J188: 17068.15 | K188: 17296.30 | L188: 16840 | M188: 16251 | N188: 57350 | O188: -0.69%
A189: 179 | B189: Capital_Goods | C189: SIEMENS | D189: 1121.65 | E189: 1121.17 | F189: 1104.38 | G189: 1087.12 | H189: 1070.33 | I189: 1138.43 | J189: 1155.22 | K189: 1172.48 | L189: 1137.95 | M189: 1103.9 | N189: 785000 | O189: 2.28%
A190: 180 | B190: Banking | C190: SOUTHBANK | D190: 23.85 | E190: 24.05 | F190: 23.45 | G190: 23.05 | H190: 22.45 | I190: 24.45 | J190: 25.05 | K190: 25.45 | L190: 24.65 | M190: 23.65 | N190: 153509112 | O190: -1.95%
A191: 181 | B191: Others | C191: SREINFRA | D191: 77.65 | E191: 78.67 | F191: 76.08 | G191: 74.52 | H191: 71.93 | I191: 80.23 | J191: 82.82 | K191: 84.38 | L191: 81.25 | M191: 77.1 | N191: 13380000 | O191: -3.67%
A192: 182 | B192: Textile | C192: SRF | D192: 2001.05 | E192: 2013.78 | F192: 1978.57 | G192: 1956.08 | H192: 1920.87 | I192: 2036.27 | J192: 2071.48 | K192: 2093.97 | L192: 2049 | M192: 1991.3 | N192: 495000 | O192: -27.26%
A193: 183 | B193: Finance | C193: SRTRANSFIN | D193: 1462.60 | E193: 1469.57 | F193: 1440.63 | G193: 1418.67 | H193: 1389.73 | I193: 1491.53 | J193: 1520.47 | K193: 1542.43 | L193: 1498.5 | M193: 1447.6 | N193: 2682600 | O193: 2.92%
A194: 184 | B194: Pharma | C194: STAR | D194: 694.30 | E194: 701.60 | F194: 683.20 | G194: 672.10 | H194: 653.70 | I194: 712.70 | J194: 731.10 | K194: 742.20 | L194: 720 | M194: 690.5 | N194: 2481000 | O194: -5.03%
A195: 185 | B195: Pharma | C195: SUNPHARMA | D195: 504.10 | E195: 507.78 | F195: 498.87 | G195: 493.63 | H195: 484.72 | I195: 513.02 | J195: 521.93 | K195: 527.17 | L195: 516.7 | M195: 502.55 | N195: 55382800 | O195: -0.52%
A196: 186 | B196: Media | C196: SUNTV | D196: 863.30 | E196: 874.03 | F196: 848.92 | G196: 834.53 | H196: 809.42 | I196: 888.42 | J196: 913.53 | K196: 927.92 | L196: 899.15 | M196: 859.65 | N196: 4516000 | O196: -2.86%
A197: 187 | B197: Power | C197: SUZLON | D197: 11.55 | E197: 11.68 | F197: 11.37 | G197: 11.18 | H197: 10.87 | I197: 11.87 | J197: 12.18 | K197: 12.37 | L197: 12 | M197: 11.5 | N197: 340445000 | O197: -0.12%
A198: 188 | B198: Banking | C198: SYNDIBANK | D198: 56.85 | E198: 57.48 | F198: 55.77 | G198: 54.68 | H198: 52.97 | I198: 58.57 | J198: 60.28 | K198: 61.37 | L198: 59.2 | M198: 56.4 | N198: 30204000 | O198: -1.44%
A199: 189 | B199: Fertilisers | C199: TATACHEM | D199: 709.70 | E199: 714.13 | F199: 703.67 | G199: 697.63 | H199: 687.17 | I199: 720.17 | J199: 730.63 | K199: 736.67 | L199: 724.6 | M199: 708.1 | N199: 5449500 | O199: -3.25%
A200: 190 | B200: Telecom | C200: TATACOMM | D200: 640.80 | E200: 647.22 | F200: 630.43 | G200: 620.07 | H200: 603.28 | I200: 657.58 | J200: 674.37 | K200: 684.73 | L200: 664 | M200: 636.85 | N200: 5766400 | O200: 0.57%
A201: 191 | B201: Technology | C201: TATAELXSI | D201: 1007.70 | E201: 1017.42 | F201: 990.33 | G201: 972.97 | H201: 945.88 | I201: 1034.78 | J201: 1061.87 | K201: 1079.23 | L201: 1044.5 | M201: 1000.05 | N201: 1724800 | O201: -0.05%
A202: 192 | B202: FMCG | C202: TATAGLOBAL | D202: 270.80 | E202: 273.60 | F202: 267.30 | G202: 263.80 | H202: 257.50 | I202: 277.10 | J202: 283.40 | K202: 286.90 | L202: 279.9 | M202: 270.1 | N202: 22693500 | O202: -1.94%
A203: 193 | B203: Automobile | C203: TATAMOTORS | D203: 356.10 | E203: 356.18 | F203: 347.47 | G203: 338.83 | H203: 330.12 | I203: 364.82 | J203: 373.53 | K203: 382.17 | L203: 364.9 | M203: 347.55 | N203: 69726000 | O203: 1.94%
A204: 194 | B204: Automobile | C204: TATAMTRDVR | D204: 199.55 | E204: 199.98 | F204: 195.27 | G204: 190.98 | H204: 186.27 | I204: 204.27 | J204: 208.98 | K204: 213.27 | L204: 204.7 | M204: 195.7 | N204: 27692500 | O204: -2.28%
A205: 195 | B205: Power | C205: TATAPOWER | D205: 83.15 | E205: 84.08 | F205: 81.87 | G205: 80.58 | H205: 78.37 | I205: 85.37 | J205: 87.58 | K205: 88.87 | L205: 86.3 | M205: 82.8 | N205: 53613000 | O205: 0.05%
A206: 196 | B206: Metals | C206: TATASTEEL | D206: 562.75 | E206: 571.83 | F206: 551.17 | G206: 539.58 | H206: 518.92 | I206: 583.42 | J206: 604.08 | K206: 615.67 | L206: 592.5 | M206: 560.25 | N206: 22377551 | O206: 5.02%
... 36 more rows

Sheet Cash Intra
M5: Back to Main Page
A6: FOR INTRA DAY TRADING | K6: =Main!B10 -> 2018-04-05
A8: Sr.no | B8: Scrip | C8: CLOSE RATE | D8: Pivot Point | E8: Supports | H8: Resistances
C9: Point | E9: S1 | F9: S2 | G9: S3 | H9: R1 | I9: R2 | J9: R3 | K9: HIGH | L9: LOW | M9: Total Trade Quanity in Lakhs
A10: 1 | B10: Nifty 50 | C10: 10128.4 | D10: 10173.18 | E10: 10066.52 | F10: 10004.63 | G10: 9897.97 | H10: 10235.07 | I10: 10341.73 | J10: 10403.62 | K10: 10279.85 | L10: 10111.3
A11: 2 | B11: Nifty Bank | C11: 24129.5 | D11: 24294.53 | E11: 23922.77 | F11: 23716.03 | G11: 23344.27 | H11: 24501.27 | I11: 24873.03 | J11: 25079.77 | K11: 24666.3 | L11: 24087.8
A12: 3 | B12: Nifty CPSE | C12: 2391.45 | D12: 2401.98 | E12: 2372.72 | F12: 2353.98 | G12: 2324.72 | H12: 2420.72 | I12: 2449.98 | J12: 2468.72 | K12: 2431.25 | L12: 2383.25
A13: 4 | B13: Nifty Infra | C13: 3352.45 | D13: 3371.98 | E13: 3327.37 | F13: 3302.28 | G13: 3257.67 | H13: 3397.07 | I13: 3441.68 | J13: 3466.77 | K13: 3416.6 | L13: 3346.9
A14: 5 | B14: Nifty IT | C14: 12490.85 | D14: 12540.97 | E14: 12392.03 | F14: 12293.22 | G14: 12144.28 | H14: 12639.78 | I14: 12788.72 | J14: 12887.53 | K14: 12689.9 | L14: 12442.15
A15: 6 | B15: Nifty PSE | C15: 3820.8 | D15: 3842.92 | E15: 3792.63 | F15: 3764.47 | G15: 3714.18 | H15: 3871.08 | I15: 3921.37 | J15: 3949.53 | K15: 3893.2 | L15: 3814.75
A16: 7 | B16: Nifty Midcap 50 | C16: 5084.2 | D16: 5118.48 | E16: 5041.37 | F16: 4998.53 | G16: 4921.42 | H16: 5161.32 | I16: 5238.43 | J16: 5281.27 | K16: 5195.6 | L16: 5075.65
A17: 8 | B17: ABB | C17: 1271.35 | D17: 1279.63 | E17: 1259.27 | F17: 1247.18 | G17: 1226.82 | H17: 1291.72 | I17: 1312.08 | J17: 1324.17 | K17: 1300 | L17: 1267.55 | M17: 0.44414
A18: 9 | B18: ACC | C18: 1530 | D18: 1544.23 | E18: 1511.62 | F18: 1493.23 | G18: 1460.62 | H18: 1562.62 | I18: 1595.23 | J18: 1613.62 | K18: 1576.85 | L18: 1525.85 | M18: 1.71614
A19: 10 | B19: AIAENG | C19: 1439.85 | D19: 1433.35 | E19: 1420.70 | F19: 1401.55 | G19: 1388.90 | H19: 1452.50 | I19: 1465.15 | J19: 1484.30 | K19: 1446 | L19: 1414.2 | M19: 0.07933
A20: 11 | B20: AUBANK | C20: 635.9 | D20: 634.95 | E20: 626.05 | F20: 616.20 | G20: 607.30 | H20: 644.80 | I20: 653.70 | J20: 663.55 | K20: 643.85 | L20: 625.1 | M20: 20.49211
A21: 12 | B21: ADANIENT | C21: 151.45 | D21: 154.98 | E21: 143.57 | F21: 135.68 | G21: 124.27 | H21: 162.87 | I21: 174.28 | J21: 182.17 | K21: 166.4 | L21: 147.1 | M21: 333.52404
A22: 13 | B22: ADANIPORTS | C22: 367.8 | D22: 368.42 | E22: 363.13 | F22: 358.47 | G22: 353.18 | H22: 373.08 | I22: 378.37 | J22: 383.03 | K22: 373.7 | L22: 363.75 | M22: 56.11445
A23: 14 | B23: ADANIPOWER | C23: 25.05 | D23: 25.38 | E23: 24.42 | F23: 23.78 | G23: 22.82 | H23: 26.02 | I23: 26.98 | J23: 27.62 | K23: 26.35 | L23: 24.75 | M23: 264.72761
A24: 15 | B24: ABFRL | C24: 151 | D24: 150.23 | E24: 147.67 | F24: 144.33 | G24: 141.77 | H24: 153.57 | I24: 156.13 | J24: 159.47 | K24: 152.8 | L24: 146.9 | M24: 8.3568
A25: 16 | B25: AJANTPHARM | C25: 1379.85 | D25: 1388.92 | E25: 1360.38 | F25: 1340.92 | G25: 1312.38 | H25: 1408.38 | I25: 1436.92 | J25: 1456.38 | K25: 1417.45 | L25: 1369.45 | M25: 1.36281
A26: 17 | B26: ALKEM | C26: 1892.6 | D26: 1901.50 | E26: 1876.10 | F26: 1859.60 | G26: 1834.20 | H26: 1918.00 | I26: 1943.40 | J26: 1959.90 | K26: 1926.9 | L26: 1885 | M26: 0.16191
A27: 18 | B27: AMARAJABAT | C27: 798.45 | D27: 804.80 | E27: 787.65 | F27: 776.85 | G27: 759.70 | H27: 815.60 | I27: 832.75 | J27: 843.55 | K27: 821.95 | L27: 794 | M27: 4.80177
A28: 19 | B28: AMBUJACEM | C28: 236.6 | D28: 238.87 | E28: 233.73 | F28: 230.87 | G28: 225.73 | H28: 241.73 | I28: 246.87 | J28: 249.73 | K28: 244 | L28: 236 | M28: 16.40569
A29: 20 | B29: APOLLOHOSP | C29: 1066.95 | D29: 1077.33 | E29: 1050.62 | F29: 1034.28 | G29: 1007.57 | H29: 1093.67 | I29: 1120.38 | J29: 1136.72 | K29: 1104.05 | L29: 1061 | M29: 6.22425
A30: 21 | B30: APOLLOTYRE | C30: 282.15 | D30: 283.90 | E30: 278.75 | F30: 275.35 | G30: 270.20 | H30: 287.30 | I30: 292.45 | J30: 295.85 | K30: 289.05 | L30: 280.5 | M30: 27.83007
A31: 22 | B31: ARVIND | C31: 399.85 | D31: 402.08 | E31: 393.62 | F31: 387.38 | G31: 378.92 | H31: 408.32 | I31: 416.78 | J31: 423.02 | K31: 410.55 | L31: 395.85 | M31: 21.17047
A32: 23 | B32: ASHOKLEY | C32: 145.85 | D32: 147.17 | E32: 143.73 | F32: 141.62 | G32: 138.18 | H32: 149.28 | I32: 152.72 | J32: 154.83 | K32: 150.6 | L32: 145.05 | M32: 204.49016
A33: 24 | B33: ASIANPAINT | C33: 1136 | D33: 1139.90 | E33: 1122.10 | F33: 1108.20 | G33: 1090.40 | H33: 1153.80 | I33: 1171.60 | J33: 1185.50 | K33: 1157.7 | L33: 1126 | M33: 6.07619
A34: 25 | B34: AUROPHARMA | C34: 590.45 | D34: 591.65 | E34: 585.80 | F34: 581.15 | G34: 575.30 | H34: 596.30 | I34: 602.15 | J34: 606.80 | K34: 597.5 | L34: 587 | M34: 14.51755
A35: 26 | B35: DMART | C35: 1359.15 | D35: 1364.78 | E35: 1344.37 | F35: 1329.58 | G35: 1309.17 | H35: 1379.57 | I35: 1399.98 | J35: 1414.77 | K35: 1385.2 | L35: 1350 | M35: 6.82255
A36: 27 | B36: AXISBANK | C36: 492.25 | D36: 495.67 | E36: 486.83 | F36: 481.42 | G36: 472.58 | H36: 501.08 | I36: 509.92 | J36: 515.33 | K36: 504.5 | L36: 490.25 | M36: 60.47813
A37: 28 | B37: BAJAJ-AUTO | C37: 2766 | D37: 2776.08 | E37: 2736.17 | F37: 2706.33 | G37: 2666.42 | H37: 2805.92 | I37: 2845.83 | J37: 2875.67 | K37: 2816 | L37: 2746.25 | M37: 3.08672
A38: 29 | B38: BAJFINANCE | C38: 1850.2 | D38: 1852.17 | E38: 1834.73 | F38: 1819.27 | G38: 1801.83 | H38: 1867.63 | I38: 1885.07 | J38: 1900.53 | K38: 1869.6 | L38: 1836.7 | M38: 17.93441
A39: 30 | B39: BAJAJFINSV | C39: 5228.55 | D39: 5292.32 | E39: 5139.03 | F39: 5049.52 | G39: 4896.23 | H39: 5381.83 | I39: 5535.12 | J39: 5624.63 | K39: 5445.6 | L39: 5202.8 | M39: 1.8878
A40: 31 | B40: BALKRISIND | C40: 1151.45 | D40: 1154.45 | E40: 1141.05 | F40: 1130.65 | G40: 1117.25 | H40: 1164.85 | I40: 1178.25 | J40: 1188.65 | K40: 1167.85 | L40: 1144.05 | M40: 4.43617
A41: 32 | B41: BANKBARODA | C41: 139.9 | D41: 141.95 | E41: 136.95 | F41: 134.00 | G41: 129.00 | H41: 144.90 | I41: 149.90 | J41: 152.85 | K41: 146.95 | L41: 139 | M41: 117.2995
A42: 33 | B42: BANKINDIA | C42: 103.45 | D42: 105.27 | E42: 101.23 | F42: 99.02 | G42: 94.98 | H42: 107.48 | I42: 111.52 | J42: 113.73 | K42: 109.3 | L42: 103.05 | M42: 84.98931
A43: 34 | B43: BATAINDIA | C43: 744.55 | D43: 752.65 | E43: 731.90 | F43: 719.25 | G43: 698.50 | H43: 765.30 | I43: 786.05 | J43: 798.70 | K43: 773.4 | L43: 740 | M43: 15.1948
A44: 35 | B44: BERGEPAINT | C44: 258.6 | D44: 258.87 | E44: 254.93 | F44: 251.27 | G44: 247.33 | H44: 262.53 | I44: 266.47 | J44: 270.13 | K44: 262.8 | L44: 255.2 | M44: 5.0777
A45: 36 | B45: BEL | C45: 143.75 | D45: 145.17 | E45: 141.58 | F45: 139.42 | G45: 135.83 | H45: 147.33 | I45: 150.92 | J45: 153.08 | K45: 148.75 | L45: 143 | M45: 39.13688
A46: 37 | B46: BHARATFIN | C46: 1101.35 | D46: 1107.57 | E46: 1090.13 | F46: 1078.92 | G46: 1061.48 | H46: 1118.78 | I46: 1136.22 | J46: 1147.43 | K46: 1125 | L46: 1096.35 | M46: 5.21334
A47: 38 | B47: BHARATFORG | C47: 716.45 | D47: 719.60 | E47: 704.70 | F47: 692.95 | G47: 678.05 | H47: 731.35 | I47: 746.25 | J47: 758.00 | K47: 734.5 | L47: 707.85 | M47: 30.94364
A48: 39 | B48: BHEL | C48: 85.15 | D48: 85.82 | E48: 84.03 | F48: 82.92 | G48: 81.13 | H48: 86.93 | I48: 88.72 | J48: 89.83 | K48: 87.6 | L48: 84.7 | M48: 104.85067
A49: 40 | B49: BPCL | C49: 414.95 | D49: 419.25 | E49: 409.50 | F49: 404.05 | G49: 394.30 | H49: 424.70 | I49: 434.45 | J49: 439.90 | K49: 429 | L49: 413.8 | M49: 24.51414
A50: 41 | B50: BHARTIARTL | C50: 395.05 | D50: 397.60 | E50: 390.40 | F50: 385.75 | G50: 378.55 | H50: 402.25 | I50: 409.45 | J50: 414.10 | K50: 404.8 | L50: 392.95 | M50: 36.27666
A51: 42 | B51: INFRATEL | C51: 336.95 | D51: 336.97 | E51: 334.98 | F51: 333.02 | G51: 331.03 | H51: 338.93 | I51: 340.92 | J51: 342.88 | K51: 338.95 | L51: 335 | M51: 13.85801
A52: 43 | B52: BIOCON | C52: 598.3 | D52: 602.68 | E52: 591.37 | F52: 584.43 | G52: 573.12 | H52: 609.62 | I52: 620.93 | J52: 627.87 | K52: 614 | L52: 595.75 | M52: 15.63949
A53: 44 | B53: BOSCHLTD | C53: 19685.45 | D53: 19578.95 | E53: 19182.90 | F53: 18680.35 | G53: 18284.30 | H53: 20081.50 | I53: 20477.55 | J53: 20980.10 | K53: 19975 | L53: 19076.4 | M53: 0.32374
A54: 45 | B54: BRITANNIA | C54: 5024.4 | D54: 5033.40 | E54: 4982.00 | F54: 4939.60 | G54: 4888.20 | H54: 5075.80 | I54: 5127.20 | J54: 5169.60 | K54: 5084.8 | L54: 4991 | M54: 1.3419
A55: 46 | B55: CRISIL | C55: 1870.4 | D55: 1867.48 | E55: 1846.97 | F55: 1823.53 | G55: 1803.02 | H55: 1890.92 | I55: 1911.43 | J55: 1934.87 | K55: 1888 | L55: 1844.05 | M55: 0.38343
A56: 47 | B56: CADILAHC | C56: 394.7 | D56: 394.83 | E56: 389.87 | F56: 385.03 | G56: 380.07 | H56: 399.67 | I56: 404.63 | J56: 409.47 | K56: 399.8 | L56: 390 | M56: 24.80827
A57: 48 | B57: CANBK | C57: 262.5 | D57: 265.70 | E57: 257.90 | F57: 253.30 | G57: 245.50 | H57: 270.30 | I57: 278.10 | J57: 282.70 | K57: 273.5 | L57: 261.1 | M57: 72.20247
A58: 49 | B58: CASTROLIND | C58: 207.75 | D58: 209.22 | E58: 204.48 | F58: 201.22 | G58: 196.48 | H58: 212.48 | I58: 217.22 | J58: 220.48 | K58: 213.95 | L58: 205.95 | M58: 29.27928
A59: 50 | B59: CENTRALBK | C59: 69.6 | D59: 70.23 | E59: 68.72 | F59: 67.83 | G59: 66.32 | H59: 71.12 | I59: 72.63 | J59: 73.52 | K59: 71.75 | L59: 69.35 | M59: 14.79259
A60: 51 | B60: CENTURYTEX | C60: 1166.05 | D60: 1181.10 | E60: 1145.20 | F60: 1124.35 | G60: 1088.45 | H60: 1201.95 | I60: 1237.85 | J60: 1258.70 | K60: 1217 | L60: 1160.25 | M60: 5.44943
A61: 52 | B61: CHOLAFIN | C61: 1490.1 | D61: 1502.83 | E61: 1466.67 | F61: 1443.23 | G61: 1407.07 | H61: 1526.27 | I61: 1562.43 | J61: 1585.87 | K61: 1539 | L61: 1479.4 | M61: 3.19222
A62: 53 | B62: CIPLA | C62: 569.8 | D62: 569.92 | E62: 564.38 | F62: 558.97 | G62: 553.43 | H62: 575.33 | I62: 580.87 | J62: 586.28 | K62: 575.45 | L62: 564.5 | M62: 18.52997
A63: 54 | B63: COALINDIA | C63: 274.55 | D63: 275.55 | E63: 272.20 | F63: 269.85 | G63: 266.50 | H63: 277.90 | I63: 281.25 | J63: 283.60 | K63: 278.9 | L63: 273.2 | M63: 29.46453
A64: 55 | B64: COLPAL | C64: 1091.4 | D64: 1088.48 | E64: 1079.97 | F64: 1068.53 | G64: 1060.02 | H64: 1099.92 | I64: 1108.43 | J64: 1119.87 | K64: 1097 | L64: 1077.05 | M64: 3.0346
A65: 56 | B65: CONCOR | C65: 1244.65 | D65: 1246.35 | E65: 1215.30 | F65: 1185.95 | G65: 1154.90 | H65: 1275.70 | I65: 1306.75 | J65: 1336.10 | K65: 1277.4 | L65: 1217 | M65: 2.58295
A66: 57 | B66: COROMANDEL | C66: 530.35 | D66: 533.27 | E66: 522.08 | F66: 513.82 | G66: 502.63 | H66: 541.53 | I66: 552.72 | J66: 560.98 | K66: 544.45 | L66: 525 | M66: 0.80007
A67: 58 | B67: CROMPTON | C67: 229.3 | D67: 230.63 | E67: 226.67 | F67: 224.03 | G67: 220.07 | H67: 233.27 | I67: 237.23 | J67: 239.87 | K67: 234.6 | L67: 228 | M67: 2.43229
A68: 59 | B68: CUMMINSIND | C68: 735.35 | D68: 740.57 | E68: 726.73 | F68: 718.12 | G68: 704.28 | H68: 749.18 | I68: 763.02 | J68: 771.63 | K68: 754.4 | L68: 731.95 | M68: 4.28216
A69: 60 | B69: DLF | C69: 198.6 | D69: 201.48 | E69: 194.87 | F69: 191.13 | G69: 184.52 | H69: 205.22 | I69: 211.83 | J69: 215.57 | K69: 208.1 | L69: 197.75 | M69: 88.85029
A70: 61 | B70: DABUR | C70: 335.5 | D70: 337.00 | E70: 332.50 | F70: 329.50 | G70: 325.00 | H70: 340.00 | I70: 344.50 | J70: 347.50 | K70: 341.5 | L70: 334 | M70: 14.0785
A71: 62 | B71: DALMIABHA | C71: 2896.7 | D71: 2896.93 | E71: 2856.22 | F71: 2815.73 | G71: 2775.02 | H71: 2937.42 | I71: 2978.13 | J71: 3018.62 | K71: 2937.65 | L71: 2856.45 | M71: 1.08713
A72: 63 | B72: DHFL | C72: 521.35 | D72: 527.62 | E72: 511.93 | F72: 502.52 | G72: 486.83 | H72: 537.03 | I72: 552.72 | J72: 562.13 | K72: 543.3 | L72: 518.2 | M72: 49.59051
A73: 64 | B73: DISHTV | C73: 70.65 | D73: 71.08 | E73: 69.37 | F73: 68.08 | G73: 66.37 | H73: 72.37 | I73: 74.08 | J73: 75.37 | K73: 72.8 | L73: 69.8 | M73: 56.47565
A74: 65 | B74: DIVISLAB | C74: 1096.75 | D74: 1108.83 | E74: 1075.87 | F74: 1054.98 | G74: 1022.02 | H74: 1129.72 | I74: 1162.68 | J74: 1183.57 | K74: 1141.8 | L74: 1087.95 | M74: 6.19642
A75: 66 | B75: LALPATHLAB | C75: 852.1 | D75: 859.03 | E75: 835.07 | F75: 818.03 | G75: 794.07 | H75: 876.07 | I75: 900.03 | J75: 917.07 | K75: 883 | L75: 842 | M75: 3.25197
A76: 67 | B76: DRREDDY | C76: 2091.4 | D76: 2098.87 | E76: 2072.48 | F76: 2053.57 | G76: 2027.18 | H76: 2117.78 | I76: 2144.17 | J76: 2163.08 | K76: 2125.25 | L76: 2079.95 | M76: 3.53719
A77: 68 | B77: EDELWEISS | C77: 245.25 | D77: 249.03 | E77: 239.37 | F77: 233.48 | G77: 223.82 | H77: 254.92 | I77: 264.58 | J77: 270.47 | K77: 258.7 | L77: 243.15 | M77: 24.00545
A78: 69 | B78: EICHERMOT | C78: 28934.25 | D78: 28861.63 | E78: 28473.27 | F78: 28012.28 | G78: 27623.92 | H78: 29322.62 | I78: 29710.98 | J78: 30171.97 | K78: 29250 | L78: 28400.65 | M78: 0.86068
A79: 70 | B79: EMAMILTD | C79: 1093.75 | D79: 1093.88 | E79: 1079.87 | F79: 1065.98 | G79: 1051.97 | H79: 1107.77 | I79: 1121.78 | J79: 1135.67 | K79: 1107.9 | L79: 1080 | M79: 1.37215
A80: 71 | B80: ENDURANCE | C80: 1272.85 | D80: 1274.17 | E80: 1258.58 | F80: 1244.32 | G80: 1228.73 | H80: 1288.43 | I80: 1304.02 | J80: 1318.28 | K80: 1289.75 | L80: 1259.9 | M80: 0.21761
A81: 72 | B81: ENGINERSIN | C81: 162.85 | D81: 163.62 | E81: 161.73 | F81: 160.62 | G81: 158.73 | H81: 164.73 | I81: 166.62 | J81: 167.73 | K81: 165.5 | L81: 162.5 | M81: 16.93949
A82: 73 | B82: EXIDEIND | C82: 230.95 | D82: 232.42 | E82: 228.53 | F82: 226.12 | G82: 222.23 | H82: 234.83 | I82: 238.72 | J82: 241.13 | K82: 236.3 | L82: 230 | M82: 32.20953
A83: 74 | B83: FEDERALBNK | C83: 91.4 | D83: 92.20 | E83: 90.45 | F83: 89.50 | G83: 87.75 | H83: 93.15 | I83: 94.90 | J83: 95.85 | K83: 93.95 | L83: 91.25 | M83: 110.87955
A84: 75 | B84: GAIL | C84: 328.25 | D84: 327.08 | E84: 324.17 | F84: 320.08 | G84: 317.17 | H84: 331.17 | I84: 334.08 | J84: 338.17 | K84: 330 | L84: 323 | M84: 29.67003
A85: 76 | B85: GMRINFRA | C85: 18.25 | D85: 18.53 | E85: 17.82 | F85: 17.38 | G85: 16.67 | H85: 18.97 | I85: 19.68 | J85: 20.12 | K85: 19.25 | L85: 18.1 | M85: 521.59069
A86: 77 | B86: GSKCONS | C86: 6056.6 | D86: 6072.17 | E86: 5995.43 | F86: 5934.27 | G86: 5857.53 | H86: 6133.33 | I86: 6210.07 | J86: 6271.23 | K86: 6148.9 | L86: 6011 | M86: 0.59115
A87: 78 | B87: GLAXO | C87: 2191.85 | D87: 2184.07 | E87: 2165.88 | F87: 2139.92 | G87: 2121.73 | H87: 2210.03 | I87: 2228.22 | J87: 2254.18 | K87: 2202.25 | L87: 2158.1 | M87: 0.06501
A88: 79 | B88: GLENMARK | C88: 548.4 | D88: 550.48 | E88: 543.02 | F88: 537.63 | G88: 530.17 | H88: 555.87 | I88: 563.33 | J88: 568.72 | K88: 557.95 | L88: 545.1 | M88: 5.69495
A89: 80 | B89: GODREJCP | C89: 1085.2 | D89: 1088.20 | E89: 1068.05 | F89: 1050.90 | G89: 1030.75 | H89: 1105.35 | I89: 1125.50 | J89: 1142.65 | K89: 1108.35 | L89: 1071.05 | M89: 4.22112
A90: 81 | B90: GODREJIND | C90: 534.4 | D90: 541.02 | E90: 524.13 | F90: 513.87 | G90: 496.98 | H90: 551.28 | I90: 568.17 | J90: 578.43 | K90: 557.9 | L90: 530.75 | M90: 16.85553
A91: 82 | B91: GRUH | C91: 598.25 | D91: 598.55 | E91: 590.70 | F91: 583.15 | G91: 575.30 | H91: 606.10 | I91: 613.95 | J91: 621.50 | K91: 606.4 | L91: 591 | M91: 2.75293
A92: 83 | B92: GPPL | C92: 140 | D92: 141.38 | E92: 137.82 | F92: 135.63 | G92: 132.07 | H92: 143.57 | I92: 147.13 | J92: 149.32 | K92: 144.95 | L92: 139.2 | M92: 2.05139
A93: 84 | B93: GSPL | C93: 184.85 | D93: 184.80 | E93: 182.15 | F93: 179.45 | G93: 176.80 | H93: 187.50 | I93: 190.15 | J93: 192.85 | K93: 187.45 | L93: 182.1 | M93: 5.41353
A94: 85 | B94: HCLTECH | C94: 959.25 | D94: 963.33 | E94: 945.42 | F94: 931.58 | G94: 913.67 | H94: 977.17 | I94: 995.08 | J94: 1008.92 | K94: 981.25 | L94: 949.5 | M94: 9.0239
A95: 86 | B95: HDFCBANK | C95: 1883.25 | D95: 1895.55 | E95: 1866.15 | F95: 1849.05 | G95: 1819.65 | H95: 1912.65 | I95: 1942.05 | J95: 1959.15 | K95: 1924.95 | L95: 1878.45 | M95: 9.28527
A96: 87 | B96: HAVELLS | C96: 504.35 | D96: 506.78 | E96: 500.57 | F96: 496.78 | G96: 490.57 | H96: 510.57 | I96: 516.78 | J96: 520.57 | K96: 513 | L96: 503 | M96: 19.06614
A97: 88 | B97: HEROMOTOCO | C97: 3667.15 | D97: 3663.05 | E97: 3631.10 | F97: 3595.05 | G97: 3563.10 | H97: 3699.10 | I97: 3731.05 | J97: 3767.10 | K97: 3695 | L97: 3627 | M97: 5.26063
A98: 89 | B98: HEXAWARE | C98: 396.2 | D98: 402.75 | E98: 386.50 | F98: 376.80 | G98: 360.55 | H98: 412.45 | I98: 428.70 | J98: 438.40 | K98: 419 | L98: 393.05 | M98: 24.61468
A99: 90 | B99: HINDALCO | C99: 200.8 | D99: 203.63 | E99: 197.17 | F99: 193.53 | G99: 187.07 | H99: 207.27 | I99: 213.73 | J99: 217.37 | K99: 210.1 | L99: 200 | M99: 177.52702
A100: 91 | B100: HINDPETRO | C100: 344.2 | D100: 347.43 | E100: 339.97 | F100: 335.73 | G100: 328.27 | H100: 351.67 | I100: 359.13 | J100: 363.37 | K100: 354.9 | L100: 343.2 | M100: 21.16822
A101: 92 | B101: HINDUNILVR | C101: 1357.45 | D101: 1352.33 | E101: 1344.67 | F101: 1331.88 | G101: 1324.22 | H101: 1365.12 | I101: 1372.78 | J101: 1385.57 | K101: 1360 | L101: 1339.55 | M101: 9.12607
A102: 93 | B102: HINDZINC | C102: 307.25 | D102: 307.47 | E102: 304.93 | F102: 302.62 | G102: 300.08 | H102: 309.78 | I102: 312.32 | J102: 314.63 | K102: 310 | L102: 305.15 | M102: 27.84661
A103: 94 | B103: HUDCO | C103: 69.4 | D103: 70.15 | E103: 68.05 | F103: 66.70 | G103: 64.60 | H103: 71.50 | I103: 73.60 | J103: 74.95 | K103: 72.25 | L103: 68.8 | M103: 16.56802
A104: 95 | B104: HDFC | C104: 1803.3 | D104: 1809.03 | E104: 1786.27 | F104: 1769.23 | G104: 1746.47 | H104: 1826.07 | I104: 1848.83 | J104: 1865.87 | K104: 1831.8 | L104: 1792 | M104: 22.68911
A105: 96 | B105: ITC | C105: 258.6 | D105: 258.50 | E105: 257.20 | F105: 255.80 | G105: 254.50 | H105: 259.90 | I105: 261.20 | J105: 262.60 | K105: 259.8 | L105: 257.1 | M105: 83.92947
A106: 97 | B106: ICICIBANK | C106: 268.65 | D106: 269.15 | E106: 265.00 | F106: 261.35 | G106: 257.20 | H106: 272.80 | I106: 276.95 | J106: 280.60 | K106: 273.3 | L106: 265.5 | M106: 334.86876
A107: 98 | B107: ICICIPRULI | C107: 388.45 | D107: 391.52 | E107: 382.08 | F107: 375.72 | G107: 366.28 | H107: 397.88 | I107: 407.32 | J107: 413.68 | K107: 400.95 | L107: 385.15 | M107: 16.76869
A108: 99 | B108: IDBI | C108: 70 | D108: 71.10 | E108: 68.40 | F108: 66.80 | G108: 64.10 | H108: 72.70 | I108: 75.40 | J108: 77.00 | K108: 73.8 | L108: 69.5 | M108: 322.89138
A109: 100 | B109: IDFCBANK | C109: 48.25 | D109: 48.57 | E109: 47.73 | F109: 47.22 | G109: 46.38 | H109: 49.08 | I109: 49.92 | J109: 50.43 | K109: 49.4 | L109: 48.05 | M109: 55.79913
A110: 101 | B110: IDFC | C110: 50.75 | D110: 51.23 | E110: 50.02 | F110: 49.28 | G110: 48.07 | H110: 51.97 | I110: 53.18 | J110: 53.92 | K110: 52.45 | L110: 50.5 | M110: 36.17688
A111: 102 | B111: IRB | C111: 234.8 | D111: 237.68 | E111: 230.92 | F111: 227.03 | G111: 220.27 | H111: 241.57 | I111: 248.33 | J111: 252.22 | K111: 244.45 | L111: 233.8 | M111: 19.75047
A112: 103 | B112: IDEA | C112: 76.6 | D112: 76.87 | E112: 75.33 | F112: 74.07 | G112: 72.53 | H112: 78.13 | I112: 79.67 | J112: 80.93 | K112: 78.4 | L112: 75.6 | M112: 76.26895
A113: 104 | B113: IBULHSGFIN | C113: 1291.8 | D113: 1294.48 | E113: 1275.32 | F113: 1258.83 | G113: 1239.67 | H113: 1310.97 | I113: 1330.13 | J113: 1346.62 | K113: 1313.65 | L113: 1278 | M113: 33.74901
A114: 105 | B114: INDIANB | C114: 302.9 | D114: 304.97 | E114: 297.08 | F114: 291.27 | G114: 283.38 | H114: 310.78 | I114: 318.67 | J114: 324.48 | K114: 312.85 | L114: 299.15 | M114: 12.8375
A115: 106 | B115: INDHOTEL | C115: 136.15 | D115: 137.80 | E115: 133.90 | F115: 131.65 | G115: 127.75 | H115: 140.05 | I115: 143.95 | J115: 146.20 | K115: 141.7 | L115: 135.55 | M115: 15.98217
A116: 107 | B116: IOC | C116: 171.15 | D116: 172.07 | E116: 169.23 | F116: 167.32 | G116: 164.48 | H116: 173.98 | I116: 176.82 | J116: 178.73 | K116: 174.9 | L116: 170.15 | M116: 57.53755
A117: 108 | B117: IGL | C117: 281.25 | D117: 282.38 | E117: 277.87 | F117: 274.48 | G117: 269.97 | H117: 285.77 | I117: 290.28 | J117: 293.67 | K117: 286.9 | L117: 279 | M117: 26.39947
A118: 109 | B118: INDUSINDBK | C118: 1799.35 | D118: 1810.47 | E118: 1781.48 | F118: 1763.62 | G118: 1734.63 | H118: 1828.33 | I118: 1857.32 | J118: 1875.18 | K118: 1839.45 | L118: 1792.6 | M118: 7.32382
A119: 110 | B119: NAUKRI | C119: 1220.05 | D119: 1224.17 | E119: 1206.83 | F119: 1193.62 | G119: 1176.28 | H119: 1237.38 | I119: 1254.72 | J119: 1267.93 | K119: 1241.5 | L119: 1210.95 | M119: 0.13403
A120: 111 | B120: INFY | C120: 1124.2 | D120: 1129.58 | E120: 1114.62 | F120: 1105.03 | G120: 1090.07 | H120: 1139.17 | I120: 1154.13 | J120: 1163.72 | K120: 1144.55 | L120: 1120 | M120: 24.06651
A121: 112 | B121: INDIGO | C121: 1387.4 | D121: 1392.22 | E121: 1366.48 | F121: 1345.57 | G121: 1319.83 | H121: 1413.13 | I121: 1438.87 | J121: 1459.78 | K121: 1417.95 | L121: 1371.3 | M121: 13.41132
A122: 113 | B122: IPCALAB | C122: 671.95 | D122: 677.17 | E122: 661.38 | F122: 650.82 | G122: 635.03 | H122: 687.73 | I122: 703.52 | J122: 714.08 | K122: 692.95 | L122: 666.6 | M122: 2.57577
A123: 114 | B123: JSWENERGY | C123: 80.95 | D123: 80.92 | E123: 79.63 | F123: 78.32 | G123: 77.03 | H123: 82.23 | I123: 83.52 | J123: 84.83 | K123: 82.2 | L123: 79.6 | M123: 45.97402
A124: 115 | B124: JSWSTEEL | C124: 295.85 | D124: 298.92 | E124: 290.58 | F124: 285.32 | G124: 276.98 | H124: 304.18 | I124: 312.52 | J124: 317.78 | K124: 307.25 | L124: 293.65 | M124: 55.61514
A125: 116 | B125: JINDALSTEL | C125: 219.6 | D125: 223.78 | E125: 213.82 | F125: 208.03 | G125: 198.07 | H125: 229.57 | I125: 239.53 | J125: 245.32 | K125: 233.75 | L125: 218 | M125: 110.28147
A126: 117 | B126: JUBLFOOD | C126: 2309.3 | D126: 2316.92 | E126: 2288.83 | F126: 2268.37 | G126: 2240.28 | H126: 2337.38 | I126: 2365.47 | J126: 2385.93 | K126: 2345 | L126: 2296.45 | M126: 7.08423
A127: 118 | B127: JUBILANT | C127: 824.15 | D127: 830.88 | E127: 811.77 | F127: 799.38 | G127: 780.27 | H127: 843.27 | I127: 862.38 | J127: 874.77 | K127: 850 | L127: 818.5 | M127: 2.77187
A128: 119 | B128: KARURVYSYA | C128: 102.05 | D128: 103.07 | E128: 100.63 | F128: 99.22 | G128: 96.78 | H128: 104.48 | I128: 106.92 | J128: 108.33 | K128: 105.5 | L128: 101.65 | M128: 6.22219
A129: 120 | B129: KOTAKBANK | C129: 1078.3 | D129: 1088.37 | E129: 1064.93 | F129: 1051.57 | G129: 1028.13 | H129: 1101.73 | I129: 1125.17 | J129: 1138.53 | K129: 1111.8 | L129: 1075 | M129: 13.05078
A130: 121 | B130: L&TFH | C130: 161.6 | D130: 162.32 | E130: 158.88 | F130: 156.17 | G130: 152.73 | H130: 165.03 | I130: 168.47 | J130: 171.18 | K130: 165.75 | L130: 159.6 | M130: 39.67066
A131: 122 | B131: LICHSGFIN | C131: 535.2 | D131: 541.53 | E131: 526.27 | F131: 517.33 | G131: 502.07 | H131: 550.47 | I131: 565.73 | J131: 574.67 | K131: 556.8 | L131: 532.6 | M131: 12.41827
A132: 123 | B132: LT | C132: 1296.15 | D132: 1306.35 | E132: 1280.00 | F132: 1263.85 | G132: 1237.50 | H132: 1322.50 | I132: 1348.85 | J132: 1365.00 | K132: 1332.7 | L132: 1290.2 | M132: 12.85513
A133: 124 | B133: LUPIN | C133: 775.2 | D133: 780.87 | E133: 765.43 | F133: 755.67 | G133: 740.23 | H133: 790.63 | I133: 806.07 | J133: 815.83 | K133: 796.3 | L133: 771.1 | M133: 14.80947
A134: 125 | B134: MRF | C134: 74734.2 | D134: 74838.05 | E134: 73642.10 | F134: 72550.00 | G134: 71354.05 | H134: 75930.15 | I134: 77126.10 | J134: 78218.20 | K134: 76034 | L134: 73745.95 | M134: 0.11549
A135: 126 | B135: MGL | C135: 988.4 | D135: 998.42 | E135: 973.43 | F135: 958.47 | G135: 933.48 | H135: 1013.38 | I135: 1038.37 | J135: 1053.33 | K135: 1023.4 | L135: 983.45 | M135: 1.16521
A136: 127 | B136: M&MFIN | C136: 465.8 | D136: 469.52 | E136: 458.48 | F136: 451.17 | G136: 440.13 | H136: 476.83 | I136: 487.87 | J136: 495.18 | K136: 480.55 | L136: 462.2 | M136: 10.07183
A137: 128 | B137: M&M | C137: 756.55 | D137: 764.13 | E137: 741.52 | F137: 726.48 | G137: 703.87 | H137: 779.17 | I137: 801.78 | J137: 816.82 | K137: 786.75 | L137: 749.1 | M137: 32.95198
A138: 129 | B138: MANAPPURAM | C138: 114.8 | D138: 115.23 | E138: 113.47 | F138: 112.13 | G138: 110.37 | H138: 116.57 | I138: 118.33 | J138: 119.67 | K138: 117 | L138: 113.9 | M138: 44.97476
A139: 130 | B139: MRPL | C139: 110.45 | D139: 111.28 | E139: 109.17 | F139: 107.88 | G139: 105.77 | H139: 112.57 | I139: 114.68 | J139: 115.97 | K139: 113.4 | L139: 110 | M139: 7.05539
A140: 131 | B140: MARICO | C140: 325.85 | D140: 326.28 | E140: 324.12 | F140: 322.38 | G140: 320.22 | H140: 328.02 | I140: 330.18 | J140: 331.92 | K140: 328.45 | L140: 324.55 | M140: 8.4129
A141: 132 | B141: MARUTI | C141: 9013.5 | D141: 9047.83 | E141: 8946.27 | F141: 8879.03 | G141: 8777.47 | H141: 9115.07 | I141: 9216.63 | J141: 9283.87 | K141: 9149.4 | L141: 8980.6 | M141: 4.8828
A142: 133 | B142: MFSL | C142: 450.65 | D142: 455.67 | E142: 440.98 | F142: 431.32 | G142: 416.63 | H142: 465.33 | I142: 480.02 | J142: 489.68 | K142: 470.35 | L142: 446 | M142: 5.58536
A143: 134 | B143: MINDTREE | C143: 779.55 | D143: 788.25 | E143: 768.05 | F143: 756.55 | G143: 736.35 | H143: 799.75 | I143: 819.95 | J143: 831.45 | K143: 808.45 | L143: 776.75 | M143: 9.97207
A144: 135 | B144: MOTHERSUMI | C144: 333.2 | D144: 334.88 | E144: 330.82 | F144: 328.43 | G144: 324.37 | H144: 337.27 | I144: 341.33 | J144: 343.72 | K144: 338.95 | L144: 332.5 | M144: 43.06825
A145: 136 | B145: MPHASIS | C145: 869.7 | D145: 868.30 | E145: 853.45 | F145: 837.20 | G145: 822.35 | H145: 884.55 | I145: 899.40 | J145: 915.65 | K145: 883.15 | L145: 852.05 | M145: 4.05335
A146: 137 | B146: MUTHOOTFIN | C146: 415.3 | D146: 418.03 | E146: 409.57 | F146: 403.83 | G146: 395.37 | H146: 423.77 | I146: 432.23 | J146: 437.97 | K146: 426.5 | L146: 412.3 | M146: 5.93492
A147: 138 | B147: NATCOPHARM | C147: 763.9 | D147: 768.12 | E147: 751.23 | F147: 738.57 | G147: 721.68 | H147: 780.78 | I147: 797.67 | J147: 810.33 | K147: 785 | L147: 755.45 | M147: 1.7717
A148: 139 | B148: NBCC | C148: 203 | D148: 205.57 | E148: 199.53 | F148: 196.07 | G148: 190.03 | H148: 209.03 | I148: 215.07 | J148: 218.53 | K148: 211.6 | L148: 202.1 | M148: 27.65561
A149: 140 | B149: NHPC | C149: 28.55 | D149: 28.80 | E149: 28.20 | F149: 27.85 | G149: 27.25 | H149: 29.15 | I149: 29.75 | J149: 30.10 | K149: 29.4 | L149: 28.45 | M149: 80.94785
A150: 141 | B150: NMDC | C150: 115.9 | D150: 117.25 | E150: 114.20 | F150: 112.50 | G150: 109.45 | H150: 118.95 | I150: 122.00 | J150: 123.70 | K150: 120.3 | L150: 115.55 | M150: 31.47593
A151: 142 | B151: NTPC | C151: 166.55 | D151: 167.13 | E151: 164.92 | F151: 163.28 | G151: 161.07 | H151: 168.77 | I151: 170.98 | J151: 172.62 | K151: 169.35 | L151: 165.5 | M151: 33.3186
A152: 143 | B152: NATIONALUM | C152: 70.1 | D152: 70.10 | E152: 68.70 | F152: 67.30 | G152: 65.90 | H152: 71.50 | I152: 72.90 | J152: 74.30 | K152: 71.5 | L152: 68.7 | M152: 144.11509
A153: 144 | B153: OBEROIRLTY | C153: 496.05 | D153: 502.13 | E153: 484.27 | F153: 472.48 | G153: 454.62 | H153: 513.92 | I153: 531.78 | J153: 543.57 | K153: 520 | L153: 490.35 | M153: 3.16409
A154: 145 | B154: ONGC | C154: 175.4 | D154: 176.20 | E154: 173.90 | F154: 172.40 | G154: 170.10 | H154: 177.70 | I154: 180.00 | J154: 181.50 | K154: 178.5 | L154: 174.7 | M154: 33.53172
A155: 146 | B155: OIL | C155: 215.8 | D155: 218.27 | E155: 212.63 | F155: 209.47 | G155: 203.83 | H155: 221.43 | I155: 227.07 | J155: 230.23 | K155: 223.9 | L155: 215.1 | M155: 10.02537
A156: 147 | B156: OFSS | C156: 3923.2 | D156: 3946.92 | E156: 3861.78 | F156: 3800.37 | G156: 3715.23 | H156: 4008.33 | I156: 4093.47 | J156: 4154.88 | K156: 4032.05 | L156: 3885.5 | M156: 0.22427
A157: 148 | B157: PCJEWELLER | C157: 298.6 | D157: 304.25 | E157: 290.90 | F157: 283.20 | G157: 269.85 | H157: 311.95 | I157: 325.30 | J157: 333.00 | K157: 317.6 | L157: 296.55 | M157: 91.40108
A158: 149 | B158: PIIND | C158: 881.15 | D158: 892.03 | E158: 864.12 | F158: 847.08 | G158: 819.17 | H158: 909.07 | I158: 936.98 | J158: 954.02 | K158: 919.95 | L158: 875 | M158: 0.37729
A159: 150 | B159: PNBHOUSING | C159: 1272.05 | D159: 1272.55 | E159: 1250.10 | F159: 1228.15 | G159: 1205.70 | H159: 1294.50 | I159: 1316.95 | J159: 1338.90 | K159: 1295 | L159: 1250.6 | M159: 1.61312
A160: 151 | B160: PAGEIND | C160: 22685.1 | D160: 22702.90 | E160: 22208.20 | F160: 21731.30 | G160: 21236.60 | H160: 23179.80 | I160: 23674.50 | J160: 24151.40 | K160: 23197.6 | L160: 22226 | M160: 0.25231
A161: 152 | B161: PETRONET | C161: 230.85 | D161: 231.18 | E161: 229.12 | F161: 227.38 | G161: 225.32 | H161: 232.92 | I161: 234.98 | J161: 236.72 | K161: 233.25 | L161: 229.45 | M161: 20.91054
A162: 153 | B162: PIDILITIND | C162: 957.05 | D162: 962.28 | E162: 945.27 | F162: 933.48 | G162: 916.47 | H162: 974.07 | I162: 991.08 | J162: 1002.87 | K162: 979.3 | L162: 950.5 | M162: 6.09583
A163: 154 | B163: PEL | C163: 2463.7 | D163: 2483.10 | E163: 2428.60 | F163: 2393.50 | G163: 2339.00 | H163: 2518.20 | I163: 2572.70 | J163: 2607.80 | K163: 2537.6 | L163: 2448 | M163: 1.92484
A164: 155 | B164: PFC | C164: 86.05 | D164: 87.03 | E164: 84.62 | F164: 83.18 | G164: 80.77 | H164: 88.47 | I164: 90.88 | J164: 92.32 | K164: 89.45 | L164: 85.6 | M164: 67.46709
A165: 156 | B165: POWERGRID | C165: 196.05 | D165: 196.87 | E165: 193.83 | F165: 191.62 | G165: 188.58 | H165: 199.08 | I165: 202.12 | J165: 204.33 | K165: 199.9 | L165: 194.65 | M165: 54.50232
A166: 157 | B166: PRESTIGE | C166: 293.05 | D166: 296.68 | E166: 285.37 | F166: 277.68 | G166: 266.37 | H166: 304.37 | I166: 315.68 | J166: 323.37 | K166: 308 | L166: 289 | M166: 2.52278
A167: 158 | B167: PGHH | C167: 9610.7 | D167: 9566.90 | E167: 9483.80 | F167: 9356.90 | G167: 9273.80 | H167: 9693.80 | I167: 9776.90 | J167: 9903.80 | K167: 9650 | L167: 9440 | M167: 0.03561
A168: 159 | B168: PNB | C168: 94.4 | D168: 95.20 | E168: 93.40 | F168: 92.40 | G168: 90.60 | H168: 96.20 | I168: 98.00 | J168: 99.00 | K168: 97 | L168: 94.2 | M168: 214.91684
A169: 160 | B169: RBLBANK | C169: 489.15 | D169: 491.70 | E169: 483.45 | F169: 477.75 | G169: 469.50 | H169: 497.40 | I169: 505.65 | J169: 511.35 | K169: 499.95 | L169: 486 | M169: 14.91424
A170: 161 | B170: RAJESHEXPO | C170: 705.65 | D170: 714.05 | E170: 693.10 | F170: 680.55 | G170: 659.60 | H170: 726.60 | I170: 747.55 | J170: 760.10 | K170: 735 | L170: 701.5 | M170: 1.87188
A171: 162 | B171: RELCAPITAL | C171: 435.1 | D171: 440.38 | E171: 426.82 | F171: 418.53 | G171: 404.97 | H171: 448.67 | I171: 462.23 | J171: 470.52 | K171: 453.95 | L171: 432.1 | M171: 53.26501
A172: 163 | B172: RCOM | C172: 22.3 | D172: 22.45 | E172: 21.50 | F172: 20.70 | G172: 19.75 | H172: 23.25 | I172: 24.20 | J172: 25.00 | K172: 23.4 | L172: 21.65 | M172: 1048.44949
A173: 164 | B173: RELIANCE | C173: 894.9 | D173: 899.58 | E173: 887.37 | F173: 879.83 | G173: 867.62 | H173: 907.12 | I173: 919.33 | J173: 926.87 | K173: 911.8 | L173: 892.05 | M173: 64.98407
A174: 165 | B174: RELINFRA | C174: 436.1 | D174: 441.23 | E174: 428.92 | F174: 421.73 | G174: 409.42 | H174: 448.42 | I174: 460.73 | J174: 467.92 | K174: 453.55 | L174: 434.05 | M174: 28.27367
A175: 166 | B175: RPOWER | C175: 42.45 | D175: 41.48 | E175: 39.07 | F175: 35.68 | G175: 33.27 | H175: 44.87 | I175: 47.28 | J175: 50.67 | K175: 43.9 | L175: 38.1 | M175: 419.38075
A176: 167 | B176: RECLTD | C176: 127.9 | D176: 128.30 | E176: 126.65 | F176: 125.40 | G176: 123.75 | H176: 129.55 | I176: 131.20 | J176: 132.45 | K176: 129.95 | L176: 127.05 | M176: 63.77319
A177: 168 | B177: SRF | C177: 2000.35 | D177: 2011.23 | E177: 1978.17 | F177: 1955.98 | G177: 1922.92 | H177: 2033.42 | I177: 2066.48 | J177: 2088.67 | K177: 2044.3 | L177: 1989.05 | M177: 2.41438
A178: 169 | B178: SHREECEM | C178: 16318.05 | D178: 16439.00 | E178: 16090.05 | F178: 15862.05 | G178: 15513.10 | H178: 16667.00 | I178: 17015.95 | J178: 17243.95 | K178: 16787.95 | L178: 16211 | M178: 0.28319
A179: 170 | B179: SRTRANSFIN | C179: 1455.15 | D179: 1462.62 | E179: 1432.53 | F179: 1409.92 | G179: 1379.83 | H179: 1485.23 | I179: 1515.32 | J179: 1537.93 | K179: 1492.7 | L179: 1440 | M179: 8.85323
A180: 171 | B180: SIEMENS | C180: 1116.55 | D180: 1115.68 | E180: 1098.37 | F180: 1080.18 | G180: 1062.87 | H180: 1133.87 | I180: 1151.18 | J180: 1169.37 | K180: 1133 | L180: 1097.5 | M180: 1.85517
A181: 172 | B181: SBIN | C181: 247.3 | D181: 248.60 | E181: 244.20 | F181: 241.10 | G181: 236.70 | H181: 251.70 | I181: 256.10 | J181: 259.20 | K181: 253 | L181: 245.5 | M181: 188.24449
A182: 173 | B182: SAIL | C182: 72.3 | D182: 73.68 | E182: 70.52 | F182: 68.73 | G182: 65.57 | H182: 75.47 | I182: 78.63 | J182: 80.42 | K182: 76.85 | L182: 71.9 | M182: 157.49781
A183: 174 | B183: SPARC | C183: 381.6 | D183: 385.92 | E183: 375.88 | F183: 370.17 | G183: 360.13 | H183: 391.63 | I183: 401.67 | J183: 407.38 | K183: 395.95 | L183: 380.2 | M183: 1.18961
A184: 175 | B184: SUNPHARMA | C184: 502.25 | D184: 506.07 | E184: 497.18 | F184: 492.12 | G184: 483.23 | H184: 511.13 | I184: 520.02 | J184: 525.08 | K184: 514.95 | L184: 501 | M184: 31.20925
A185: 176 | B185: SUNTV | C185: 860.95 | D185: 870.35 | E185: 845.70 | F185: 830.45 | G185: 805.80 | H185: 885.60 | I185: 910.25 | J185: 925.50 | K185: 895 | L185: 855.1 | M185: 14.3863
A186: 177 | B186: SUZLON | C186: 11.5 | D186: 11.62 | E186: 11.28 | F186: 11.07 | G186: 10.73 | H186: 11.83 | I186: 12.17 | J186: 12.38 | K186: 11.95 | L186: 11.4 | M186: 322.52348
A187: 178 | B187: SYNDIBANK | C187: 56.65 | D187: 57.30 | E187: 55.70 | F187: 54.75 | G187: 53.15 | H187: 58.25 | I187: 59.85 | J187: 60.80 | K187: 58.9 | L187: 56.35 | M187: 39.61017
A188: 179 | B188: SYNGENE | C188: 583.55 | D188: 584.45 | E188: 579.30 | F188: 575.05 | G188: 569.90 | H188: 588.70 | I188: 593.85 | J188: 598.10 | K188: 589.6 | L188: 580.2 | M188: 0.29136
A189: 180 | B189: TV18BRDCST | C189: 67.85 | D189: 68.70 | E189: 66.60 | F189: 65.35 | G189: 63.25 | H189: 69.95 | I189: 72.05 | J189: 73.30 | K189: 70.8 | L189: 67.45 | M189: 93.94369
A190: 181 | B190: TVSMOTOR | C190: 646.05 | D190: 647.98 | E190: 641.07 | F190: 636.08 | G190: 629.17 | H190: 652.97 | I190: 659.88 | J190: 664.87 | K190: 654.9 | L190: 643 | M190: 8.11872
A191: 182 | B191: TATACHEM | C191: 708.05 | D191: 712.02 | E191: 702.03 | F191: 696.02 | G191: 686.03 | H191: 718.03 | I191: 728.02 | J191: 734.03 | K191: 722 | L191: 706 | M191: 7.10705
A192: 183 | B192: TATACOMM | C192: 637.85 | D192: 644.78 | E192: 626.62 | F192: 615.38 | G192: 597.22 | H192: 656.02 | I192: 674.18 | J192: 685.42 | K192: 662.95 | L192: 633.55 | M192: 4.1471
A193: 184 | B193: TCS | C193: 2910.9 | D193: 2912.30 | E193: 2890.60 | F193: 2870.30 | G193: 2848.60 | H193: 2932.60 | I193: 2954.30 | J193: 2974.60 | K193: 2934 | L193: 2892 | M193: 14.2091
A194: 185 | B194: TATAGLOBAL | C194: 270.25 | D194: 272.95 | E194: 266.85 | F194: 263.45 | G194: 257.35 | H194: 276.35 | I194: 282.45 | J194: 285.85 | K194: 279.05 | L194: 269.55 | M194: 32.83985
A195: 186 | B195: TATAMTRDVR | C195: 199.2 | D195: 199.53 | E195: 194.87 | F195: 190.53 | G195: 185.87 | H195: 203.87 | I195: 208.53 | J195: 212.87 | K195: 204.2 | L195: 195.2 | M195: 47.0884
A196: 187 | B196: TATAMOTORS | C196: 355.6 | D196: 355.18 | E196: 346.67 | F196: 337.73 | G196: 329.22 | H196: 364.12 | I196: 372.63 | J196: 381.57 | K196: 363.7 | L196: 346.25 | M196: 271.57199
A197: 188 | B197: TATAPOWER | C197: 83.05 | D197: 83.85 | E197: 81.75 | F197: 80.45 | G197: 78.35 | H197: 85.15 | I197: 87.25 | J197: 88.55 | K197: 85.95 | L197: 82.55 | M197: 49.73672
A198: 189 | B198: TATASTEEL | C198: 560.55 | D198: 569.53 | E198: 548.57 | F198: 536.58 | G198: 515.62 | H198: 581.52 | I198: 602.48 | J198: 614.47 | K198: 590.5 | L198: 557.55 | M198: 139.09893
A199: 190 | B199: TECHM | C199: 606.3 | D199: 610.52 | E199: 599.03 | F199: 591.77 | G199: 580.28 | H199: 617.78 | I199: 629.27 | J199: 636.53 | K199: 622 | L199: 603.25 | M199: 26.70676
A200: 191 | B200: RAMCOCEM | C200: 760.2 | D200: 760.40 | E200: 752.80 | F200: 745.40 | G200: 737.80 | H200: 767.80 | I200: 775.40 | J200: 782.80 | K200: 768 | L200: 753 | M200: 2.42617
A201: 192 | B201: TITAN | C201: 904.35 | D201: 915.35 | E201: 891.00 | F201: 877.65 | G201: 853.30 | H201: 928.70 | I201: 953.05 | J201: 966.40 | K201: 939.7 | L201: 902 | M201: 29.30774
A202: 193 | B202: TORNTPHARM | C202: 1283.65 | D202: 1286.37 | E202: 1265.28 | F202: 1246.92 | G202: 1225.83 | H202: 1304.73 | I202: 1325.82 | J202: 1344.18 | K202: 1307.45 | L202: 1268 | M202: 1.06054
A203: 194 | B203: TORNTPOWER | C203: 234.6 | D203: 236.83 | E203: 230.42 | F203: 226.23 | G203: 219.82 | H203: 241.02 | I203: 247.43 | J203: 251.62 | K203: 243.25 | L203: 232.65 | M203: 12.47226
A204: 195 | B204: UPL | C204: 732.5 | D204: 744.28 | E204: 718.62 | F204: 704.73 | G204: 679.07 | H204: 758.17 | I204: 783.83 | J204: 797.72 | K204: 769.95 | L204: 730.4 | M204: 17.13329
A205: 196 | B205: ULTRACEMCO | C205: 3881.3 | D205: 3909.62 | E205: 3844.28 | F205: 3807.27 | G205: 3741.93 | H205: 3946.63 | I205: 4011.97 | J205: 4048.98 | K205: 3974.95 | L205: 3872.6 | M205: 1.77225
... 30 more rows

Sheet MidCap Intra
L5: Back To Main Page
A6: FOR INTRA DAY TRADING | K6: =Main!B10 -> 2018-04-05
A9: Sr.no | B9: Scrip | C9: CLOSE RATE | D9: Pivot Point | E9: Supports | H9: Resistances
C10: Point | E10: S1 | F10: S2 | G10: S3 | H10: R1 | I10: R2 | J10: R3 | K10: HIGH | L10: LOW | M10: Total Trade Quanity in Lakhs
A11: 1 | B11: 3MINDIA | C11: 20105 | D11: 20318.68 | E11: 19637.32 | F11: 19169.63 | G11: 18488.27 | H11: 20786.37 | I11: 21467.73 | J11: 21935.42 | K11: 21000.05 | L11: 19851 | M11: 0.03744
A12: 2 | B12: 8KMILES | C12: 689.75 | D12: 696.82 | E12: 677.63 | F12: 665.52 | G12: 646.33 | H12: 708.93 | I12: 728.12 | J12: 740.23 | K12: 716 | L12: 684.7 | M12: 1.82882
A13: 3 | B13: ABB | C13: 1271.35 | D13: 1279.63 | E13: 1259.27 | F13: 1247.18 | G13: 1226.82 | H13: 1291.72 | I13: 1312.08 | J13: 1324.17 | K13: 1300 | L13: 1267.55 | M13: 0.44414
A14: 4 | B14: ACC | C14: 1530 | D14: 1544.23 | E14: 1511.62 | F14: 1493.23 | G14: 1460.62 | H14: 1562.62 | I14: 1595.23 | J14: 1613.62 | K14: 1576.85 | L14: 1525.85 | M14: 1.71614
A15: 5 | B15: AIAENG | C15: 1439.85 | D15: 1433.35 | E15: 1420.70 | F15: 1401.55 | G15: 1388.90 | H15: 1452.50 | I15: 1465.15 | J15: 1484.30 | K15: 1446 | L15: 1414.2 | M15: 0.07933
A16: 6 | B16: APLAPOLLO | C16: 2045.65 | D16: 2035.25 | E16: 2020.50 | F16: 1995.35 | G16: 1980.60 | H16: 2060.40 | I16: 2075.15 | J16: 2100.30 | K16: 2050 | L16: 2010.1 | M16: 0.64164
A17: 7 | B17: AUBANK | C17: 635.9 | D17: 634.95 | E17: 626.05 | F17: 616.20 | G17: 607.30 | H17: 644.80 | I17: 653.70 | J17: 663.55 | K17: 643.85 | L17: 625.1 | M17: 20.49211
A18: 8 | B18: AARTIIND | C18: 1154.6 | D18: 1156.53 | E18: 1148.07 | F18: 1141.53 | G18: 1133.07 | H18: 1163.07 | I18: 1171.53 | J18: 1178.07 | K18: 1165 | L18: 1150 | M18: 0.93973
A19: 9 | B19: ABAN | C19: 159.65 | D19: 161.28 | E19: 156.67 | F19: 153.68 | G19: 149.07 | H19: 164.27 | I19: 168.88 | J19: 171.87 | K19: 165.9 | L19: 158.3 | M19: 8.7455
A20: 10 | B20: ADANIENT | C20: 151.45 | D20: 154.98 | E20: 143.57 | F20: 135.68 | G20: 124.27 | H20: 162.87 | I20: 174.28 | J20: 182.17 | K20: 166.4 | L20: 147.1 | M20: 333.52404
A21: 11 | B21: ADANIPORTS | C21: 367.8 | D21: 368.42 | E21: 363.13 | F21: 358.47 | G21: 353.18 | H21: 373.08 | I21: 378.37 | J21: 383.03 | K21: 373.7 | L21: 363.75 | M21: 56.11445
A22: 12 | B22: ADANIPOWER | C22: 25.05 | D22: 25.38 | E22: 24.42 | F22: 23.78 | G22: 22.82 | H22: 26.02 | I22: 26.98 | J22: 27.62 | K22: 26.35 | L22: 24.75 | M22: 264.72761
A23: 13 | B23: ADANITRANS | C23: 182.8 | D23: 185.63 | E23: 177.27 | F23: 171.73 | G23: 163.37 | H23: 191.17 | I23: 199.53 | J23: 205.07 | K23: 194 | L23: 180.1 | M23: 33.31179
A24: 14 | B24: ABFRL | C24: 151 | D24: 150.23 | E24: 147.67 | F24: 144.33 | G24: 141.77 | H24: 153.57 | I24: 156.13 | J24: 159.47 | K24: 152.8 | L24: 146.9 | M24: 8.3568
A25: 15 | B25: ADVENZYMES | C25: 233.75 | D25: 235.83 | E25: 230.92 | F25: 228.08 | G25: 223.17 | H25: 238.67 | I25: 243.58 | J25: 246.42 | K25: 240.75 | L25: 233 | M25: 1.70481
A26: 16 | B26: AEGISCHEM | C26: 256.6 | D26: 259.15 | E26: 251.55 | F26: 246.50 | G26: 238.90 | H26: 264.20 | I26: 271.80 | J26: 276.85 | K26: 266.75 | L26: 254.1 | M26: 1.44547
A27: 17 | B27: AHLUCONT | C27: 390 | D27: 388.95 | E27: 386.15 | F27: 382.30 | G27: 379.50 | H27: 392.80 | I27: 395.60 | J27: 399.45 | K27: 391.75 | L27: 385.1 | M27: 0.11222
A28: 18 | B28: AJANTPHARM | C28: 1379.85 | D28: 1388.92 | E28: 1360.38 | F28: 1340.92 | G28: 1312.38 | H28: 1408.38 | I28: 1436.92 | J28: 1456.38 | K28: 1417.45 | L28: 1369.45 | M28: 1.36281
A29: 19 | B29: AKZOINDIA | C29: 1938.9 | D29: 1926.27 | E29: 1872.63 | F29: 1806.37 | G29: 1752.73 | H29: 1992.53 | I29: 2046.17 | J29: 2112.43 | K29: 1979.9 | L29: 1860 | M29: 0.94495
A30: 20 | B30: APLLTD | C30: 549.8 | D30: 548.22 | E30: 541.43 | F30: 533.07 | G30: 526.28 | H30: 556.58 | I30: 563.37 | J30: 571.73 | K30: 555 | L30: 539.85 | M30: 0.23518
A31: 21 | B31: ALKEM | C31: 1892.6 | D31: 1901.50 | E31: 1876.10 | F31: 1859.60 | G31: 1834.20 | H31: 1918.00 | I31: 1943.40 | J31: 1959.90 | K31: 1926.9 | L31: 1885 | M31: 0.16191
A32: 22 | B32: ALBK | C32: 49.2 | D32: 49.62 | E32: 48.48 | F32: 47.77 | G32: 46.63 | H32: 50.33 | I32: 51.47 | J32: 52.18 | K32: 50.75 | L32: 48.9 | M32: 36.48678
A33: 23 | B33: ALLCARGO | C33: 150.7 | D33: 150.93 | E33: 149.37 | F33: 148.03 | G33: 146.47 | H33: 152.27 | I33: 153.83 | J33: 155.17 | K33: 152.5 | L33: 149.6 | M33: 2.48399
A34: 24 | B34: AMARAJABAT | C34: 798.45 | D34: 804.80 | E34: 787.65 | F34: 776.85 | G34: 759.70 | H34: 815.60 | I34: 832.75 | J34: 843.55 | K34: 821.95 | L34: 794 | M34: 4.80177
A35: 25 | B35: AMBUJACEM | C35: 236.6 | D35: 238.87 | E35: 233.73 | F35: 230.87 | G35: 225.73 | H35: 241.73 | I35: 246.87 | J35: 249.73 | K35: 244 | L35: 236 | M35: 16.40569
A36: 26 | B36: ANDHRABANK | C36: 42.35 | D36: 42.82 | E36: 41.58 | F36: 40.82 | G36: 39.58 | H36: 43.58 | I36: 44.82 | J36: 45.58 | K36: 44.05 | L36: 42.05 | M36: 66.50591
A37: 27 | B37: APARINDS | C37: 760.4 | D37: 756.80 | E37: 748.60 | F37: 736.80 | G37: 728.60 | H37: 768.60 | I37: 776.80 | J37: 788.60 | K37: 765 | L37: 745 | M37: 1.81061
A38: 28 | B38: APOLLOHOSP | C38: 1066.95 | D38: 1077.33 | E38: 1050.62 | F38: 1034.28 | G38: 1007.57 | H38: 1093.67 | I38: 1120.38 | J38: 1136.72 | K38: 1104.05 | L38: 1061 | M38: 6.22425
A39: 29 | B39: APOLLOTYRE | C39: 282.15 | D39: 283.90 | E39: 278.75 | F39: 275.35 | G39: 270.20 | H39: 287.30 | I39: 292.45 | J39: 295.85 | K39: 289.05 | L39: 280.5 | M39: 27.83007
A40: 30 | B40: ARVIND | C40: 399.85 | D40: 402.08 | E40: 393.62 | F40: 387.38 | G40: 378.92 | H40: 408.32 | I40: 416.78 | J40: 423.02 | K40: 410.55 | L40: 395.85 | M40: 21.17047
A41: 31 | B41: ASHOKLEY | C41: 145.85 | D41: 147.17 | E41: 143.73 | F41: 141.62 | G41: 138.18 | H41: 149.28 | I41: 152.72 | J41: 154.83 | K41: 150.6 | L41: 145.05 | M41: 204.49016
A42: 32 | B42: ASHOKA | C42: 260 | D42: 261.67 | E42: 254.33 | F42: 248.67 | G42: 241.33 | H42: 267.33 | I42: 274.67 | J42: 280.33 | K42: 269 | L42: 256 | M42: 3.99733
A43: 33 | B43: ASIANPAINT | C43: 1136 | D43: 1139.90 | E43: 1122.10 | F43: 1108.20 | G43: 1090.40 | H43: 1153.80 | I43: 1171.60 | J43: 1185.50 | K43: 1157.7 | L43: 1126 | M43: 6.07619
A44: 34 | B44: ASTRAZEN | C44: 949.05 | D44: 955.02 | E44: 935.03 | F44: 921.02 | G44: 901.03 | H44: 969.03 | I44: 989.02 | J44: 1003.03 | K44: 975 | L44: 941 | M44: 0.01503
A45: 35 | B45: ASTRAL | C45: 904.8 | D45: 909.85 | E45: 894.95 | F45: 885.10 | G45: 870.20 | H45: 919.70 | I45: 934.60 | J45: 944.45 | K45: 924.75 | L45: 900 | M45: 0.34676
A46: 36 | B46: ATUL | C46: 2702.9 | D46: 2724.30 | E46: 2653.60 | F46: 2604.30 | G46: 2533.60 | H46: 2773.60 | I46: 2844.30 | J46: 2893.60 | K46: 2795 | L46: 2675 | M46: 0.07332
A47: 37 | B47: AUROPHARMA | C47: 590.45 | D47: 591.65 | E47: 585.80 | F47: 581.15 | G47: 575.30 | H47: 596.30 | I47: 602.15 | J47: 606.80 | K47: 597.5 | L47: 587 | M47: 14.51755
A48: 38 | B48: AVANTIFEED | C48: 2262.85 | D48: 2305.62 | E48: 2212.23 | F48: 2161.62 | G48: 2068.23 | H48: 2356.23 | I48: 2449.62 | J48: 2500.23 | K48: 2399 | L48: 2255 | M48: 1.23693
A49: 39 | B49: DMART | C49: 1359.15 | D49: 1364.78 | E49: 1344.37 | F49: 1329.58 | G49: 1309.17 | H49: 1379.57 | I49: 1399.98 | J49: 1414.77 | K49: 1385.2 | L49: 1350 | M49: 6.82255
A50: 40 | B50: AXISBANK | C50: 492.25 | D50: 495.67 | E50: 486.83 | F50: 481.42 | G50: 472.58 | H50: 501.08 | I50: 509.92 | J50: 515.33 | K50: 504.5 | L50: 490.25 | M50: 60.47813
A51: 41 | B51: BASF | C51: 1963 | D51: 1980.47 | E51: 1933.13 | F51: 1903.27 | G51: 1855.93 | H51: 2010.33 | I51: 2057.67 | J51: 2087.53 | K51: 2027.8 | L51: 1950.6 | M51: 0.09879
A52: 42 | B52: BEML | C52: 1082.9 | D52: 1100.68 | E52: 1060.37 | F52: 1037.83 | G52: 997.52 | H52: 1123.22 | I52: 1163.53 | J52: 1186.07 | K52: 1141 | L52: 1078.15 | M52: 8.96102
A53: 43 | B53: BFUTILITIE | C53: 394.85 | D53: 400.20 | E53: 386.90 | F53: 378.95 | G53: 365.65 | H53: 408.15 | I53: 421.45 | J53: 429.40 | K53: 413.5 | L53: 392.25 | M53: 6.19106
A54: 44 | B54: BGRENERGY | C54: 104.05 | D54: 105.25 | E54: 101.90 | F54: 99.75 | G54: 96.40 | H54: 107.40 | I54: 110.75 | J54: 112.90 | K54: 108.6 | L54: 103.1 | M54: 0.70324
A55: 45 | B55: BSE | C55: 800.7 | D55: 802.55 | E55: 791.10 | F55: 781.50 | G55: 770.05 | H55: 812.15 | I55: 823.60 | J55: 833.20 | K55: 814 | L55: 792.95 | M55: 2.28111
A56: 46 | B56: BAJAJ-AUTO | C56: 2766 | D56: 2776.08 | E56: 2736.17 | F56: 2706.33 | G56: 2666.42 | H56: 2805.92 | I56: 2845.83 | J56: 2875.67 | K56: 2816 | L56: 2746.25 | M56: 3.08672
A57: 47 | B57: BAJAJCORP | C57: 461.1 | D57: 462.70 | E57: 456.40 | F57: 451.70 | G57: 445.40 | H57: 467.40 | I57: 473.70 | J57: 478.40 | K57: 469 | L57: 458 | M57: 0.16731
A58: 48 | B58: BAJAJELEC | C58: 609 | D58: 625.33 | E58: 586.67 | F58: 564.33 | G58: 525.67 | H58: 647.67 | I58: 686.33 | J58: 708.67 | K58: 664 | L58: 603 | M58: 30.31936
A59: 49 | B59: BAJFINANCE | C59: 1850.2 | D59: 1852.17 | E59: 1834.73 | F59: 1819.27 | G59: 1801.83 | H59: 1867.63 | I59: 1885.07 | J59: 1900.53 | K59: 1869.6 | L59: 1836.7 | M59: 17.93441
A60: 50 | B60: BAJAJFINSV | C60: 5228.55 | D60: 5292.32 | E60: 5139.03 | F60: 5049.52 | G60: 4896.23 | H60: 5381.83 | I60: 5535.12 | J60: 5624.63 | K60: 5445.6 | L60: 5202.8 | M60: 1.8878
A61: 51 | B61: BAJAJHIND | C61: 9.35 | D61: 9.47 | E61: 9.18 | F61: 9.02 | G61: 8.73 | H61: 9.63 | I61: 9.92 | J61: 10.08 | K61: 9.75 | L61: 9.3 | M61: 28.43647
A62: 52 | B62: BAJAJHLDNG | C62: 2617.7 | D62: 2623.90 | E62: 2598.80 | F62: 2579.90 | G62: 2554.80 | H62: 2642.80 | I62: 2667.90 | J62: 2686.80 | K62: 2649 | L62: 2605 | M62: 0.05817
A63: 53 | B63: BALKRISIND | C63: 1151.45 | D63: 1154.45 | E63: 1141.05 | F63: 1130.65 | G63: 1117.25 | H63: 1164.85 | I63: 1178.25 | J63: 1188.65 | K63: 1167.85 | L63: 1144.05 | M63: 4.43617
A64: 54 | B64: BALLARPUR | C64: 13.2 | D64: 13.28 | E64: 12.87 | F64: 12.53 | G64: 12.12 | H64: 13.62 | I64: 14.03 | J64: 14.37 | K64: 13.7 | L64: 12.95 | M64: 10.44752
A65: 55 | B65: BALMLAWRIE | C65: 218.75 | D65: 220.28 | E65: 216.57 | F65: 214.38 | G65: 210.67 | H65: 222.47 | I65: 226.18 | J65: 228.37 | K65: 224 | L65: 218.1 | M65: 0.681
A66: 56 | B66: BALRAMCHIN | C66: 78.75 | D66: 78.37 | E66: 77.03 | F66: 75.32 | G66: 73.98 | H66: 80.08 | I66: 81.42 | J66: 83.13 | K66: 79.7 | L66: 76.65 | M66: 45.91733
A67: 57 | B67: BANKBARODA | C67: 139.9 | D67: 141.95 | E67: 136.95 | F67: 134.00 | G67: 129.00 | H67: 144.90 | I67: 149.90 | J67: 152.85 | K67: 146.95 | L67: 139 | M67: 117.2995
A68: 58 | B68: BANKINDIA | C68: 103.45 | D68: 105.27 | E68: 101.23 | F68: 99.02 | G68: 94.98 | H68: 107.48 | I68: 111.52 | J68: 113.73 | K68: 109.3 | L68: 103.05 | M68: 84.98931
A69: 59 | B69: BATAINDIA | C69: 744.55 | D69: 752.65 | E69: 731.90 | F69: 719.25 | G69: 698.50 | H69: 765.30 | I69: 786.05 | J69: 798.70 | K69: 773.4 | L69: 740 | M69: 15.1948
A70: 60 | B70: BERGEPAINT | C70: 258.6 | D70: 258.87 | E70: 254.93 | F70: 251.27 | G70: 247.33 | H70: 262.53 | I70: 266.47 | J70: 270.13 | K70: 262.8 | L70: 255.2 | M70: 5.0777
A71: 61 | B71: BEL | C71: 143.75 | D71: 145.17 | E71: 141.58 | F71: 139.42 | G71: 135.83 | H71: 147.33 | I71: 150.92 | J71: 153.08 | K71: 148.75 | L71: 143 | M71: 39.13688
A72: 62 | B72: BHARATFIN | C72: 1101.35 | D72: 1107.57 | E72: 1090.13 | F72: 1078.92 | G72: 1061.48 | H72: 1118.78 | I72: 1136.22 | J72: 1147.43 | K72: 1125 | L72: 1096.35 | M72: 5.21334
A73: 63 | B73: BHARATFORG | C73: 716.45 | D73: 719.60 | E73: 704.70 | F73: 692.95 | G73: 678.05 | H73: 731.35 | I73: 746.25 | J73: 758.00 | K73: 734.5 | L73: 707.85 | M73: 30.94364
A74: 64 | B74: BHEL | C74: 85.15 | D74: 85.82 | E74: 84.03 | F74: 82.92 | G74: 81.13 | H74: 86.93 | I74: 88.72 | J74: 89.83 | K74: 87.6 | L74: 84.7 | M74: 104.85067
A75: 65 | B75: BPCL | C75: 414.95 | D75: 419.25 | E75: 409.50 | F75: 404.05 | G75: 394.30 | H75: 424.70 | I75: 434.45 | J75: 439.90 | K75: 429 | L75: 413.8 | M75: 24.51414
A76: 66 | B76: BHARTIARTL | C76: 395.05 | D76: 397.60 | E76: 390.40 | F76: 385.75 | G76: 378.55 | H76: 402.25 | I76: 409.45 | J76: 414.10 | K76: 404.8 | L76: 392.95 | M76: 36.27666
A77: 67 | B77: INFRATEL | C77: 336.95 | D77: 336.97 | E77: 334.98 | F77: 333.02 | G77: 331.03 | H77: 338.93 | I77: 340.92 | J77: 342.88 | K77: 338.95 | L77: 335 | M77: 13.85801
A78: 68 | B78: BHUSANSTL | C78: 43.95 | D78: 43.83 | E78: 42.97 | F78: 41.98 | G78: 41.12 | H78: 44.82 | I78: 45.68 | J78: 46.67 | K78: 44.7 | L78: 42.85 | M78: 27.73619
A79: 69 | B79: BIOCON | C79: 598.3 | D79: 602.68 | E79: 591.37 | F79: 584.43 | G79: 573.12 | H79: 609.62 | I79: 620.93 | J79: 627.87 | K79: 614 | L79: 595.75 | M79: 15.63949
A80: 70 | B80: BIRLACORPN | C80: 767.05 | D80: 771.68 | E80: 752.37 | F80: 737.68 | G80: 718.37 | H80: 786.37 | I80: 805.68 | J80: 820.37 | K80: 791 | L80: 757 | M80: 1.01412
A81: 71 | B81: BLISSGVS | C81: 200.95 | D81: 200.65 | E81: 198.40 | F81: 195.85 | G81: 193.60 | H81: 203.20 | I81: 205.45 | J81: 208.00 | K81: 202.9 | L81: 198.1 | M81: 2.6121
A82: 72 | B82: BLUEDART | C82: 3747.95 | D82: 3761.15 | E82: 3717.80 | F82: 3687.65 | G82: 3644.30 | H82: 3791.30 | I82: 3834.65 | J82: 3864.80 | K82: 3804.5 | L82: 3731 | M82: 0.10631
A83: 73 | B83: BLUESTARCO | C83: 774.95 | D83: 788.65 | E83: 758.30 | F83: 741.65 | G83: 711.30 | H83: 805.30 | I83: 835.65 | J83: 852.30 | K83: 819 | L83: 772 | M83: 1.48864
A84: 74 | B84: BBTC | C84: 1234.1 | D84: 1254.70 | E84: 1204.40 | F84: 1174.70 | G84: 1124.40 | H84: 1284.40 | I84: 1334.70 | J84: 1364.40 | K84: 1305 | L84: 1225 | M84: 2.75156
A85: 75 | B85: BOMDYEING | C85: 246.3 | D85: 249.42 | E85: 241.48 | F85: 236.67 | G85: 228.73 | H85: 254.23 | I85: 262.17 | J85: 266.98 | K85: 257.35 | L85: 244.6 | M85: 29.69737
A86: 76 | B86: BRFL | C86: 38.05 | D86: 39.25 | E86: 36.85 | F86: 35.65 | G86: 33.25 | H86: 40.45 | I86: 42.85 | J86: 44.05 | K86: 41.65 | L86: 38.05 | M86: 2.48306
A87: 77 | B87: BOSCHLTD | C87: 19685.45 | D87: 19578.95 | E87: 19182.90 | F87: 18680.35 | G87: 18284.30 | H87: 20081.50 | I87: 20477.55 | J87: 20980.10 | K87: 19975 | L87: 19076.4 | M87: 0.32374
A88: 78 | B88: BRIGADE | C88: 257.35 | D88: 259.80 | E88: 252.60 | F88: 247.85 | G88: 240.65 | H88: 264.55 | I88: 271.75 | J88: 276.50 | K88: 267 | L88: 255.05 | M88: 0.21068
A89: 79 | B89: BRITANNIA | C89: 5024.4 | D89: 5033.40 | E89: 4982.00 | F89: 4939.60 | G89: 4888.20 | H89: 5075.80 | I89: 5127.20 | J89: 5169.60 | K89: 5084.8 | L89: 4991 | M89: 1.3419
A90: 80 | B90: CARERATING | C90: 1207.7 | D90: 1203.93 | E90: 1192.82 | F90: 1177.93 | G90: 1166.82 | H90: 1218.82 | I90: 1229.93 | J90: 1244.82 | K90: 1215.05 | L90: 1189.05 | M90: 0.86123
A91: 81 | B91: CCL | C91: 282.3 | D91: 283.82 | E91: 278.68 | F91: 275.07 | G91: 269.93 | H91: 287.43 | I91: 292.57 | J91: 296.18 | K91: 288.95 | L91: 280.2 | M91: 1.21352
A92: 82 | B92: CGPOWER | C92: 78.85 | D92: 79.45 | E92: 77.60 | F92: 76.35 | G92: 74.50 | H92: 80.70 | I92: 82.55 | J92: 83.80 | K92: 81.3 | L92: 78.2 | M92: 7.56907
A93: 83 | B93: CRISIL | C93: 1870.4 | D93: 1867.48 | E93: 1846.97 | F93: 1823.53 | G93: 1803.02 | H93: 1890.92 | I93: 1911.43 | J93: 1934.87 | K93: 1888 | L93: 1844.05 | M93: 0.38343
A94: 84 | B94: CADILAHC | C94: 394.7 | D94: 394.83 | E94: 389.87 | F94: 385.03 | G94: 380.07 | H94: 399.67 | I94: 404.63 | J94: 409.47 | K94: 399.8 | L94: 390 | M94: 24.80827
A95: 85 | B95: CANFINHOME | C95: 428.6 | D95: 431.77 | E95: 423.08 | F95: 417.57 | G95: 408.88 | H95: 437.28 | I95: 445.97 | J95: 451.48 | K95: 440.45 | L95: 426.25 | M95: 21.33375
A96: 86 | B96: CANBK | C96: 262.5 | D96: 265.70 | E96: 257.90 | F96: 253.30 | G96: 245.50 | H96: 270.30 | I96: 278.10 | J96: 282.70 | K96: 273.5 | L96: 261.1 | M96: 72.20247
A97: 87 | B97: CAPF | C97: 636.7 | D97: 639.67 | E97: 631.08 | F97: 625.47 | G97: 616.88 | H97: 645.28 | I97: 653.87 | J97: 659.48 | K97: 648.25 | L97: 634.05 | M97: 5.46533
A98: 88 | B98: CAPLIPOINT | C98: 600.4 | D98: 603.48 | E98: 590.97 | F98: 581.53 | G98: 569.02 | H98: 612.92 | I98: 625.43 | J98: 634.87 | K98: 616 | L98: 594.05 | M98: 0.33671
A99: 89 | B99: CARBORUNIV | C99: 370.75 | D99: 370.62 | E99: 365.23 | F99: 359.72 | G99: 354.33 | H99: 376.13 | I99: 381.52 | J99: 387.03 | K99: 376 | L99: 365.1 | M99: 1.06388
A100: 90 | B100: CASTROLIND | C100: 207.75 | D100: 209.22 | E100: 204.48 | F100: 201.22 | G100: 196.48 | H100: 212.48 | I100: 217.22 | J100: 220.48 | K100: 213.95 | L100: 205.95 | M100: 29.27928
A101: 91 | B101: CEATLTD | C101: 1572.95 | D101: 1590.92 | E101: 1549.33 | F101: 1525.72 | G101: 1484.13 | H101: 1614.53 | I101: 1656.12 | J101: 1679.73 | K101: 1632.5 | L101: 1567.3 | M101: 9.09203
A102: 92 | B102: CENTRALBK | C102: 69.6 | D102: 70.23 | E102: 68.72 | F102: 67.83 | G102: 66.32 | H102: 71.12 | I102: 72.63 | J102: 73.52 | K102: 71.75 | L102: 69.35 | M102: 14.79259
A103: 93 | B103: CENTURYPLY | C103: 333.8 | D103: 332.27 | E103: 327.58 | F103: 321.37 | G103: 316.68 | H103: 338.48 | I103: 343.17 | J103: 349.38 | K103: 336.95 | L103: 326.05 | M103: 1.69729
A104: 94 | B104: CENTURYTEX | C104: 1166.05 | D104: 1181.10 | E104: 1145.20 | F104: 1124.35 | G104: 1088.45 | H104: 1201.95 | I104: 1237.85 | J104: 1258.70 | K104: 1217 | L104: 1160.25 | M104: 5.44943
A105: 95 | B105: CERA | C105: 3386.25 | D105: 3383.75 | E105: 3344.55 | F105: 3302.85 | G105: 3263.65 | H105: 3425.45 | I105: 3464.65 | J105: 3506.35 | K105: 3422.95 | L105: 3342.05 | M105: 0.07015
A106: 96 | B106: CHAMBLFERT | C106: 163.75 | D106: 164.82 | E106: 161.93 | F106: 160.12 | G106: 157.23 | H106: 166.63 | I106: 169.52 | J106: 171.33 | K106: 167.7 | L106: 163 | M106: 4.55165
A107: 97 | B107: CHENNPETRO | C107: 332.7 | D107: 336.47 | E107: 327.43 | F107: 322.17 | G107: 313.13 | H107: 341.73 | I107: 350.77 | J107: 356.03 | K107: 345.5 | L107: 331.2 | M107: 3.96866
A108: 98 | B108: CHOLAFIN | C108: 1490.1 | D108: 1502.83 | E108: 1466.67 | F108: 1443.23 | G108: 1407.07 | H108: 1526.27 | I108: 1562.43 | J108: 1585.87 | K108: 1539 | L108: 1479.4 | M108: 3.19222
A109: 99 | B109: CIPLA | C109: 569.8 | D109: 569.92 | E109: 564.38 | F109: 558.97 | G109: 553.43 | H109: 575.33 | I109: 580.87 | J109: 586.28 | K109: 575.45 | L109: 564.5 | M109: 18.52997
A110: 100 | B110: CUB | C110: 179.7 | D110: 178.70 | E110: 176.40 | F110: 173.10 | G110: 170.80 | H110: 182.00 | I110: 184.30 | J110: 187.60 | K110: 181 | L110: 175.4 | M110: 4.75216
A111: 101 | B111: COALINDIA | C111: 274.55 | D111: 275.55 | E111: 272.20 | F111: 269.85 | G111: 266.50 | H111: 277.90 | I111: 281.25 | J111: 283.60 | K111: 278.9 | L111: 273.2 | M111: 29.46453
A112: 102 | B112: COCHINSHIP | C112: 511.95 | D112: 511.03 | E112: 509.07 | F112: 506.18 | G112: 504.22 | H112: 513.92 | I112: 515.88 | J112: 518.77 | K112: 513 | L112: 508.15 | M112: 0.76765
A113: 103 | B113: COFFEEDAY | C113: 301.15 | D113: 302.88 | E113: 298.17 | F113: 295.18 | G113: 290.47 | H113: 305.87 | I113: 310.58 | J113: 313.57 | K113: 307.6 | L113: 299.9 | M113: 0.91528
A114: 104 | B114: COLPAL | C114: 1091.4 | D114: 1088.48 | E114: 1079.97 | F114: 1068.53 | G114: 1060.02 | H114: 1099.92 | I114: 1108.43 | J114: 1119.87 | K114: 1097 | L114: 1077.05 | M114: 3.0346
A115: 105 | B115: CONCOR | C115: 1244.65 | D115: 1246.35 | E115: 1215.30 | F115: 1185.95 | G115: 1154.90 | H115: 1275.70 | I115: 1306.75 | J115: 1336.10 | K115: 1277.4 | L115: 1217 | M115: 2.58295
A116: 106 | B116: COROMANDEL | C116: 530.35 | D116: 533.27 | E116: 522.08 | F116: 513.82 | G116: 502.63 | H116: 541.53 | I116: 552.72 | J116: 560.98 | K116: 544.45 | L116: 525 | M116: 0.80007
A117: 107 | B117: CORPBANK | C117: 30.8 | D117: 31.08 | E117: 30.27 | F117: 29.73 | G117: 28.92 | H117: 31.62 | I117: 32.43 | J117: 32.97 | K117: 31.9 | L117: 30.55 | M117: 3.29453
A118: 108 | B118: COX&KINGS | C118: 233.55 | D118: 234.67 | E118: 230.88 | F118: 228.22 | G118: 224.43 | H118: 237.33 | I118: 241.12 | J118: 243.78 | K118: 238.45 | L118: 232 | M118: 0.84643
A119: 109 | B119: CROMPTON | C119: 229.3 | D119: 230.63 | E119: 226.67 | F119: 224.03 | G119: 220.07 | H119: 233.27 | I119: 237.23 | J119: 239.87 | K119: 234.6 | L119: 228 | M119: 2.43229
A120: 110 | B120: CUMMINSIND | C120: 735.35 | D120: 740.57 | E120: 726.73 | F120: 718.12 | G120: 704.28 | H120: 749.18 | I120: 763.02 | J120: 771.63 | K120: 754.4 | L120: 731.95 | M120: 4.28216
A121: 111 | B121: CYIENT | C121: 655.8 | D121: 662.13 | E121: 640.27 | F121: 624.73 | G121: 602.87 | H121: 677.67 | I121: 699.53 | J121: 715.07 | K121: 684 | L121: 646.6 | M121: 2.8442
A122: 112 | B122: DBREALTY | C122: 52.5 | D122: 51.73 | E122: 50.22 | F122: 47.93 | G122: 46.42 | H122: 54.02 | I122: 55.53 | J122: 57.82 | K122: 53.25 | L122: 49.45 | M122: 11.75199
A123: 113 | B123: DBCORP | C123: 313.3 | D123: 314.98 | E123: 309.32 | F123: 305.33 | G123: 299.67 | H123: 318.97 | I123: 324.63 | J123: 328.62 | K123: 320.65 | L123: 311 | M123: 0.15612
A124: 114 | B124: DCBBANK | C124: 166.2 | D124: 167.42 | E124: 163.48 | F124: 160.77 | G124: 156.83 | H124: 170.13 | I124: 174.07 | J124: 176.78 | K124: 171.35 | L124: 164.7 | M124: 14.96578
A125: 115 | B125: DCMSHRIRAM | C125: 458.95 | D125: 460.33 | E125: 450.67 | F125: 442.38 | G125: 432.72 | H125: 468.62 | I125: 478.28 | J125: 486.57 | K125: 470 | L125: 452.05 | M125: 1.12061
A126: 116 | B126: DLF | C126: 198.6 | D126: 201.48 | E126: 194.87 | F126: 191.13 | G126: 184.52 | H126: 205.22 | I126: 211.83 | J126: 215.57 | K126: 208.1 | L126: 197.75 | M126: 88.85029
A127: 117 | B127: DABUR | C127: 335.5 | D127: 337.00 | E127: 332.50 | F127: 329.50 | G127: 325.00 | H127: 340.00 | I127: 344.50 | J127: 347.50 | K127: 341.5 | L127: 334 | M127: 14.0785
A128: 118 | B128: DALMIABHA | C128: 2896.7 | D128: 2896.93 | E128: 2856.22 | F128: 2815.73 | G128: 2775.02 | H128: 2937.42 | I128: 2978.13 | J128: 3018.62 | K128: 2937.65 | L128: 2856.45 | M128: 1.08713
A129: 119 | B129: DEEPAKFERT | C129: 304.2 | D129: 312.12 | E129: 292.33 | F129: 280.47 | G129: 260.68 | H129: 323.98 | I129: 343.77 | J129: 355.63 | K129: 331.9 | L129: 300.25 | M129: 14.39262
A130: 120 | B130: DELTACORP | C130: 276.7 | D130: 279.12 | E130: 270.83 | F130: 264.97 | G130: 256.68 | H130: 284.98 | I130: 293.27 | J130: 299.13 | K130: 287.4 | L130: 273.25 | M130: 93.97739
A131: 121 | B131: DEN | C131: 103.9 | D131: 104.17 | E131: 101.93 | F131: 99.97 | G131: 97.73 | H131: 106.13 | I131: 108.37 | J131: 110.33 | K131: 106.4 | L131: 102.2 | M131: 2.86344
A132: 122 | B132: DENABANK | C132: 19.45 | D132: 19.55 | E132: 19.15 | F132: 18.85 | G132: 18.45 | H132: 19.85 | I132: 20.25 | J132: 20.55 | K132: 19.95 | L132: 19.25 | M132: 11.53683
A133: 123 | B133: DHFL | C133: 521.35 | D133: 527.62 | E133: 511.93 | F133: 502.52 | G133: 486.83 | H133: 537.03 | I133: 552.72 | J133: 562.13 | K133: 543.3 | L133: 518.2 | M133: 49.59051
A134: 124 | B134: DHANUKA | C134: 587.2 | D134: 593.23 | E134: 576.47 | F134: 565.73 | G134: 548.97 | H134: 603.97 | I134: 620.73 | J134: 631.47 | K134: 610 | L134: 582.5 | M134: 0.32774
A135: 125 | B135: DBL | C135: 1118.35 | D135: 1133.70 | E135: 1095.65 | F135: 1072.95 | G135: 1034.90 | H135: 1156.40 | I135: 1194.45 | J135: 1217.15 | K135: 1171.75 | L135: 1111 | M135: 3.94227
A136: 126 | B136: DISHTV | C136: 70.65 | D136: 71.08 | E136: 69.37 | F136: 68.08 | G136: 66.37 | H136: 72.37 | I136: 74.08 | J136: 75.37 | K136: 72.8 | L136: 69.8 | M136: 56.47565
A137: 127 | B137: DIVISLAB | C137: 1096.75 | D137: 1108.83 | E137: 1075.87 | F137: 1054.98 | G137: 1022.02 | H137: 1129.72 | I137: 1162.68 | J137: 1183.57 | K137: 1141.8 | L137: 1087.95 | M137: 6.19642
A138: 128 | B138: LALPATHLAB | C138: 852.1 | D138: 859.03 | E138: 835.07 | F138: 818.03 | G138: 794.07 | H138: 876.07 | I138: 900.03 | J138: 917.07 | K138: 883 | L138: 842 | M138: 3.25197
A139: 129 | B139: DRREDDY | C139: 2091.4 | D139: 2098.87 | E139: 2072.48 | F139: 2053.57 | G139: 2027.18 | H139: 2117.78 | I139: 2144.17 | J139: 2163.08 | K139: 2125.25 | L139: 2079.95 | M139: 3.53719
A140: 130 | B140: DREDGECORP | C140: 609.55 | D140: 617.73 | E140: 597.02 | F140: 584.48 | G140: 563.77 | H140: 630.27 | I140: 650.98 | J140: 663.52 | K140: 638.45 | L140: 605.2 | M140: 1.9313
A141: 131 | B141: EIDPARRY | C141: 282.2 | D141: 283.68 | E141: 277.52 | F141: 272.83 | G141: 266.67 | H141: 288.37 | I141: 294.53 | J141: 299.22 | K141: 289.85 | L141: 279 | M141: 1.28072
A142: 132 | B142: EIHOTEL | C142: 161.9 | D142: 163.93 | E142: 158.97 | F142: 156.03 | G142: 151.07 | H142: 166.87 | I142: 171.83 | J142: 174.77 | K142: 168.9 | L142: 161 | M142: 1.36009
A143: 133 | B143: EDELWEISS | C143: 245.25 | D143: 249.03 | E143: 239.37 | F143: 233.48 | G143: 223.82 | H143: 254.92 | I143: 264.58 | J143: 270.47 | K143: 258.7 | L143: 243.15 | M143: 24.00545
A144: 134 | B144: EICHERMOT | C144: 28934.25 | D144: 28861.63 | E144: 28473.27 | F144: 28012.28 | G144: 27623.92 | H144: 29322.62 | I144: 29710.98 | J144: 30171.97 | K144: 29250 | L144: 28400.65 | M144: 0.86068
A145: 135 | B145: EMAMILTD | C145: 1093.75 | D145: 1093.88 | E145: 1079.87 | F145: 1065.98 | G145: 1051.97 | H145: 1107.77 | I145: 1121.78 | J145: 1135.67 | K145: 1107.9 | L145: 1080 | M145: 1.37215
A146: 136 | B146: ENDURANCE | C146: 1272.85 | D146: 1274.17 | E146: 1258.58 | F146: 1244.32 | G146: 1228.73 | H146: 1288.43 | I146: 1304.02 | J146: 1318.28 | K146: 1289.75 | L146: 1259.9 | M146: 0.21761
A147: 137 | B147: ENGINERSIN | C147: 162.85 | D147: 163.62 | E147: 161.73 | F147: 160.62 | G147: 158.73 | H147: 164.73 | I147: 166.62 | J147: 167.73 | K147: 165.5 | L147: 162.5 | M147: 16.93949
A148: 138 | B148: EQUITAS | C148: 146.25 | D148: 147.32 | E148: 143.73 | F148: 141.22 | G148: 137.63 | H148: 149.83 | I148: 153.42 | J148: 155.93 | K148: 150.9 | L148: 144.8 | M148: 8.58876
A149: 139 | B149: EROSMEDIA | C149: 172.35 | D149: 173.62 | E149: 169.83 | F149: 167.32 | G149: 163.53 | H149: 176.13 | I149: 179.92 | J149: 182.43 | K149: 177.4 | L149: 171.1 | M149: 3.546
A150: 140 | B150: ESCORTS | C150: 872.6 | D150: 882.27 | E150: 860.33 | F150: 848.07 | G150: 826.13 | H150: 894.53 | I150: 916.47 | J150: 928.73 | K150: 904.2 | L150: 870 | M150: 15.35824
A151: 141 | B151: ESSELPACK | C151: 250.35 | D151: 252.45 | E151: 245.90 | F151: 241.45 | G151: 234.90 | H151: 256.90 | I151: 263.45 | J151: 267.90 | K151: 259 | L151: 248 | M151: 0.36038
A152: 142 | B152: EVEREADY | C152: 381.8 | D152: 381.40 | E152: 377.40 | F152: 373.00 | G152: 369.00 | H152: 385.80 | I152: 389.80 | J152: 394.20 | K152: 385.4 | L152: 377 | M152: 0.24981
A153: 143 | B153: EXIDEIND | C153: 230.95 | D153: 232.42 | E153: 228.53 | F153: 226.12 | G153: 222.23 | H153: 234.83 | I153: 238.72 | J153: 241.13 | K153: 236.3 | L153: 230 | M153: 32.20953
A154: 144 | B154: FEDERALBNK | C154: 91.4 | D154: 92.20 | E154: 90.45 | F154: 89.50 | G154: 87.75 | H154: 93.15 | I154: 94.90 | J154: 95.85 | K154: 93.95 | L154: 91.25 | M154: 110.87955
A155: 145 | B155: FINCABLES | C155: 692 | D155: 699.58 | E155: 678.87 | F155: 665.73 | G155: 645.02 | H155: 712.72 | I155: 733.43 | J155: 746.57 | K155: 720.3 | L155: 686.45 | M155: 0.32316
A156: 146 | B156: FINPIPE | C156: 655.3 | D156: 659.23 | E156: 650.07 | F156: 644.83 | G156: 635.67 | H156: 664.47 | I156: 673.63 | J156: 678.87 | K156: 668.4 | L156: 654 | M156: 1.31274
A157: 147 | B157: FSL | C157: 54.8 | D157: 55.62 | E157: 53.48 | F157: 52.17 | G157: 50.03 | H157: 56.93 | I157: 59.07 | J157: 60.38 | K157: 57.75 | L157: 54.3 | M157: 85.57732
A158: 148 | B158: FCONSUMER | C158: 54.2 | D158: 55.22 | E158: 53.03 | F158: 51.87 | G158: 49.68 | H158: 56.38 | I158: 58.57 | J158: 59.73 | K158: 57.4 | L158: 54.05 | M158: 79.60406
A159: 149 | B159: FLFL | C159: 391.15 | D159: 400.03 | E159: 378.62 | F159: 366.08 | G159: 344.67 | H159: 412.57 | I159: 433.98 | J159: 446.52 | K159: 421.45 | L159: 387.5 | M159: 3.43711
A160: 150 | B160: GAIL | C160: 328.25 | D160: 327.08 | E160: 324.17 | F160: 320.08 | G160: 317.17 | H160: 331.17 | I160: 334.08 | J160: 338.17 | K160: 330 | L160: 323 | M160: 29.67003
A161: 151 | B161: GEPIL | C161: 883.1 | D161: 902.05 | E161: 859.10 | F161: 835.10 | G161: 792.15 | H161: 926.05 | I161: 969.00 | J161: 993.00 | K161: 945 | L161: 878.05 | M161: 0.38398
A162: 152 | B162: GET&D | C162: 394.3 | D162: 397.40 | E162: 388.90 | F162: 383.50 | G162: 375.00 | H162: 402.80 | I162: 411.30 | J162: 416.70 | K162: 405.9 | L162: 392 | M162: 0.19301
A163: 153 | B163: GHCL | C163: 267.25 | D163: 270.45 | E163: 262.50 | F163: 257.75 | G163: 249.80 | H163: 275.20 | I163: 283.15 | J163: 287.90 | K163: 278.4 | L163: 265.7 | M163: 2.08273
A164: 154 | B164: GMRINFRA | C164: 18.25 | D164: 18.53 | E164: 17.82 | F164: 17.38 | G164: 16.67 | H164: 18.97 | I164: 19.68 | J164: 20.12 | K164: 19.25 | L164: 18.1 | M164: 521.59069
A165: 155 | B165: GVKPIL | C165: 14.75 | D165: 15.03 | E165: 14.32 | F165: 13.88 | G165: 13.17 | H165: 15.47 | I165: 16.18 | J165: 16.62 | K165: 15.75 | L165: 14.6 | M165: 62.49027
A166: 156 | B166: GDL | C166: 182.5 | D166: 184.35 | E166: 180.20 | F166: 177.90 | G166: 173.75 | H166: 186.65 | I166: 190.80 | J166: 193.10 | K166: 188.5 | L166: 182.05 | M166: 0.33664
A167: 157 | B167: GATI | C167: 97.65 | D167: 98.73 | E167: 96.02 | F167: 94.38 | G167: 91.67 | H167: 100.37 | I167: 103.08 | J167: 104.72 | K167: 101.45 | L167: 97.1 | M167: 9.4163
A168: 158 | B168: GILLETTE | C168: 6539.7 | D168: 6532.22 | E168: 6481.93 | F168: 6424.17 | G168: 6373.88 | H168: 6589.98 | I168: 6640.27 | J168: 6698.03 | K168: 6582.5 | L168: 6474.45 | M168: 0.01914
A169: 159 | B169: GSKCONS | C169: 6056.6 | D169: 6072.17 | E169: 5995.43 | F169: 5934.27 | G169: 5857.53 | H169: 6133.33 | I169: 6210.07 | J169: 6271.23 | K169: 6148.9 | L169: 6011 | M169: 0.59115
A170: 160 | B170: GLAXO | C170: 2191.85 | D170: 2184.07 | E170: 2165.88 | F170: 2139.92 | G170: 2121.73 | H170: 2210.03 | I170: 2228.22 | J170: 2254.18 | K170: 2202.25 | L170: 2158.1 | M170: 0.06501
A171: 161 | B171: GLENMARK | C171: 548.4 | D171: 550.48 | E171: 543.02 | F171: 537.63 | G171: 530.17 | H171: 555.87 | I171: 563.33 | J171: 568.72 | K171: 557.95 | L171: 545.1 | M171: 5.69495
A172: 162 | B172: GODFRYPHLP | C172: 844.3 | D172: 852.83 | E172: 832.07 | F172: 819.83 | G172: 799.07 | H172: 865.07 | I172: 885.83 | J172: 898.07 | K172: 873.6 | L172: 840.6 | M172: 1.08153
A173: 163 | B173: GODREJCP | C173: 1085.2 | D173: 1088.20 | E173: 1068.05 | F173: 1050.90 | G173: 1030.75 | H173: 1105.35 | I173: 1125.50 | J173: 1142.65 | K173: 1108.35 | L173: 1071.05 | M173: 4.22112
A174: 164 | B174: GODREJIND | C174: 534.4 | D174: 541.02 | E174: 524.13 | F174: 513.87 | G174: 496.98 | H174: 551.28 | I174: 568.17 | J174: 578.43 | K174: 557.9 | L174: 530.75 | M174: 16.85553
A175: 165 | B175: GODREJPROP | C175: 716.15 | D175: 720.02 | E175: 701.13 | F175: 686.12 | G175: 667.23 | H175: 735.03 | I175: 753.92 | J175: 768.93 | K175: 738.9 | L175: 705 | M175: 1.01263
A176: 166 | B176: GRANULES | C176: 105.8 | D176: 107.15 | E176: 103.75 | F176: 101.70 | G176: 98.30 | H176: 109.20 | I176: 112.60 | J176: 114.65 | K176: 110.55 | L176: 105.1 | M176: 21.78083
A177: 167 | B177: GESHIP | C177: 327.35 | D177: 329.07 | E177: 324.43 | F177: 321.52 | G177: 316.88 | H177: 331.98 | I177: 336.62 | J177: 339.53 | K177: 333.7 | L177: 326.15 | M177: 0.59903
A178: 168 | B178: GREAVESCOT | C178: 119.6 | D178: 120.40 | E178: 118.30 | F178: 117.00 | G178: 114.90 | H178: 121.70 | I178: 123.80 | J178: 125.10 | K178: 122.5 | L178: 119.1 | M178: 4.33202
A179: 169 | B179: GREENPLY | C179: 318.85 | D179: 316.98 | E179: 313.22 | F179: 307.58 | G179: 303.82 | H179: 322.62 | I179: 326.38 | J179: 332.02 | K179: 320.75 | L179: 311.35 | M179: 0.33486
A180: 170 | B180: GRUH | C180: 598.25 | D180: 598.55 | E180: 590.70 | F180: 583.15 | G180: 575.30 | H180: 606.10 | I180: 613.95 | J180: 621.50 | K180: 606.4 | L180: 591 | M180: 2.75293
A181: 171 | B181: GUJALKALI | C181: 710.1 | D181: 717.07 | E181: 698.13 | F181: 686.17 | G181: 667.23 | H181: 729.03 | I181: 747.97 | J181: 759.93 | K181: 736 | L181: 705.1 | M181: 0.98244
A182: 172 | B182: GUJFLUORO | C182: 791.75 | D182: 800.30 | E182: 779.60 | F182: 767.45 | G182: 746.75 | H182: 812.45 | I182: 833.15 | J182: 845.30 | K182: 821 | L182: 788.15 | M182: 0.36093
A183: 173 | B183: GUJGASLTD | C183: 845.05 | D183: 844.97 | E183: 840.98 | F183: 836.92 | G183: 832.93 | H183: 849.03 | I183: 853.02 | J183: 857.08 | K183: 848.95 | L183: 840.9 | M183: 0.09444
A184: 174 | B184: GMDCLTD | C184: 129.9 | D184: 131.15 | E184: 127.55 | F184: 125.20 | G184: 121.60 | H184: 133.50 | I184: 137.10 | J184: 139.45 | K184: 134.75 | L184: 128.8 | M184: 2.02885
A185: 175 | B185: GNFC | C185: 387.15 | D185: 391.93 | E185: 380.32 | F185: 373.48 | G185: 361.87 | H185: 398.77 | I185: 410.38 | J185: 417.22 | K185: 403.55 | L185: 385.1 | M185: 21.19354
A186: 176 | B186: GPPL | C186: 140 | D186: 141.38 | E186: 137.82 | F186: 135.63 | G186: 132.07 | H186: 143.57 | I186: 147.13 | J186: 149.32 | K186: 144.95 | L186: 139.2 | M186: 2.05139
A187: 177 | B187: GSFC | C187: 121.15 | D187: 122.50 | E187: 119.15 | F187: 117.15 | G187: 113.80 | H187: 124.50 | I187: 127.85 | J187: 129.85 | K187: 125.85 | L187: 120.5 | M187: 13.74309
A188: 178 | B188: GSPL | C188: 184.85 | D188: 184.80 | E188: 182.15 | F188: 179.45 | G188: 176.80 | H188: 187.50 | I188: 190.15 | J188: 192.85 | K188: 187.45 | L188: 182.1 | M188: 5.41353
A189: 179 | B189: GULFOILLUB | C189: 914.45 | D189: 917.02 | E189: 904.53 | F189: 894.62 | G189: 882.13 | H189: 926.93 | I189: 939.42 | J189: 949.33 | K189: 929.5 | L189: 907.1 | M189: 0.12212
A190: 180 | B190: HCL-INSYS | C190: 52.2 | D190: 52.73 | E190: 50.97 | F190: 49.73 | G190: 47.97 | H190: 53.97 | I190: 55.73 | J190: 56.97 | K190: 54.5 | L190: 51.5 | M190: 19.00597
A191: 181 | B191: HCLTECH | C191: 959.25 | D191: 963.33 | E191: 945.42 | F191: 931.58 | G191: 913.67 | H191: 977.17 | I191: 995.08 | J191: 1008.92 | K191: 981.25 | L191: 949.5 | M191: 9.0239
A192: 182 | B192: HDFCBANK | C192: 1883.25 | D192: 1895.55 | E192: 1866.15 | F192: 1849.05 | G192: 1819.65 | H192: 1912.65 | I192: 1942.05 | J192: 1959.15 | K192: 1924.95 | L192: 1878.45 | M192: 9.28527
A193: 183 | B193: HSIL | C193: 392.8 | D193: 400.72 | E193: 382.43 | F193: 372.07 | G193: 353.78 | H193: 411.08 | I193: 429.37 | J193: 439.73 | K193: 419 | L193: 390.35 | M193: 1.65891
A194: 184 | B194: HTMEDIA | C194: 86.15 | D194: 86.82 | E194: 85.03 | F194: 83.92 | G194: 82.13 | H194: 87.93 | I194: 89.72 | J194: 90.83 | K194: 88.6 | L194: 85.7 | M194: 1.41085
A195: 185 | B195: HATHWAY | C195: 36.8 | D195: 37.02 | E195: 35.43 | F195: 34.07 | G195: 32.48 | H195: 38.38 | I195: 39.97 | J195: 41.33 | K195: 38.6 | L195: 35.65 | M195: 9.03267
A196: 186 | B196: HATSUN | C196: 699.4 | D196: 701.45 | E196: 693.90 | F196: 688.40 | G196: 680.85 | H196: 706.95 | I196: 714.50 | J196: 720.00 | K196: 709 | L196: 695.95 | M196: 0.10358
A197: 187 | B197: HAVELLS | C197: 504.35 | D197: 506.78 | E197: 500.57 | F197: 496.78 | G197: 490.57 | H197: 510.57 | I197: 516.78 | J197: 520.57 | K197: 513 | L197: 503 | M197: 19.06614
A198: 188 | B198: HEIDELBERG | C198: 145.35 | D198: 146.70 | E198: 143.45 | F198: 141.55 | G198: 138.30 | H198: 148.60 | I198: 151.85 | J198: 153.75 | K198: 149.95 | L198: 144.8 | M198: 2.21478
A199: 189 | B199: HERITGFOOD | C199: 730.1 | D199: 732.55 | E199: 715.10 | F199: 700.10 | G199: 682.65 | H199: 747.55 | I199: 765.00 | J199: 780.00 | K199: 750 | L199: 717.55 | M199: 0.35084
A200: 190 | B200: HEROMOTOCO | C200: 3667.15 | D200: 3663.05 | E200: 3631.10 | F200: 3595.05 | G200: 3563.10 | H200: 3699.10 | I200: 3731.05 | J200: 3767.10 | K200: 3695 | L200: 3627 | M200: 5.26063
A201: 191 | B201: HEXAWARE | C201: 396.2 | D201: 402.75 | E201: 386.50 | F201: 376.80 | G201: 360.55 | H201: 412.45 | I201: 428.70 | J201: 438.40 | K201: 419 | L201: 393.05 | M201: 24.61468
A202: 192 | B202: HFCL | C202: 26.65 | D202: 27.05 | E202: 25.95 | F202: 25.25 | G202: 24.15 | H202: 27.75 | I202: 28.85 | J202: 29.55 | K202: 28.15 | L202: 26.35 | M202: 78.06904
A203: 193 | B203: HIMATSEIDE | C203: 360.65 | D203: 360.40 | E203: 355.80 | F203: 350.95 | G203: 346.35 | H203: 365.25 | I203: 369.85 | J203: 374.70 | K203: 365 | L203: 355.55 | M203: 1.18916
A204: 194 | B204: HINDALCO | C204: 200.8 | D204: 203.63 | E204: 197.17 | F204: 193.53 | G204: 187.07 | H204: 207.27 | I204: 213.73 | J204: 217.37 | K204: 210.1 | L204: 200 | M204: 177.52702
A205: 195 | B205: HCC | C205: 24.15 | D205: 24.70 | E205: 23.35 | F205: 22.55 | G205: 21.20 | H205: 25.50 | I205: 26.85 | J205: 27.65 | K205: 26.05 | L205: 23.9 | M205: 252.35874
A206: 196 | B206: HINDCOPPER | C206: 66.05 | D206: 66.65 | E206: 64.90 | F206: 63.75 | G206: 62.00 | H206: 67.80 | I206: 69.55 | J206: 70.70 | K206: 68.4 | L206: 65.5 | M206: 23.73809
... 306 more rows

Sheet Bulk Deals
E6: Back To Main Page
A7: Subject : | B7: BULK DEAL | D7: =Main!B10 -> 2018-04-05
A9: Date | B9: Scrip code | C9: Scrip Name | D9: Client Name | E9: Buy / Sell | F9: Quantity Traded | G9: Trade Price / Wt.Avg.trade price | H9: Exchange
A10: 2018-04-04 | B10: 540615 | C10: 7NR | D10: SANGHVI BELA SAMIR | E10: SELL | F10: 60,000 | G10: 27.26 | H10: BSE
A11: 2018-04-04 | B11: 540615 | C11: 7NR | D11: AJAY JASVANTLAL DOSHI | E11: BUY | F11: 60,000 | G11: 27.66 | H11: BSE
A12: 2018-04-04 | B12: 520123 | C12: ABCINDQ | D12: GIRDHAR TRANSPORT COMPANY | E12: SELL | F12: 27,799 | G12: 138.88 | H12: BSE
A13: 2018-04-04 | B13: 520123 | C13: ABCINDQ | D13: GIRDHAR TRANSPORT COMPANY | E13: BUY | F13: 27,799 | G13: 137.49 | H13: BSE
A14: 2018-04-04 | B14: 539872 | C14: BAJAJHCARE | D14: ARYAMAN BROKING LIMITED | E14: SELL | F14: 40,000 | G14: 400.04 | H14: BSE
A15: 2018-04-04 | B15: 539872 | C15: BAJAJHCARE | D15: VINOD HARILAL JHAVERI | E15: BUY | F15: 65,200 | G15: 400 | H15: BSE
A16: 2018-04-04 | B16: 541178 | C16: BENARA | D16: CHIRAG NARENDRA MODH | E16: SELL | F16: 202,000 | G16: 64.8 | H16: BSE
A17: 2018-04-04 | B17: 541178 | C17: BENARA | D17: CHIRAG NARENDRA MODH | E17: BUY | F17: 100,000 | G17: 61.36 | H17: BSE
A18: 2018-04-04 | B18: 541178 | C18: BENARA | D18: JOHNSON AND ANDREW PROPERTIES PVT LTD | E18: BUY | F18: 100,000 | G18: 64.8 | H18: BSE
A19: 2018-04-04 | B19: 541178 | C19: BENARA | D19: SUNIL GIRIDHARILAL RAHEJA | E19: BUY | F19: 218,000 | G19: 61.79 | H19: BSE
A20: 2018-04-04 | B20: 541178 | C20: BENARA | D20: POOJA KUMAR CHANDNA | E20: BUY | F20: 116,000 | G20: 64.77 | H20: BSE
A21: 2018-04-04 | B21: 541178 | C21: BENARA | D21: NIRAJ RAJNIKANT SHAH | E21: SELL | F21: 100,000 | G21: 65 | H21: BSE
A22: 2018-04-04 | B22: 530803 | C22: BHAGIL | D22: FLORENCE SECURITIES PRIVATE LIMITED | E22: SELL | F22: 100,000 | G22: 291.91 | H22: BSE
A23: 2018-04-04 | B23: 539770 | C23: DARJEELING | D23: AAKASH DOSHI | E23: SELL | F23: 50,200 | G23: 13.5 | H23: BSE
A24: 2018-04-04 | B24: 539770 | C24: DARJEELING | D24: SANJAY JAYKANT SHAH | E24: BUY | F24: 50,000 | G24: 13.5 | H24: BSE
A25: 2018-04-04 | B25: 540151 | C25: DIKSAT | D25: VINOD HARILAL JHAVERI | E25: BUY | F25: 351,000 | G25: 100 | H25: BSE
A26: 2018-04-04 | B26: 540151 | C26: DIKSAT | D26: SAJANKUMAR RAMESHWARLAL BAJAJ | E26: SELL | F26: 291,000 | G26: 100 | H26: BSE
A27: 2018-04-04 | B27: 540936 | C27: GGL | D27: GLORIOUS VINCOM PRIVATE LIMITED | E27: SELL | F27: 36,000 | G27: 75.5 | H27: BSE
A28: 2018-04-04 | B28: 513693 | C28: KAJARIR | D28: BHIKSU BARTER PVT LTD | E28: SELL | F28: 48,185 | G28: 160.4 | H28: BSE
A29: 2018-04-04 | B29: 513693 | C29: KAJARIR | D29: MANPHOOL EXPORTS LIMITED | E29: BUY | F29: 43,385 | G29: 160.4 | H29: BSE
A30: 2018-04-04 | B30: 513693 | C30: KAJARIR | D30: GITA KIRTI AMBANI | E30: BUY | F30: 90,429 | G30: 160.4 | H30: BSE
A31: 2018-04-04 | B31: 540402 | C31: MANAS | D31: VINOD HARILAL JHAVERI | E31: BUY | F31: 82,500 | G31: 363 | H31: BSE
A32: 2018-04-04 | B32: 540402 | C32: MANAS | D32: ARYAMAN BROKING LIMITED | E32: SELL | F32: 82,500 | G32: 363 | H32: BSE
A33: 2018-04-04 | B33: 540402 | C33: MANAS | D33: ARYAMAN BROKING LIMITED | E33: BUY | F33: 300 | G33: 363 | H33: BSE
A34: 2018-04-04 | B34: 540078 | C34: MITSU | D34: AARAV FINANCIAL SERVICES PRIVATE LIMITED | E34: SELL | F34: 42,000 | G34: 150 | H34: BSE
A35: 2018-04-04 | B35: 540078 | C35: MITSU | D35: VINOD HARILAL JHAVERI | E35: BUY | F35: 108,000 | G35: 150 | H35: BSE
A36: 2018-04-04 | B36: 538668 | C36: NAYSAA | D36: MUKESHKUMAR MAVJIBHAI PARMAR | E36: BUY | F36: 36,000 | G36: 29.8 | H36: BSE
A37: 2018-04-04 | B37: 538668 | C37: NAYSAA | D37: KUNJAN DELIWALA (HUF) | E37: SELL | F37: 36,000 | G37: 29.42 | H37: BSE
A38: 2018-04-04 | B38: 526905 | C38: PADMAIND | D38: ARVIND SHANTILAL SHAH | E38: BUY | F38: 75,000 | G38: 97.98 | H38: BSE
A39: 2018-04-04 | B39: 526905 | C39: PADMAIND | D39: KAILASBEN SHIRISHBHAI SHAH | E39: SELL | F39: 31,000 | G39: 98.28 | H39: BSE
A40: 2018-04-04 | B40: 531802 | C40: PRERINFRA | D40: NIRANJANABEN AVIANSH SHAH | E40: SELL | F40: 76,000 | G40: 14.7 | H40: BSE
A41: 2018-04-04 | B41: 531802 | C41: PRERINFRA | D41: SWETAL VIJAY SHAH | E41: BUY | F41: 81,370 | G41: 14.7 | H41: BSE
A42: 2018-04-04 | B42: 539526 | C42: SCTL | D42: NEWEDGE VINIMAY PRIVATE LIMITED | E42: BUY | F42: 30,000 | G42: 37 | H42: BSE
A43: 2018-04-04 | B43: 539526 | C43: SCTL | D43: BRIJMOHAN DAVDAYAL AGARWAL | E43: SELL | F43: 30,000 | G43: 37 | H43: BSE
A44: 2018-04-04 | B44: 539520 | C44: SHAILJA | D44: SWAMINATHAN KRISHNAN | E44: SELL | F44: 5,128 | G44: 12.09 | H44: BSE
A45: 2018-04-04 | B45: 539520 | C45: SHAILJA | D45: SWAMINATHAN KRISHNAN | E45: BUY | F45: 16,696 | G45: 12.1 | H45: BSE
A46: 2018-04-04 | B46: 540738 | C46: STL | D46: DHRUV HARSHADBHAI PATEL | E46: SELL | F46: 23,000 | G46: 132 | H46: BSE
A47: 2018-04-04 | B47: 540738 | C47: STL | D47: OVERSKUD MULTI ASSET MANAGEMENT PRIVATE LIMITED | E47: BUY | F47: 41,000 | G47: 132 | H47: BSE
A48: 2018-04-04 | B48: 540108 | C48: TAHL | D48: RAVI PRAKASH CHHAJER HUF | E48: SELL | F48: 20,000 | G48: 7.44 | H48: BSE
A49: 2018-04-04 | B49: 511764 | C49: UPASAFN | D49: REKHA M JAIN* | E49: SELL | F49: 50,000 | G49: 41.01 | H49: BSE
A50: 2018-04-04 | B50: 511764 | C50: UPASAFN | D50: CHETAN KUMAR A | E50: BUY | F50: 23,650 | G50: 41 | H50: BSE
A51: 2018-04-04 | B51: 511764 | C51: UPASAFN | D51: NIKITHA A | E51: BUY | F51: 25,000 | G51: 41 | H51: BSE
A52: 2018-04-04 | B52: 541167 | C52: YASHO | D52: AMAR MUKESHBHAI SHAH | E52: BUY | F52: 60,000 | G52: 100.75 | H52: BSE
A53: 2018-04-04 | B53: 541167 | C53: YASHO | D53: VISHAL RAJNIKANT BHANSALI | E53: SELL | F53: 637,200 | G53: 100.75 | H53: BSE
A54: 2018-04-04 | B54: 541167 | C54: YASHO | D54: SAJANKUMAR RAMESHWARLAL BAJAJ | E54: BUY | F54: 136,800 | G54: 100.75 | H54: BSE
A55: 2018-04-04 | B55: 541167 | C55: YASHO | D55: OVERSKUD MULTI ASSET MANAGEMENT PRIVATE LIMITED | E55: BUY | F55: 60,000 | G55: 100.71 | H55: BSE
A56: 2018-04-04 | B56: ADFFOODS | C56: ADF Foods Limited | D56: AGARWAL MANISH | E56: BUY | F56: 155,000 | G56: 246.94 | H56: NSE
A57: 2018-04-04 | B57: AGRITECH | C57: Agri-Tech (India) Limited | D57: ASHWIN STOCKS AND INVESTMENT PRIVATE LIMITED | E57: BUY | F57: 34,799 | G57: 134.25 | H57: NSE
A58: 2018-04-04 | B58: AGROPHOS | C58: Agro Phos India Limited | D58: ANIL DHIRAJLAL NAYAK | E58: BUY | F58: 102,000 | G58: 35.49 | H58: NSE
A59: 2018-04-04 | B59: CONTI | C59: Continental Seed Chem Ltd | D59: RAJESH PAL | E59: BUY | F59: 176,000 | G59: 26.14 | H59: NSE
A60: 2018-04-04 | B60: CONTI | C60: Continental Seed Chem Ltd | D60: VIJAY PRAKASH GUPTA | E60: BUY | F60: 176,000 | G60: 25.76 | H60: NSE
A61: 2018-04-04 | B61: GIRIRAJ | C61: Giriraj Civil Devp Ltd | D61: HARSHA RAJESHBHAI JHAVERI | E61: BUY | F61: 24,000 | G61: 100.35 | H61: NSE
A62: 2018-04-04 | B62: GIRIRAJ | C62: Giriraj Civil Devp Ltd | D62: SHAH BABULAL VADILAL HUF | E62: BUY | F62: 36,000 | G62: 100.4 | H62: NSE
A63: 2018-04-04 | B63: GIRIRAJ | C63: Giriraj Civil Devp Ltd | D63: SHAH MUKESHKUMAR BABULAL | E63: BUY | F63: 30,000 | G63: 100.4 | H63: NSE
A64: 2018-04-04 | B64: HILTON | C64: Hilton Metal Forging Limi | D64: GIRDHAR TRANSPORT COMPANY | E64: BUY | F64: 217,088 | G64: 33.68 | H64: NSE
A65: 2018-04-04 | B65: INDOTHAI | C65: Indo Thai Sec Ltd | D65: GOEL POONAM | E65: BUY | F65: 116,088 | G65: 78.66 | H65: NSE
A66: 2018-04-04 | B66: KAPSTON | C66: Kapston Facilities Mgmt L | D66: BRIJESH PAREKH HUF | E66: BUY | F66: 49,200 | G66: 92.31 | H66: NSE
A67: 2018-04-04 | B67: NANDANI | C67: Nandani Creation Limited | D67: ARVIND SHANTILAL SHAH | E67: BUY | F67: 16,000 | G67: 73.18 | H67: NSE
A68: 2018-04-04 | B68: NELCO | C68: Nelco Ltd. | D68: BP FINTRADE PRIVATE LIMITED | E68: BUY | F68: 117,591 | G68: 195.12 | H68: NSE
A69: 2018-04-04 | B69: NELCO | C69: Nelco Ltd. | D69: GAURAV DOSHI | E69: BUY | F69: 124,932 | G69: 195.35 | H69: NSE
A70: 2018-04-04 | B70: TARMAT | C70: Tarmat Limited | D70: BP FINTRADE PRIVATE LIMITED | E70: BUY | F70: 57,004 | G70: 64.94 | H70: NSE
A71: 2018-04-04 | B71: TCIFINANCE | C71: TCI Finance Limited | D71: BILGAIYAN SUMIT | E71: BUY | F71: 70,000 | G71: 29.1 | H71: NSE
A72: 2018-04-04 | B72: TCIFINANCE | C72: TCI Finance Limited | D72: GIRDHAR TRANSPORT COMPANY | E72: BUY | F72: 107,323 | G72: 28.16 | H72: NSE
A73: 2018-04-04 | B73: UNITECH | C73: Unitech Ltd | D73: ADROIT FINANCIAL SERVICES PRIVATE LIMITED | E73: BUY | F73: 23,793,326 | G73: 6.77 | H73: NSE
A74: 2018-04-04 | B74: URAVI | C74: Uravi T And Wedg Lamp Ltd | D74: AARAV FINANCIAL SERVICES PVT.LTD | E74: BUY | F74: 66,000 | G74: 100.8 | H74: NSE
A75: 2018-04-04 | B75: ADFFOODS | C75: ADF Foods Limited | D75: AGARWAL MANISH | E75: SELL | F75: 155,000 | G75: 227.11 | H75: NSE
A76: 2018-04-04 | B76: AGRITECH | C76: Agri-Tech (India) Limited | D76: ASHWIN STOCKS AND INVESTMENT PRIVATE LIMITED | E76: SELL | F76: 24,000 | G76: 133.96 | H76: NSE
A77: 2018-04-04 | B77: AGROPHOS | C77: Agro Phos India Limited | D77: KIRJAL SECUITIES PVT. LTD | E77: SELL | F77: 162,000 | G77: 35.5 | H77: NSE
A78: 2018-04-04 | B78: ARCOTECH | C78: Arcotech Limited | D78: VASUDHA COMMERCIAL PRIVATE LIMITED | E78: SELL | F78: 550,000 | G78: 35.01 | H78: NSE
A79: 2018-04-04 | B79: GIRIRAJ | C79: Giriraj Civil Devp Ltd | D79: VISHAL RAJNIKANT BHANSALI | E79: SELL | F79: 84000 | G79: 100.4 | H79: NSE
A80: 2018-04-04 | B80: HILTON | C80: Hilton Metal Forging Limi | D80: GIRDHAR TRANSPORT COMPANY | E80: SELL | F80: 217087 | G80: 34.65 | H80: NSE
A81: 2018-04-04 | B81: INDOTHAI | C81: Indo Thai Sec Ltd | D81: GOEL POONAM | E81: SELL | F81: 116088 | G81: 78.82 | H81: NSE
A82: 2018-04-04 | B82: MIDHANI | C82: Mishra Dhatu Nigam Ltd | D82: CANARA BANK | E82: SELL | F82: 969699 | G82: 89 | H82: NSE
A83: 2018-04-04 | B83: MIDHANI | C83: Mishra Dhatu Nigam Ltd | D83: UNION BANK OF INDIA | E83: SELL | F83: 1000000 | G83: 90.03 | H83: NSE
A84: 2018-04-04 | B84: NANDANI | C84: Nandani Creation Limited | D84: MANISH BIHANI | E84: SELL | F84: 28000 | G84: 77.4 | H84: NSE
A85: 2018-04-04 | B85: NELCO | C85: Nelco Ltd. | D85: BP FINTRADE PRIVATE LIMITED | E85: SELL | F85: 112591 | G85: 195.61 | H85: NSE
A86: 2018-04-04 | B86: NELCO | C86: Nelco Ltd. | D86: GAURAV DOSHI | E86: SELL | F86: 127962 | G86: 195.5 | H86: NSE
A87: 2018-04-04 | B87: SUNILHITEC | C87: Sunil Hitech Engr Ltd | D87: RELIANCE FINANCIAL LIMITED | E87: SELL | F87: 3887000 | G87: 7.65 | H87: NSE
A88: 2018-04-04 | B88: TARMAT | C88: Tarmat Limited | D88: BP FINTRADE PRIVATE LIMITED | E88: SELL | F88: 57113 | G88: 65.2 | H88: NSE
A89: 2018-04-04 | B89: TCIFINANCE | C89: TCI Finance Limited | D89: GIRDHAR TRANSPORT COMPANY | E89: SELL | F89: 107323 | G89: 29.04 | H89: NSE
A90: 2018-04-04 | B90: TCIFINANCE | C90: TCI Finance Limited | D90: NAYAN DASHRATHLAL PATEL HUF | E90: SELL | F90: 70000 | G90: 28 | H90: NSE
A91: 2018-04-04 | B91: UNITECH | C91: Unitech Ltd | D91: ADROIT FINANCIAL SERVICES PRIVATE LIMITED | E91: SELL | F91: 24180493 | G91: 6.73 | H91: NSE

Sheet Call Tracker (Equity & F&O)
N5: Back To Main Page
A6: Retail Research Technical Calls & Fundamental Performance Report for the month of April -2018
N7: =Main!B10 -> 2018-04-05
B8: Positional Call
A9: Sr.no | B9: Date | D9: Company | E9: Rec | F9: Rec Price | G9: Stop Loss*** | H9: Call Closed At | I9: Target | J9: Remark | L9: Profit / Loss per Share | M9: Gain / Loss % | N9: Status | O9: Closed Date | P9: NSE Closed Price
A10: 1 | B10: 2018-02-09 | D10: HINDUNILVR | E10: Buy | F10: 1330-1334 | G10: 1275 | I10: 1450 | J10: Open | P10: =VLOOKUP(D10,Sheet2!$A$1:M2108,6,0) -> 1357.45 | S10: A
A11: 2 | B11: 2018-02-12 | D11: ITC | E11: Buy | F11: 271-272 | G11: 250 | I11: 310 | J11: Open | P11: =VLOOKUP(D11,Sheet2!$A$1:M2109,6,0) -> 258.6 | S11: P
A12: 3 | B12: 2018-03-08 | D12: CADILAHC | E12: Buy | F12: 385 | G12: 367 | H12: 397.5 | I12: 420 | J12: Profit of Rs.12.5/- | L12: =H12-F12-K12 -> 12.5 | M12: =L12/F12 -> 3.25% | N12: Successful | O12: 2018-04-04 | P12: =VLOOKUP(D12,Sheet2!$A$1:M2132,6,0) -> 394.7 | S12: R
A13: 4 | B13: 2018-03-13 | D13: LUPIN | E13: Buy | F13: 772 | G13: 732 | H13: 796 | I13: 850 | J13: Part Profit of Rs.24/- | L13: =H13-F13-K13 -> 24 | M13: =L13/F13 -> 3.11% | N13: Successful | O13: 2018-04-03 | P13: =VLOOKUP(D13,Sheet2!$A$1:M2133,6,0) -> 775.2 | S13: R
A14: 5 | B14: 2018-03-16 | D14: TATACHEM | E14: Buy | F14: 686.5 | G14: 658 | H14: 714.5 | I14: 730-750 | J14: Profit of Rs.28/- | L14: =H14-F14-K14 -> 28 | M14: =L14/F14 -> 4.08% | N14: Successful | O14: 2018-04-03 | P14: =VLOOKUP(D14,Sheet2!$A$1:M2134,6,0) -> 708.05 | S14: H
A15: 6 | B15: 2018-03-19 | D15: TCS | E15: Buy | F15: 2840-2845 | G15: 2720 | I15: 3050 | J15: Open | P15: =VLOOKUP(D15,Sheet2!$A$1:M2136,6,0) -> 2910.9 | S15: A
A16: 7 | B16: 2018-03-27 | D16: KPIT | E16: Buy | F16: 219.5 | G16: 210 | H16: 226 | I16: 240 | J16: Part Profit of Rs.6.5/- | L16: =H16-F16-K16 -> 6.5 | M16: =L16/F16 -> 2.96% | N16: Successful | O16: 2018-03-27 | S16: R
A17: 8 | B17: 2018-03-27 | D17: ICICIBANK | E17: Buy | F17: 283 | G17: 268 | H17: 262.5 | I17: 310 | J17: Loss of Rs.20.5/- | L17: =H17-F17-K17 -> -20.5 | M17: -7.24% | N17: Unsuccessful | O17: 2018-04-02 | S17: R
A18: 9 | B18: 2018-03-28 | D18: LT | E18: Buy | F18: 1292.5 | G18: 1245 | H18: 1334.5 | I18: 1375-1395 | J18: Profit of Rs.42/- | L18: =H18-F18-K18 -> 42 | M18: =L18/F18 -> 3.25% | N18: Successful | O18: 2018-04-03 | S18: H
A19: 10 | B19: 2018-04-02 | D19: AMBUJACEM | E19: Buy | F19: 232 | G19: 219 | H19: 239.75 | I19: 250-255 | J19: Profit of Rs.7.75/- | L19: =H19-F19-K19 -> 7.75 | M19: =L19/F19 -> 3.34% | N19: Successful | O19: 2018-04-03 | S19: H
A20: 11 | B20: 2018-04-02 | D20: COLPAL | E20: Buy | F20: 1050 | G20: 998 | H20: 1087 | I20: 1140-1160 | J20: Profit of Rs.37/- | L20: =H20-F20-K20 -> 37 | M20: 3.52% | N20: Successful | O20: 2018-04-04 | S20: H
A21: 12 | B21: 2018-04-02 | D21: ITC | E21: Buy | F21: 257-258 | G21: 248 | I21: 280-285 | J21: Open | P21: =VLOOKUP(D21,Sheet2!$A$1:M2142,6,0) -> 258.6 | S21: A
A22: 13 | B22: 2018-04-03 | D22: UJJIVAN | E22: Buy | F22: 351.5 | G22: 334 | H22: 364.5 | I22: 380-385 | J22: Profit of Rs.13/- | L22: =H22-F22-K22 -> 13 | M22: =L22/F22 -> 3.70% | N22: Successful | O22: 2018-04-04 | P22: =VLOOKUP(D22,Sheet2!$A$1:M2142,6,0) -> 358.75 | S22: R
A23: 14 | B23: 2018-04-03 | D23: IGL | E23: Buy | F23: 277-279 | G23: 267 | I23: 295-300 | J23: Open | P23: =VLOOKUP(D23,Sheet2!$A$1:M2144,6,0) -> 281.25 | S23: H
A24: 15 | B24: 2018-04-03 | D24: JUBLFOOD | E24: Sell | F24: 2335-2345 | G24: 2450 | I24: 2150 | J24: Open | P24: =VLOOKUP(D24,Sheet2!$A$1:M2145,6,0) -> 2309.3 | S24: R
A27: CLBS = Closing Basis *** | F27: Reinitiated $
A28: Dividend adjusted <> | F28: Revised stoploss #
A30: Master Trade High Risk
A31: Sr.no | B31: Date | D31: Company | E31: Rec | F31: Rec Price | G31: Stop Loss | H31: Call Closed At | I31: Target | J31: Remark | L31: Profit / Loss per share | M31: Gain / Loss per Lot | N31: Lot | O31: Status | P31: Closed Date
A32: 1 | B32: 2018-03-27 | D32: HDFCBANK APR FUT | E32: Buy | F32: 1887.5 | G32: 1858 | H32: 1910 | I32: 1930-1940 | J32: Profit of Rs.22.5/- | L32: =H32-F32 -> 22.5 | M32: =L32*N32 -> 11250 | N32: 500 | O32: Successful | P32: 2018-04-02 | S32: H
A33: 2 | B33: 2018-03-28 | D33: NIFTY APR FUT | E33: Buy | F33: 10156 | G33: 10050 | H33: 10235 | I33: 10350 | J33: Profit of Rs.50/- | L33: =H33-F33 -> 79 | M33: =L33*N33 -> 5925 | N33: 75 | O33: Successful | P33: 2018-04-02 | S33: A
D34: NIFTY APR 10200 CE | E34: Sell | F34: 140 | H34: 169 | L34: =F34-H34 -> -29 | M34: =L34*N33 -> -2175
A37: Master Trade Medium Risk
A38: Sr.no | B38: Date | D38: Company | E38: Rec | F38: Rec Price | G38: Stop Loss | H38: Call Closed At | I38: Target | J38: Remark | L38: Profit/Loss per lot | M38: Gain / Loss per Lot | N38: Lot | O38: Status | P38: Closed Date
B41: Smart Delivery Trade
A42: Sr.no | B42: Date | D42: Company | E42: Rec | F42: Rec Price | G42: Stop Loss*** | H42: Call Closed At | I42: Target | J42: Remark | L42: Profit / Loss per Share | M42: Gain / Loss % | N42: Status | O42: Closed Date | P42: NSE Closed Price
A43: 1 | B43: 2018-02-15 | D43: ACC | E43: Buy$ | F43: 1585 | G43: 1520 | I43: 1750 | J43: Open | P43: =VLOOKUP(D43,Sheet2!$A$1:M2140,6,0) -> 1530 | S43: R
A44: 2 | B44: 2018-03-12 | D44: MOTHERSUMI | E44: Buy | F44: 317.5 | G44: 307 | H44: 327 | I44: 335 | J44: Profit of Rs.9.5/- | L44: =H44-F44-K44 -> 9.5 | M44: =L44/F44 -> 2.99% | N44: Successful | O44: 2018-04-02 | S44: R
A45: 3 | B45: 2018-03-13 | D45: PETRONET | E45: Buy | F45: 235-236 | G45: 228 | I45: 245-250 | J45: Open | P45: =VLOOKUP(D45,Sheet2!$A$1:M2153,6,0) -> 230.85 | S45: H
A46: 4 | B46: 2018-03-21 | D46: GREAVESCOT | E46: Buy | F46: 117 | G46: 113 | H46: 120.5 | I46: 125 | J46: Profit of Rs.3.5/- | L46: =H46-F46-K46 -> 3.5 | M46: =L46/F46 -> 2.99% | N46: Successful | O46: 2018-04-02 | S46: R
A47: 5 | B47: 2018-03-26 | D47: VIPIND | E47: Buy | F47: 317-319 | G47: 310 | I47: 335 | J47: Open | P47: =VLOOKUP(D47,Sheet2!$A$1:M2155,6,0) -> 317.9 | S47: R
A48: 6 | B48: 2018-04-02 | D48: DLF | E48: Buy | F48: 202 | G48: 194 | H48: 208 | I48: 212-215 | J48: Profit of Rs.6/- | L48: =H48-F48-K48 -> 6 | M48: =L48/F48 -> 2.97% | N48: Successful | O48: 2018-04-04 | S48: H
A49: 7 | B49: 2018-04-02 | D49: RADICO | E49: Buy | F49: 339.5 | G49: 330 | H49: 350 | I49: 360 | J49: Profit of Rs.10.5/- | L49: =H49-F49-K49 -> 10.5 | M49: =L49/F49 -> 3.09% | N49: Successful | O49: 2018-04-02 | S49: R
A50: 8 | B50: 2018-04-03 | D50: DHFL | E50: Buy | F50: 526.5 | G50: 510 | H50: 541.5 | I50: 550 | J50: Profit of Rs.15/- | L50: =H50-F50-K50 -> 15 | M50: =L50/F50 -> 2.85% | N50: Successful | O50: 2018-04-04 | S50: R
A51: 9 | B51: 2018-04-03 | D51: JINDALSTEL | E51: Buy | F51: 226.5 | G51: 219 | H51: 233.5 | I51: 237 | J51: Profit of Rs.7/- | L51: =H51-F51-K51 -> 7 | M51: 3.09% | N51: Successful | O51: 2018-04-04 | S51: R
A52: 10 | B52: 2018-04-04 | D52: ULTRACEMCO | E52: Buy | F52: 3960-3970 | G52: 3850 | I52: 4200 | J52: Open | P52: =VLOOKUP(D52,Sheet2!$A$1:M2160,6,0) -> 3881.3
A53: 11 | B53: 2018-04-04 | D53: ADANIPORTS | E53: Buy | F53: 369-372 | G53: 358 | I53: 395 | J53: Open | P53: =VLOOKUP(D53,Sheet2!$A$1:M2161,6,0) -> 367.8
A56: CLBS = Closing Basis *** | F56: Reinitiated $
A57: Dividend adjusted <> | F57: Revised stoploss #
A60: Techno -Funda (positional)
A61: Sr.no | B61: Date | D61: Company | E61: Rec | F61: Rec Price | G61: Stop Loss*** | H61: Call Closed At | I61: Target | J61: Remark | L61: Profit / Loss per Share | M61: Gain / Loss % | N61: Status | O61: Closed Date | P61: NSE Closed Price
A62: 1 | B62: 2018-03-05 | D62: NILKAMAL | E62: Buy | F62: 1640-1660 | G62: 1520 | I62: 1850-1900 | J62: Open | P62: =VLOOKUP(D62,Sheet2!$A$1:M2155,6,0) -> 1598.55 | S62: H
A63: CLBS = Closing Basis *** | F63: Reinitiated $
A64: Dividend adjusted <> | F64: Revised stoploss #
B68: Momentum Call
A69: Sr.no | B69: Date | D69: Company | E69: Rec | F69: Rec Price | G69: Stop Loss | H69: Call Closed At | I69: Target | J69: Remark | L69: Profit / Loss per Share/Lot | M69: Gain / Loss % | N69: Gain / Loss per Lot | O69: Lot | P69: Status | Q69: Closed Date | R69: NSE Closed Price
A70: 1 | B70: 2018-04-03 | D70: GLENMARK APR FUT | E70: Buy | F70: 552.5 | G70: 528 | H70: 559.5 | I70: 570 | J70: Profit of Rs.7/- | M70: =H70-F70 -> 7 | N70: =M70*O70 -> 6300 | O70: 900 | P70: Successful | Q70: 2018-04-04 | S70: H
A71: 2 | B71: 2018-04-03 | D71: SUVEN | E71: Buy | F71: 173-175 | G71: 168 | I71: 188-190 | J71: Open | S71: R
A72: 3 | B72: 2018-04-03 | D72: VOLTAS | E72: Buy | F72: 533.5 | G72: 517 | H72: 549.5 | I72: 560-565 | J72: Profit of Rs.16/- | L72: =H72-F72-K72 -> 16 | M72: =L72/F72 -> 3.00% | P72: Successful | Q72: 2018-04-03 | S72: H
A73: 4 | B73: 2018-04-03 | D73: ARVIND | E73: Buy | F73: 399 | G73: 389 | H73: 407.5 | I73: 418-422 | J73: Profit of Rs.8.5/- | L73: =H73-F73-K73 -> 8.5 | M73: =L73/F73 -> 2.13% | P73: Successful | Q73: 2018-04-04 | S73: H
A74: 5 | B74: 2018-04-04 | D74: BANKNIFTY 26 APR | E74: Buy | F74: 24255 | G74: 24130 | H74: 24130 | I74: 24500 | J74: Loss of Rs.125/- | M74: =H74-F74 -> -125 | N74: =M74*O74 -> -5000 | O74: 40 | P74: Unsuccessful | Q74: 2018-04-04
A75: 6 | B75: 2018-04-04 | D75: ARVIND | E75: Buy | F75: 397-401 | G75: 389 | I75: 418-422 | J75: Open
A78: CLBS = Closing Basis *** | F78: Reinitiated $
A79: Dividend adjusted <> | F79: Revised stoploss #
B83: Quick Pick Intraday
A84: Sr.no | B84: Date | D84: Company | E84: Rec | F84: Rec Price | G84: Stop Loss*** | H84: Call Closed At | I84: Target | J84: Remark | L84: Profit / Loss per Share | M84: Gain / Loss % | N84: Status | O84: Closed Date
B91: Investment Idea
A92: Sr.no | B92: Date | D92: Company | E92: Rec | F92: Rec Price | G92: Point of Review | H92: Close Rate | I92: Target | J92: Remark | L92: Profit / Loss per Share | M92: Gain / Loss % | N92: Status | O92: Closed Date
A93: 1 | B93: 2013-11-01 | D93: L&T Finance Holding | E93: Accu | F93: 82.00 | G93: - | H93: 100 | I93: 100.00 | J93: Target Achieved | L93: =H93-F93-K93 -> 18.00 | M93: =L93/F93 -> 21.95% | N93: Successful | O93: 2016-10-14
A94: 2 | B94: 2014-06-04 | D94: Finolex Inds | E94: Buy | F94: 257.00 | G94: - | H94: 300 | I94: 300.00 | J94: Target Achieved | L94: 43.00 | M94: 16.73% | N94: Successful | O94: 2014-07-02
A95: =1+A94 -> 3 | B95: 2014-07-08 | D95: JK Cement | E95: Buy | F95: 393.00 | G95: - | H95: 468 | I95: 468.00 | J95: Target Achieved | L95: 75.00 | M95: 19.08% | N95: Successful | O95: 2014-08-12
A96: 4 | B96: 2014-08-06 | D96: Finolex Cables | E96: Buy | F96: 205.00 | G96: - | H96: 275 | I96: 250.00 | J96: Target Achieved | L96: 70.00 | M96: 34.15% | N96: Successful | O96: 2014-11-19
A97: 5 | B97: 2014-09-04 | D97: Exide Inds | E97: Buy | F97: 162.00 | G97: - | H97: 190 | I97: 190.00 | J97: Target Achieved | L97: 28.00 | M97: 17.28% | N97: Successful | O97: 2015-01-02
A98: 6 | B98: 2014-09-04 | D98: Deepak Nitrite | E98: Buy | F98: 75.00 | G98: - | H98: 91.5 | I98: 95-100 | J98: Profit of Rs.16.50/- | L98: 16.50 | M98: 22.00% | N98: Successful | O98: 2014-11-11
A99: 7 | B99: 2014-10-01 | D99: Mercks | E99: Buy | F99: 850.00 | G99: - | H99: 982.5 | I99: 1050.00 | J99: Profit of Rs.132.50/- | L99: 132.50 | M99: 15.59% | N99: Successful | O99: 2015-02-04
A100: 8 | B100: 2014-10-01 | D100: Grindwell Norton | E100: Buy | F100: 475.00 | G100: - | H100: 515 | I100: 600.00 | J100: Profit of Rs.40/- | L100: 40.00 | M100: 8.42% | N100: Successful | O100: 2014-10-27
A101: 9 | B101: 2014-10-01 | D101: Snowman Logistics | E101: Buy | F101: 86.00 | G101: - | H101: 99 | I101: 140.00 | J101: Profit of Rs.13.00/- | L101: 13.00 | M101: 15.12% | N101: Successful | O101: 2014-10-27
A102: 10 | B102: 2014-10-14 | D102: Birla Corp | E102: Buy | F102: 496.60 | G102: - | H102: 621 | I102: 580.00 | J102: Target Achieved | L102: 124.40 | M102: 25.05% | N102: Successful | O102: 2016-08-23
A103: 11 | B103: 2014-10-14 | D103: Ultratech Cem | E103: Buy | F103: 2481.90 | G103: - | H103: 2840 | I103: 2870.00 | J103: Profit of Rs.358.10/- | L103: 358.10 | M103: 14.43% | N103: Successful | O103: 2015-01-13
A104: =1+A101 -> 10 | B104: 2014-10-16 | D104: Sintex Inds | E104: Buy | F104: 84.50 | G104: - | H104: 93 | I104: 110.00 | J104: Profit of Rs.8.50/- | L104: 8.50 | M104: 10.06% | N104: Successful | O104: 2014-10-27
A105: =1+A104 -> 11 | B105: 2014-10-16 | D105: HSIL | E105: Buy | F105: 401.00 | G105: - | H105: 428 | I105: 450.00 | J105: Profit of Rs.27.00/- | L105: 27.00 | M105: 6.73% | N105: Successful | O105: 2015-01-16
A106: 12 | B106: 2014-10-16 | D106: Eveready Inds | E106: Buy | F106: 101.00 | G106: - | H106: 112 | I106: 120.00 | J106: Profit of Rs.11.00/- | L106: 11.00 | M106: 10.89% | N106: Successful | O106: 2014-10-27
A107: 13 | B107: 2014-11-11 | D107: Pennar Inds | E107: Buy | F107: 59.00 | G107: - | H107: 76 | I107: 76.00 | J107: Target Achieved | L107: 17.00 | M107: 28.81% | N107: Successful | O107: 2017-10-24
A108: 14 | B108: 2014-11-11 | D108: Snowman Logistics | E108: Buy | F108: 99.00 | G108: - | H108: 120 | I108: 120.00 | J108: Profit of Rs.21/- | L108: 21.00 | M108: 21.21% | N108: Successful | O108: 2014-11-17
A109: 15 | B109: 2014-11-13 | D109: Dharamsi Morarji Chem | E109: Buy | F109: 22.00 | G109: - | H109: 33.55 | I109: 32.00 | J109: Profit of Rs 11.55/- | L109: 11.55 | M109: 52.50% | N109: Successful | O109: 2015-07-03
A110: 16 | B110: 2014-12-03 | D110: Tatachem | E110: Buy | F110: 440.00 | G110: - | H110: 520 | I110: 520.00 | J110: Profit of Rs 80.00/- | L110: 80.00 | M110: 18.18% | N110: Successful | O110: 2015-07-23
A111: 17 | B111: 2014-12-03 | D111: Advanta | E111: Buy | F111: 360.00 | G111: - | H111: 427 | I111: 425.00 | J111: Profit of Rs.67.00/- | L111: 67.00 | M111: 18.61% | N111: Successful | O111: 2015-02-23
A112: 18 | B112: 2015-01-08 | D112: GDL | E112: Buy | F112: 360.00 | G112: - | H112: 455 | I112: 420.00 | J112: Profit of Rs.95.00/- | L112: 95.00 | M112: 26.39% | N112: Successful | O112: 2015-01-20
A113: 19 | B113: 2015-01-08 | D113: NRB Bearing | E113: Buy | F113: 130.00 | H113: 175.5 | I113: 165.00 | J113: Profit of Rs 45.50/- | L113: 45.50 | M113: 35.00% | N113: Successful | O113: 2017-12-19
A114: 20 | B114: 2015-02-05 | D114: GSFC | E114: Accu | F114: 98.00 | H114: 120 | I114: 120.00 | J114: Target Achieved | L114: 22.00 | M114: 22.45% | N114: Successful | O114: 2017-01-18
A115: 21 | B115: 2015-02-05 | D115: Sundrmfast | E115: Accu | F115: 196.00 | H115: 262 | I115: 255.00 | J115: Target Achieved | L115: 66.00 | M115: 33.67% | N115: Successful | O115: 2016-08-17
A116: 22 | B116: 2015-03-04 | D116: GPPL | E116: Accu | F116: 230-240 | I116: 280-285 | J116: Open
A117: 23 | B117: 2015-03-04 | D117: ORIENTCEM | E117: Accu | F117: 185.00 | H117: 224 | I117: 220-225 | J117: Target Achieved | L117: =H117-F117-K117 -> 39.00 | M117: =L117/F117 -> 21.08% | N117: Successful | O117: 2016-10-04
A118: 24 | B118: 2015-03-27 | D118: PFS | E118: Accu | F118: 49-50 | I118: 67.00 | J118: Open
A119: 25 | B119: 2015-03-30 | D119: Walchandnagar Ind Ltd | E119: Accu | F119: 183.50 | H119: 219 | I119: 218.00 | J119: Profit of Rs.35.50/- | L119: =H119-F119-K119 -> 35.50 | M119: =L119/F119 -> 19.35% | N119: Successful | O119: 2015-04-09
A120: 26 | B120: 2015-04-20 | D120: Kalpataru Power Transmission Ltd | E120: Accu | F120: =(227+237)/2 -> 232.00 | H120: 298 | I120: 298.00 | J120: Target Achieved | L120: 66.00 | M120: 28.45% | N120: Successful | O120: 2017-03-29
A121: 27 | B121: 2015-05-04 | D121: Mastek Ltd | E121: Buy | F121: 385.00 | H121: =212.5+331 -> 543.5 | I121: 510.00 | J121: Profit of Rs 158.50/- | L121: 158.50 | M121: 41.17% | N121: Successful | O121: 2015-08-19
A122: 28 | B122: 2015-05-04 | D122: Suprajit Eng | E122: Buy | F122: 115.50 | H122: 146 | I122: 142.00 | J122: Profit of Rs 30.50/- | L122: 30.50 | M122: 26.41% | N122: Successful | O122: 2015-07-17
A123: 29 | B123: 2015-05-27 | D123: TCI | E123: Buy | F123: 237.50 | H123: 279.5 | I123: 278.00 | J123: Target Achieved | L123: 42.00 | M123: 17.68% | N123: Successful | O123: 2015-08-06
A124: 30 | B124: 2015-06-19 | D124: HSIL | E124: Accu | F124: 340.00 | H124: 448 | I124: 448.00 | J124: Target Achieved | L124: 108.00 | M124: 31.76% | N124: Successful | O124: 2017-10-10
A125: 31 | B125: 2015-07-06 | D125: Capital First | E125: Accu | F125: 390.00 | H125: 460 | I125: 460.00 | J125: Target Achieved | L125: 70.00 | M125: 17.95% | N125: Successful | O125: 2016-04-18
A126: 32 | B126: 2015-07-10 | D126: Dolphin OffShore | E126: Accu | F126: 118-127 | I126: 172.00 | J126: Open
A127: 33 | B127: 2015-08-03 | D127: Allcargo logistics | E127: Accu | F127: 297.50 | H127: 350 | I127: 360.00 | J127: Profit of Rs 52.50/- | L127: =H127-F127-K127 -> 52.50 | M127: =L127/F127 -> 17.65% | N127: Successful | O127: 2015-08-16
A128: 34 | B128: 2015-08-03 | D128: Camline Fine | E128: Accu | F128: 115.50 | H128: 149 | I128: 140.00 | J128: Profit of Rs 33.50/- | L128: 33.50 | M128: 29.00% | N128: Successful | O128: 2017-01-05
A129: 35 | B129: 2015-09-04 | D129: TCI | E129: Accu | F129: 226.00 | H129: 292 | I129: 292.00 | J129: Target Achieved | L129: 66.00 | M129: 29.20% | N129: Successful | O129: 2015-10-09
A130: 36 | B130: 2015-09-07 | D130: Kalpataru Power Transmission Ltd | E130: Accu | F130: 232.50 | H130: 312.5 | I130: 310.00 | J130: Target Achieved | L130: 80.00 | M130: 34.41% | N130: Successful | O130: 2017-03-29
A131: 37 | B131: 2015-09-21 | D131: LLOYD ELECTRIC & ENG LTD | E131: Accu | F131: 196.50 | H131: 238 | I131: 238.00 | J131: Target Achieved | L131: 41.50 | M131: 21.12% | N131: Successful | O131: 2015-10-14
A132: 38 | B132: 2015-09-24 | D132: L&T Finance Holding | E132: Accu | F132: 65.00 | H132: 82 | I132: 82.00 | J132: Target Achieved | L132: 17.00 | M132: 26.15% | N132: Successful | O132: 2016-07-27
A133: 39 | B133: 2015-10-14 | D133: KEC International ltd | E133: Accu | F133: 144.00 | H133: 182.5 | I133: 181.00 | J133: Target Achieved | L133: 38.50 | M133: 26.74% | N133: Successful | O133: 2017-03-23
A134: 40 | B134: 2015-10-14 | D134: Gruh Finance | E134: Accu | F134: 264.00 | H134: 311 | I134: 311.00 | J134: Target Achieved | L134: 47.00 | M134: 17.80% | N134: Successful | O134: 2016-08-22
A135: 41 | B135: 2015-11-10 | D135: Pidilitind | E135: Buy | F135: 549.50 | H135: 630 | I135: 630.00 | J135: Target Achieved | L135: 80.50 | M135: 14.65% | N135: Successful | O135: 2016-02-19
A136: 42 | B136: 2015-12-04 | D136: Zensar Technology | E136: Accu | F136: 1020-1035 | I136: 1250.00 | J136: Open
A137: 43 | B137: 2015-12-29 | D137: Vinati Organics Ltd | E137: Accu | F137: 465.00 | H137: 540 | I137: 540.00 | J137: Target Achieved | L137: =H137-F137-K137 -> 75.00 | M137: =L137/F137 -> 16.13% | N137: Successful | O137: 2016-06-09
A138: 44 | B138: 2016-01-11 | D138: GSFC | E138: Buy | F138: 81.00 | H138: 110 | I138: 110.00 | J138: Target Achieved | L138: 29.00 | M138: 35.80% | N138: Successful | O138: 2017-01-10
A139: 45 | B139: 2016-01-13 | D139: SSWL | E139: Buy | F139: 417.50 | H139: 547 | I139: 535.00 | J139: Target Achieved | L139: 129.50 | M139: 31.02% | N139: Successful | O139: 2016-07-27
A140: 46 | B140: 2016-02-08 | D140: Persistent System Ltd | E140: Accu | F140: 650.00 | H140: 800 | I140: 800.00 | J140: Target Achieved | L140: =H140-F140-K140 -> 150.00 | M140: =L140/F140 -> 23.08% | N140: Successful | O140: 2018-02-23
A141: 47 | B141: 2016-03-04 | D141: UPL | E141: Accu | F141: 437.50 | H141: 504.5 | I141: 522.00 | J141: Profit of Rs.67/- | L141: 67.00 | M141: 15.31% | N141: Successful | O141: 2016-04-20
A142: 48 | B142: 2016-03-09 | D142: Ashoka Buildcon Ltd | E142: Accu | F142: 189.50 | H142: 218 | I142: 218.00 | J142: Target Achieved | L142: 28.50 | M142: 15.04% | N142: Successful | O142: 2017-10-26
A143: 49 | B143: 2016-04-11 | D143: PTC INDIA FIN SERV LTD | E143: Accu | F143: 36-37 | I143: 60.00 | J143: Open
A144: 50 | B144: 2016-04-12 | D144: CAMLINFINE $ | E144: Accu | F144: 93.00 | H144: 149 | I144: 140.00 | J144: Profit of Rs 56/- | L144: =H144-F144-K144 -> 56.00 | M144: =L144/F144 -> 60.22% | N144: Successful | O144: 2017-01-05
A145: 51 | B145: 2016-04-12 | D145: Greaves Cotton Ltd. | E145: Accu | F145: 130.00 | H145: 150 | I145: 150-155 | J145: Target Achieved | L145: 20.00 | M145: 15.38% | N145: Successful | O145: 2016-07-13
A146: 52 | B146: 2016-04-13 | D146: DHFL | E146: Accu | F146: 196.00 | H146: 299 | I146: 299.00 | J146: Target Achieved | L146: 103.00 | M146: 52.55% | N146: Successful | O146: 2016-09-07
A147: 53 | B147: 2016-04-13 | D147: Magma | E147: Accu | F147: 88.00 | H147: 103 | I147: 103.00 | J147: Target Achieved | L147: 15.00 | M147: 17.05% | N147: Successful | O147: 2016-06-09
A148: 54 | B148: 2016-05-02 | D148: KEC International ltd $ | E148: Accu | F148: 127.50 | H148: 148 | I148: 148-150 | J148: Target Achieved | L148: 20.50 | M148: 16.08% | N148: Successful | O148: 2016-07-13
A149: 55 | B149: 2016-05-03 | D149: Mindtree | E149: Accu | F149: 675.00 | H149: 815 | I149: 790-800 | J149: Target Achieved | L149: 140.00 | M149: 20.74% | N149: Successful | O149: 2018-02-23
A150: 56 | B150: 2016-06-01 | D150: Atulauto | E150: Accu | F150: 495-505 | I150: 565-570 | J150: Open
A151: 57 | B151: 2016-06-06 | D151: TRITURBINE | E151: Accu | F151: 110.00 | H151: 126.5 | I151: 125.00 | J151: Profit of Rs.16.50/- | L151: =H151-F151-K151 -> 16.50 | M151: =L151/F151 -> 15.00% | N151: Successful | O151: 2016-07-01
A152: 58 | B152: 2016-06-17 | D152: Pennar Industries Ltd | E152: Accu | F152: 44.00 | H152: 69.5 | I152: 69.50 | J152: Profit of Rs.25.50/- | L152: =H152-F152-K152 -> 25.50 | M152: =L152/F152 -> 57.95% | N152: Successful | O152: 2017-08-30
A153: 59 | B153: 2016-06-28 | D153: EVEREADY INDS. IND. LTD. | E153: Accu | F153: 262.50 | H153: 340 | I153: 333.00 | J153: Profit of Rs.77.50/- | L153: =H153-F153-K153 -> 77.50 | M153: =L153/F153 -> 29.52% | N153: Successful | O153: 2017-10-09
A154: 60 | B154: 2016-06-28 | D154: FIEM INDUSTRIES LIMITED | E154: Accu | F154: 840.00 | H154: 1230 | I154: 1230.00 | J154: Target Achieved | L154: =H154-F154-K154 -> 390.00 | M154: =L154/F154 -> 46.43% | N154: Successful | O154: 2016-10-06
A155: 61 | B155: 2016-07-05 | D155: Bajaj Corp Ltd | E155: Accu | F155: 395 | H155: 468.50 | I155: 510.00 | J155: Part profit of Rs.73.50/- | L155: =H155-F155-K155 -> 73.50 | M155: =L155/F155 -> 19% | N155: Successful | O155: 2017-08-30
A156: 62 | B156: 2016-08-02 | D156: GPPL $ | E156: Buy | F156: 167-172 | I156: 198-200 | J156: Open
A157: 63 | B157: 2016-08-04 | D157: WONDERLA HOLIDAYS LTD | E157: Accu | F157: 395-405 | I157: 475.00 | J157: Open
A158: 64 | B158: 2016-08-11 | D158: CAMLINFINE | E158: Accu | F158: 86.50 | H158: 130 | I158: 130.00 | J158: Profit of Rs.43.50/- | L158: =H158-F158-K158 -> 43.50 | M158: =L158/F158 -> 50.29% | N158: Successful | O158: 2017-12-22
A159: 65 | B159: 2016-08-18 | D159: GRANULES | E159: Accu | F159: 133.5 | H159: 126.50 | I159: 178.00 | J159: Exit | L159: -7.00 | M159: -5.24% | N159: Unsuccessful | O159: 2016-09-02
A160: 66 | B160: 2016-08-31 | D160: VA TECH WABAG | E160: Accu | F160: 560.00 | H160: 725 | I160: 725.00 | J160: Target Achieved | L160: 165.00 | M160: 29.46% | N160: Successful | O160: 2016-03-27
A161: 67 | B161: 2016-09-01 | D161: SKIPPER LIMITED | E161: Accu | F161: 160.50 | H161: 210 | I161: 210.00 | J161: Target Achieved | L161: 49.50 | M161: 30.84% | N161: Successful | O161: 2017-05-16
A162: 68 | B162: 2016-10-03 | D162: IFB Industries | E162: Accu | F162: 430.00 | H162: 596 | I162: 575.00 | J162: Profit of Rs.166/- | L162: 166.00 | M162: 38.60% | N162: Successful | O162: 2017-02-03
A163: 69 | B163: 2016-10-14 | D163: ASIANTILES | E163: Accu | F163: 280.00 | H163: 345 | I163: 345.00 | J163: Target Achieved | L163: 65.00 | M163: 23.21% | N163: Successful | O163: 2017-03-20
A164: 70 | B164: 2016-10-14 | D164: DEEPIND | E164: Accu | F164: 245.00 | H164: 325.5 | I164: 330.00 | J164: Profit of Rs.80.5/- | L164: 80.50 | M164: 32.86% | N164: Successful | O164: 2017-02-03
A165: 71 | B165: 2016-10-17 | D165: DCBBANK | E165: Accu | F165: 125.00 | H165: 160 | I165: 160.00 | J165: Target Achieved | L165: 35.00 | M165: 28.00% | N165: Successful | O165: 2017-03-09
A166: 72 | B166: 2016-10-17 | D166: ORIENTREF | E166: Accu | F166: 114.00 | H166: 145 | I166: 145.00 | J166: Target Achieved | L166: =H166-F166-K166 -> 31.00 | M166: =L166/F166 -> 27.19% | N166: Successful | O166: 2017-05-04
A167: 73 | B167: 2016-10-17 | D167: GANECOS | E167: Accu | F167: 212.00 | H167: 280 | I167: 276.00 | J167: Profit of Rs.68/- | L167: =H167-F167-K167 -> 68.00 | M167: =L167/F167 -> 32.08% | N167: Successful | O167: 2017-05-03
A168: 74 | B168: 2016-11-04 | D168: NBCC | E168: Accu | F168: 155.00 | H168: 210 | I168: 210.00 | J168: Profit of Rs.55/- | L168: =H168-F168-K168 -> 55.00 | M168: =L168/F168 -> 35.48% | N168: Successful | O168: 2017-07-28
A169: 75 | B169: 2016-12-06 | D169: PRECAM | E169: Accu | F169: 148-153 | I169: 174.00 | J169: Open
A170: 76 | B170: 2016-12-08 | D170: INFRATEL | E170: Accu | F170: 380.00 | H170: 478 | I170: 468.00 | J170: Target Achieved | L170: =H170-F170-K170 -> 98.00 | M170: =L170/F170 -> 25.79% | N170: Successful | O170: 2017-10-17
A171: 77 | B171: 2016-12-30 | D171: GODREJPROP | E171: Accu | F171: 305.00 | H171: 375 | I171: 375.00 | J171: Target Achieved | L171: 70.00 | M171: 22.95% | N171: Successful | O171: 2017-02-02
A172: 78 | B172: 2017-01-04 | D172: DEEPAKNTR | E172: Accu | F172: 99.50 | H172: 158 | I172: 158.00 | J172: Target Achieved | L172: 58.50 | M172: 58.79% | N172: Successful | O172: 2017-06-12
A173: 79 | B173: 2017-02-20 | D173: SUBROS | E173: Accu | F173: 202.50 | H173: 234 | I173: 234.00 | J173: Target Achieved | L173: 31.50 | M173: 15.56% | N173: Successful | O173: 2017-04-11
A174: 80 | B174: 2017-02-20 | D174: RECLTD | E174: Accu | F174: 140.50 | H174: 220 | I174: 220.00 | J174: Target Achieved | L174: 79.50 | M174: 56.58% | N174: Successful | O174: 2017-05-09
A175: 81 | B175: 2017-03-24 | D175: VRLLOG | E175: Accu | F175: 300.50 | H175: 417.5 | I175: 420.00 | J175: Profit of Rs.117/- | L175: 117.00 | M175: 38.94% | N175: Successful | O175: 2017-12-01
A176: 82 | B176: 2017-03-24 | D176: FIEMIND | E176: Accu | F176: 850.00 | H176: 1042.5 | I176: 1023.00 | J176: Profit of Rs 192.50/- | L176: 192.50 | M176: 22.65% | N176: Successful | O176: 2017-04-05
A177: 83 | B177: 2017-04-05 | D177: RATNAMANI | E177: Accu | F177: 785.00 | H177: 930 | I177: 920.00 | J177: Profit of Rs.145/- | L177: 145.00 | M177: 18.47% | N177: Successful | O177: 2017-08-29
A178: 84 | B178: 2017-04-06 | D178: ZEEMEDIA | E178: Accu | F178: 39-41 | I178: 60.00 | J178: Open
A179: 85 | B179: 2017-04-12 | D179: DABUR | E179: Accu | F179: 289.50 | H179: 354 | I179: 360.00 | J179: Profit of Rs.64.5/- | L179: =H179-F179-K179 -> 64.50 | M179: =L179/F179 -> 22.28% | N179: Successful | O179: 2017-11-01
A180: 86 | B180: 2017-04-20 | D180: KPRMILL | E180: Accu | F180: 700.00 | H180: 840 | I180: 840.00 | J180: Profit of Rs.140/- | L180: =H180-F180-K180 -> 140.00 | M180: =L180/F180 -> 20.00% | N180: Successful | O180: 2017-06-07
A181: 87 | B181: 2017-05-22 | D181: GREAVESCOT | E181: Accu | F181: 153-158 | I181: 190.00 | J181: Open
A182: 88 | B182: 2017-06-01 | D182: ESSELPACK | E182: Accu | F182: 260 | H182: 311.00 | I182: 340.00 | J182: Part profit of Rs.51/- | L182: =H182-F182-K182 -> 51.00 | M182: =L182/F182 -> 20% | N182: Successful | O182: 2017-11-17
A183: 89 | B183: 2017-06-15 | D183: KEI | E183: Accu | F183: 214.50 | H183: 262 | I183: 262.00 | J183: Profit of Rs.47.5/- | L183: 47.50 | M183: 22.14% | N183: Successful | O183: 2017-08-30
A184: 90 | B184: 2017-07-17 | D184: MAYURUNIQ | E184: Accu | F184: 370.00 | H184: 447.5 | I184: 450.00 | J184: Target Achieved | L184: 77.50 | M184: 20.95% | N184: Successful | O184: 2017-10-27
A185: 91 | B185: 2017-07-27 | D185: RAMCOCEM | E185: Accu | F185: 657.50 | H185: 825 | I185: 820.00 | J185: Target Achieved | L185: 167.50 | M185: 25.48% | N185: Successful | O185: 2017-12-21
A186: 92 | B186: 2017-08-17 | D186: FINPIPE | E186: Accu | F186: 605.00 | H186: 750 | I186: 750.00 | J186: Profit of Rs.145/- | L186: 145.00 | M186: 23.97% | N186: Successful | O186: 2017-10-19
A187: 93 | B187: 2017-09-01 | D187: SHK | E187: Accu | F187: 255 | H187: 307.50 | I187: 320.00 | J187: Part profit of Rs.52.5/- | L187: 52.50 | M187: 21% | N187: Successful | O187: 2017-12-29
A188: 94 | B188: 2017-09-19 | D188: SKIPPER | E188: Accu | F188: 215.00 | H188: 258 | I188: 258.00 | J188: Target Achieved | L188: 43.00 | M188: 20.00% | N188: Successful | O188: 2017-11-01
A189: 95 | B189: 2017-09-20 | D189: CAMLINFINE | E189: Accu | F189: 75.00 | H189: 90 | I189: 90.00 | J189: Profit of Rs.15.00/- | L189: 15.00 | M189: 20.00% | N189: Successful | O189: 2017-10-11
A190: 96 | B190: 2017-10-03 | D190: GNA | E190: Accu | F190: 315.00 | H190: 392 | I190: 384.00 | J190: Profit of Rs.77/- | L190: 77.00 | M190: 24.44% | N190: Successful | O190: 2017-10-09
A191: 97 | B191: 2017-10-05 | D191: NOCIL | E191: Accu | F191: 145.00 | H191: 179 | I191: 180.00 | J191: Profit of Rs.34/- | L191: 34.00 | M191: 23.45% | N191: Successful | O191: 2017-10-17
A192: 98 | B192: 2017-10-06 | D192: CENTURYPLY | E192: Accu | F192: 256.00 | H192: 323 | I192: 320.00 | J192: Target Achieved | L192: 67.00 | M192: 26.17% | N192: Successful | O192: 2017-11-28
A193: 99 | B193: 2017-10-09 | D193: RECLTD | E193: Accu | F193: 152.5 | H193: 183.50 | I193: 210.00 | J193: Part Profit of Rs.31/- | L193: 31.00 | M193: 20% | N193: Successful | O193: 2017-11-03
A194: 100 | B194: 2017-10-09 | D194: EIHOTEL | E194: Accu | F194: 137.50 | H194: 184 | I194: 183.00 | J194: Profit of Rs.46.5/- | L194: 46.50 | M194: 33.82% | N194: Successful | O194: 2018-01-08
A195: 101 | B195: 2017-10-10 | D195: BOROSIL | E195: Accu | F195: 895.00 | H195: 1122.5 | I195: 1078.00 | J195: Profit of Rs.227.5/- | L195: 227.50 | M195: 25.42% | N195: Successful | O195: 2018-01-17
A196: 102 | B196: 2017-10-10 | D196: NRBBEARING | E196: Accu | F196: 125.50 | H196: 158 | I196: 155.00 | J196: Profit of Rs.32.5/- | L196: 32.50 | M196: 25.90% | N196: Successful | O196: 2017-11-28
A197: 103 | B197: 2017-10-12 | D197: CYIENT | E197: Accu | F197: 525.00 | H197: 629 | I197: 629.00 | J197: Target Achieved | L197: 104.00 | M197: 19.81% | N197: Successful | O197: 2018-01-19
A198: 104 | B198: 2017-11-07 | D198: HATSUN | E198: Accu | F198: 740.00 | H198: 892.5 | I198: 900.00 | J198: Profit of Rs.152.5/- | L198: 152.50 | M198: 20.61% | N198: Successful | O198: 2017-11-13
A199: 105 | B199: 2017-12-04 | D199: SANGHIIND | E199: Accu | F199: 118.50 | H199: 143.5 | I199: 145.00 | J199: Profit of Rs.25/- | L199: 25.00 | M199: 21.10% | N199: Successful | O199: 2017-12-28
A200: 106 | B200: 2017-12-05 | D200: ALLCARGO | E200: Accu | F200: 177.5 | H200: 215.00 | I200: 230.00 | J200: Part Profit of Rs.37.5/- | L200: 37.50 | M200: 21% | N200: Successful | O200: 2017-12-27
A201: 107 | B201: 2017-12-21 | D201: KAJARIACER | E201: Accu | F201: 710-720 | I201: 872.00 | J201: Open
A202: 108 | B202: 2017-12-29 | D202: GNA | E202: Accu | F202: 430-440 | I202: 539.00 | J202: Open
A203: 109 | B203: 2017-12-29 | D203: ZENSARTECH | E203: Accu | F203: 880-890 | I203: 1084.00 | J203: Open
A204: 110 | B204: 2018-02-07 | D204: GREAVESCOT | E204: Accu | F204: 130-132 | I204: 190.00 | J204: Open
A205: 111 | B205: 2018-02-27 | D205: MOLDTKPAC | E205: Accu | F205: 320-330 | I205: 398.00 | J205: Open
A206: 112 | B206: 2018-03-05 | D206: LICHSGFIN | E206: Accu | F206: 505-515 | I206: 672.00 | J206: Open
A207: 113 | B207: 2018-04-02 | D207: EVERESTIND | E207: Accu | F207: 485-500 | I207: 613.00 | J207: Open
A208: 114 | B208: 2018-04-04 | D208: GPPL | E208: Accu | F208: 140-143 | I208: 180.00 | J208: Open
F211: Reinitiated $
A213: Disclaimer:
A214: This document has been prepared by the Retail Research Desk of Asit C Mehta
A215: Investment Intermediates Ltd. and is meant for use of the recipient only
A216: and is not for circulation. This document is not to be reported or
A217: copied or made available to others. It should not be considered to be
A218: taken as an offer to sell or a solicitation to buy any security. The
A219: information contained herein is from sources believed reliable. We do
A220: not represent that it is accurate or complete and it should not be
A221: relied upon as such. We may from time to time have positions in and buy
A222: and sell securities referred to herein

Sheet Call Tracker (Currency)
A1: Master Trade High Risk
A2: Sr.no | B2: Date | C2: Company | D2: Rec | E2: Rec Price | F2: Stop Loss | G2: Call Closed At | H2: Target | I2: Remark | K2: Profit / Loss per share | L2: Gain / Loss per Lot | M2: Lot | N2: Status | O2: Closed Date
A3: 1 | B3: 2017-05-08 | C3: USDINR MAY FUT | D3: Buy | E3: 64.3935 | F3: 64.29 | G3: 64.66 | H3: 64.59 | I3: Profit of Rs.0.27/- | K3: 0.27 | L3: 266.5 | M3: 1000 | N3: Successful | O3: 2017-05-09 | R3: P
A4: 2 | B4: 2017-05-08 | C4: USDINR JUN FUT | D4: Buy | E4: 64.6535 | F4: 64.45 | G4: 64.965 | H4: 65.05 | I4: Profit of Rs 0.31/- | K4: 0.31 | L4: 311.5 | M4: 1000 | N4: Successful | O4: 2017-05-09 | R4: P
A5: 3 | B5: 2017-05-09 | C5: EUROINR MAY FUT | D5: Sell | E5: 70.65 | F5: 70.8 | G5: 70.07 | H5: 70.4 | I5: Profit of Rs 0.58/- | K5: 0.58 | L5: 580 | M5: 1000 | N5: Successful | O5: 2017-05-12 | R5: P
A6: 4 | B6: 2017-05-09 | C6: GBPINR MAY FUT | D6: Buy | E6: 83.774 | F6: 83.37 | G6: 83.37 | H6: 84.77 | I6: Loss of Rs 0.40/- | K6: -0.40 | L6: -404 | M6: 1000 | N6: Unsuccessful | O6: 2017-05-11 | R6: P
A7: 5 | B7: 2017-05-11 | C7: USDINR MAY FUT | D7: Buy | E7: 64.6555 | F7: 64.55 | G7: 64.55 | H7: 64.86 | I7: Loss of Rs.0.1055/- | K7: -0.1055 | L7: =K7*M7 -> -105.50 | M7: 1000 | N7: Unsuccessful | O7: 2017-05-11 | R7: P
A8: 6 | B8: 2017-05-15 | C8: USDINR MAY FUT | D8: Buy | E8: 64.2275 | F8: 64.08 | G8: 64.46 | H8: 64.48 | I8: Profit of Rs 0.23/- | K8: 0.23 | L8: 232.5 | M8: 1000 | N8: Successful | O8: 2017-05-18 | R8: P
A9: 7 | B9: 2017-05-19 | C9: USDINR MAY FUT | D9: Sell | E9: 64.83 | F9: 65 | G9: 65 | H9: 64.5 | I9: Loss of Rs.0.17/- | K9: -0.17 | L9: -170 | M9: 1000 | N9: Unsuccessful | O9: 2017-05-19 | R9: P
A10: 8 | B10: 2017-05-23 | C10: USDINR MAY FUT | D10: Buy | E10: 64.83 | F10: 64.62 | G10: 64.95 | H10: 65.2 | I10: Profit of Rs 0.12/- | K10: 0.12 | L10: 120 | M10: 1000 | N10: Successful | O10: 2017-05-24 | R10: P
A11: 9 | B11: 2017-05-25 | C11: USDINR MAY FUT | D11: Buy | E11: 64.57 | F11: 64.25 | G11: 64.56 | H11: 65 | I11: Loss of Rs.0.01/- | K11: -0.01 | L11: -10 | M11: 1000 | N11: Neutral | O11: 2017-05-29 | R11: P
A12: 10 | B12: 2017-05-30 | C12: USDINR JUN FUT | D12: Buy | E12: 64.9125 | F12: 64.71 | G12: 64.71 | H12: 65.31 | I12: Loss of Rs.0.20/- | K12: -0.20 | L12: -202.5 | M12: 1000 | N12: Unsuccessful | O12: 2017-05-31 | R12: P
A13: 11 | B13: 2017-06-01 | C13: USDINR JUN FUT | D13: Buy | E13: 64.655 | F13: 64.45 | G13: 64.45 | H13: 65.05 | I13: Loss of Rs.0.20/- | K13: =G13-E13 -> -0.20 | L13: =K13*M13 -> -205 | M13: 1000.00 | N13: Unsuccessful | O13: 2017-06-08 | R13: P
A14: 12 | B14: 2017-06-12 | C14: USDINR JUN FUT | D14: Buy | E14: 64.45 | F14: 64 | G14: 64.7625 | H14: 65.2 | I14: Profit of Rs 0.31/- | K14: 0.31 | L14: 312.5 | M14: 1000 | N14: Successful | O14: 2017-06-16
A15: 13 | B15: 2017-06-16 | C15: USDINR JUN FUT | D15: Buy | E15: 64.51 | F15: 64.2 | G15: 64.7 | H15: 65.11 | I15: Profit of Rs 0.19/- | K15: 0.19 | L15: 190 | M15: 1000 | N15: Successful | O15: 2017-06-21
A16: 14 | B16: 2017-06-22 | C16: USDINR JUN FUT | D16: Buy | E16: 64.56 | F16: 64.2 | G16: 64.2 | H16: 65.1 | I16: Loss of Rs.0.36/- | K16: -0.36 | L16: -360 | M16: 1000.00 | N16: Unsuccessful | O16: 2017-06-30
A17: 15 | B17: 2017-07-10 | C17: USDINR JUL FUT | D17: Buy | E17: 64.67 | F17: 64.4 | G17: 64.4 | H17: 65.15 | I17: Loss of Rs.0.27/- | K17: -0.27 | L17: -270 | M17: 1000.00 | N17: Unsuccessful | O17: 2017-07-31
A18: 16 | B18: 2017-08-02 | C18: USDINR AUG FUT | D18: Buy | E18: 64.235 | F18: 63.98 | G18: 63.98 | H18: 64.75 | I18: Loss of Rs.0.26/- | K18: -0.26 | L18: -255 | M18: 1000.00 | N18: Unsuccessful | O18: 2017-08-02
A19: 17 | B19: 2017-08-08 | C19: USDINR AUG FUT | D19: Buy | E19: 63.9425 | F19: 63.6 | G19: 64.15 | H19: 64.5 | I19: Profit of Rs 0.21/- | K19: 0.21 | L19: 207.5 | M19: 1000 | N19: Successful | O19: 2017-08-10
A20: 18 | B20: 2017-08-22 | C20: USDINR AUG FUT | D20: Buy | E20: 64.1175 | F20: 63.9 | G20: 64.01 | H20: 64.5 | I20: Loss of Rs.0.11/- | K20: =G20-E20 -> -0.11 | L20: =K20*M20 -> -107.5 | M20: 1000.00 | N20: Unsuccessful | O20: 2017-08-29
A21: 19 | B21: 2017-09-01 | C21: USDINR SEP FUT | D21: Buy | E21: 64.1 | F21: 63.8 | G21: 64.205 | H21: 64.7 | I21: Profit of Rs 0.11/- | K21: 0.11 | L21: 105 | M21: 1000 | N21: Successful | O21: 2017-09-01
A22: 20 | B22: 2017-09-04 | C22: USDINR SEP FUT | D22: Buy | E22: 64.095 | F22: 63.8 | G22: 64.195 | H22: 64.7 | I22: Profit of Rs 0.10/- | K22: 0.10 | L22: =K22*M22 -> 100 | M22: 1000 | N22: Successful | O22: 2017-09-04
A23: 21 | B23: 2017-09-05 | C23: USDINR SEP FUT | D23: Buy | E23: 64.25 | F23: 64 | G23: 64.355 | H23: 64.75 | I23: Profit of Rs 0.11/- | K23: =G23-E23 -> 0.11 | L23: =K23*M23 -> 105 | M23: 1000 | N23: Successful | O23: 2017-09-06
A24: 22 | B24: 2017-09-06 | C24: USDINR SEP FUT | D24: Sell | E24: 64.365 | F24: 64.5 | G24: 64.265 | H24: 64 | I24: Profit of Rs 0.10/- | K24: =E24-G24 -> 0.10 | L24: 100 | M24: 1000 | N24: Successful | O24: 2017-09-06
A25: 23 | B25: 2017-09-07 | C25: USDINR SEP FUT | D25: Buy | E25: 64.145 | F25: 63.9 | G25: 64.2565 | H25: 64.65 | I25: Profit of Rs 0.11/- | K25: =G25-E25 -> 0.11 | L25: =K25*M25 -> 111.5 | M25: 1000 | N25: Successful | O25: 2017-09-14
A26: 24 | B26: 2017-09-11 | C26: JPYINR SEP FUT | D26: Sell | E26: 59.0285 | F26: 59.25 | G26: 58.645 | H26: 58.5 | I26: Profit of Rs 0.38/- | K26: =E26-G26 -> 0.38 | L26: 383.5 | M26: 1000 | N26: Successful | O26: 2017-09-12
A27: 25 | B27: 2017-09-14 | C27: USDINR SEP FUT | D27: Buy | E27: 64.145 | F27: 63.95 | G27: 64.26 | H27: 64.5 | I27: Profit of Rs 0.12/- | K27: =G27-E27 -> 0.12 | L27: 115 | M27: 1000 | N27: Successful | O27: 2017-09-19
A28: 26 | B28: 2017-09-20 | C28: USDINR SEP FUT | D28: Buy | E28: 64.3515 | F28: 64.15 | G28: 64.57 | H28: 64.75 | I28: Profit of Rs 0.22/- | K28: =G28-E28 -> 0.22 | L28: =K28*M28 -> 218.5 | M28: 1000 | N28: Successful | O28: 2017-09-21
A29: 27 | B29: 2017-09-21 | C29: USDINR SEP FUT | D29: Sell | E29: 64.795 | F29: 65.05 | G29: 65.05 | H29: 64.4 | I29: Loss of Rs.0.17/- | K29: -0.17 | L29: -170 | M29: 1000.00 | N29: Unsuccessful | O29: 2017-09-22
A30: 28 | B30: 2017-09-25 | C30: USDINR SEP FUT | D30: Buy | E30: 64.77 | F30: 64.4 | G30: 64.92 | H30: 65.1 | I30: Profit of Rs 0.15/- | K30: =G30-E30 -> 0.15 | L30: =K30*M30 -> 150 | M30: 1000 | N30: Successful | O30: 2017-09-25
A31: 29 | B31: 2017-09-25 | C31: USDINR SEP FUT | D31: Sell | E31: 65.1077 | F31: 65.3 | G31: 65.3 | H31: 64.5 | I31: Loss of Rs.0.19/- | K31: -0.19 | L31: -190 | M31: 1000.00 | N31: Unsuccessful | O31: 2017-09-26
A32: 30 | B32: 2017-09-27 | C32: USDINR SEP FUT | D32: Sell | E32: 65.7225 | F32: 65.83 | G32: 65.7 | H32: 65.52 | I32: Profit of Rs 0.02/- | K32: =E32-G32 -> 0.02 | L32: =K32*M32 -> 22.5 | M32: 1000 | N32: Neutral | O32: 2017-09-27
A33: 31 | B33: 2017-09-27 | C33: USDINR OCT FUT | D33: Sell | E33: 66 | F33: 66.5 | G33: 65.895 | H33: 65 | I33: Profit of Rs 0.11/- | K33: =E33-G33 -> 0.11 | L33: 105 | M33: 1000 | N33: Successful | O33: 2017-09-27
A34: 32 | B34: 2017-09-28 | C34: USDINR OCT FUT | D34: Sell | E34: 66.075 | F34: 66.3 | G34: 65.96 | H34: 65.4 | I34: Profit of Rs 0.12/- | K34: =E34-G34 -> 0.12 | L34: =K34*M34 -> 115 | M34: 1000 | N34: Successful | O34: 2017-09-28
A35: 33 | B35: 2017-09-29 | C35: GBPINR OCT fut | D35: Buy | E35: 87.745 | F35: 87.5 | G35: 87.84 | H35: 88.25 | I35: Profit of Rs 0.09/- | K35: =G35-E35 -> 0.09 | L35: 95 | M35: 1000 | N35: Successful | O35: 2017-09-29
A36: 34 | B36: 2017-09-29 | C36: USDINR OCT FUT | D36: Buy | E36: 65.514 | F36: 65.25 | G36: 65.85 | H36: 66 | I36: Profit of Rs 0.34/- | K36: 0.34 | L36: =K36*M36 -> 336 | M36: 1000 | N36: Successful | O36: 2017-10-03
A37: 35 | B37: 2017-10-09 | C37: USDINR OCT FUT | D37: Buy | E37: 65.48 | F37: 65.23 | G37: 65.5775 | H37: 65.95 | I37: Profit of Rs 0.10/- | K37: =G37-E37 -> 0.10 | L37: =K37*M37 -> 97.5 | M37: 1000 | N37: Successful | O37: 2017-10-09
A38: 36 | B38: 2017-10-10 | C38: USDINR OCT FUT | D38: Buy | E38: 65.41 | F38: 65.15 | G38: 65.5075 | H38: 66 | I38: Profit of Rs 0.10/- | K38: 0.10 | L38: 97.5 | M38: 1000 | N38: Successful | O38: 2017-10-10
A39: 37 | B39: 2017-10-11 | C39: USDINR OCT FUT | D39: Buy | E39: 65.38 | F39: 65.13 | G39: 65.13 | H39: 65.88 | I39: Loss of Rs.0.25/- | K39: -0.25 | L39: -250 | M39: 1000.00 | N39: Unsuccessful | O39: 2017-10-13
A40: 38 | B40: 2017-10-16 | C40: USDINR OCT FUT | D40: Buy | E40: 64.7925 | F40: 64.54 | G40: 64.905 | H40: 65.3 | I40: Profit of Rs 0.11/- | K40: =G40-E40 -> 0.11 | L40: =K40*M40 -> 112.5 | M40: 1000 | N40: Successful | O40: 2017-10-17
A41: 39 | B41: 2017-10-23 | C41: USDINR OCT FUT | D41: Buy | E41: 65.115 | F41: 64.85 | G41: 65.21 | H41: 65.5 | I41: Profit of Rs 0.09/- | K41: =G41-E41 -> 0.09 | L41: =K41*M41 -> 95 | M41: 1000 | N41: Successful | O41: 2017-10-25
A42: 40 | B42: 2017-10-23 | C42: JPYINR OCT FUT | D42: Buy | E42: 57.285 | F42: 57.03 | G42: 57.38 | H42: 58.4 | I42: Profit of Rs 0.10/- | K42: =G42-E42 -> 0.10 | L42: =K42*M42 -> 95 | M42: 1000 | N42: Successful | O42: 2017-10-23
A43: 41 | B43: 2017-10-26 | C43: USDINR OCT FUT | D43: Buy | E43: 64.755 | F43: 64.5 | G43: 64.87 | H43: 65.25 | I43: Profit of Rs 0.12/- | K43: 0.12 | L43: 115 | M43: 1000 | N43: Successful | O43: 2017-10-25
A44: 42 | B44: 2017-10-30 | C44: USDINR NOV FUT | D44: Buy | E44: 65.035 | F44: 64.79 | G44: 64.79 | H44: 65.5 | I44: Loss of Rs.0.24/- | K44: -0.24 | L44: -245 | M44: 1000.00 | N44: Unsuccessful | O44: 2017-11-01
A45: 43 | B45: 2017-11-01 | C45: JPYINR NOV FUT | D45: Buy | E45: 56.9875 | F45: 56.73 | G45: 57.0959 | H45: 57.5 | I45: Profit of Rs 0.11/- | K45: =G45-E45 -> 0.11 | L45: =K45*M45 -> 108.4 | M45: 1000 | N45: Successful | O45: 2017-11-07
A46: 44 | B46: 2017-11-02 | C46: USDINR NOV FUT | D46: Buy | E46: 64.7838 | F46: 64.5 | G46: 64.89 | H46: 65.25 | I46: Profit of Rs 0.11/- | K46: =G46-E46 -> 0.11 | L46: =K46*M46 -> 106.2 | M46: 1000 | N46: Successful | O46: 2017-11-06
A47: 45 | B47: 2017-11-08 | C47: USDINR NOV FUT | D47: Buy | E47: 65.1363 | F47: 64.8375 | G47: 65.235 | H47: 65.73 | I47: Profit of Rs 0.10/- | K47: =G47-E47 -> 0.10 | L47: =K47*M47 -> 98.7 | M47: 1000 | N47: Successful | O47: 2017-11-10
A48: 46 | B48: 2017-11-08 | C48: GBPINR NOV FUT | D48: Buy | E48: 85.4983 | F48: 85.25 | G48: 85.6 | H48: 86 | I48: Profit of Rs 0.10/- | K48: =G48-E48 -> 0.10 | L48: =K48*M48 -> 101.7 | M48: 1000 | N48: Successful | O48: 2017-11-09
A49: 47 | B49: 2017-11-16 | C49: EURINR NOV FUT | D49: Buy | E49: 76.8975 | F49: 76.3975 | G49: 76.3975 | H49: 77.8975 | I49: Loss of Rs.0.50/- | K49: =G49-E49 -> -0.50 | L49: -500 | M49: 1000.00 | N49: Unsuccessful | O49: 2017-11-01
A50: 48 | B50: 2017-11-16 | C50: JPYINR NOV FUT | D50: Buy | E50: 57.6625 | F50: 57.2675 | G50: 57.8075 | H50: 58.6675 | I50: Profit of Rs 0.14/- | K50: =G50-E50 -> 0.14 | L50: =K50*M50 -> 145 | M50: 1000 | N50: Successful | O50: 2017-11-17
A51: 49 | B51: 2017-11-22 | C51: EURINR NOV FUT | D51: Buy | E51: 76.175 | F51: 75.95 | G51: 76.335 | H51: 76.6 | I51: Profit of Rs 0.16/- | K51: 0.16 | L51: =K51*M51 -> 160 | M51: 1000 | N51: Successful | O51: 2017-11-22
A52: 50 | B52: 2017-11-22 | C52: USDINR NOV FUT | D52: Buy | E52: 64.87 | F52: 64.5 | G52: 64.5 | H52: 65.5 | I52: Loss of Rs.0.37/- | K52: -0.37 | L52: -370 | M52: 1000.00 | N52: Unsuccessful | O52: 2017-11-27
A53: 51 | B53: 2017-11-28 | C53: GBPINR DEC FUT | D53: Buy | E53: 86.17 | F53: 85.85 | G53: 86.46 | H53: 87 | I53: Profit of Rs 0.29/- | K53: 0.29 | L53: =K53*M53 -> 290 | M53: 1000 | N53: Successful | O53: 2017-11-29
A54: 52 | B54: 2017-11-28 | C54: JPYINR DEC FUT | D54: Buy | E54: 58.16 | F54: 57.85 | G54: 57.85 | H54: 58.6 | I54: Loss of Rs.0.31/- | K54: -0.31 | L54: -310 | M54: 1000.00 | N54: Unsuccessful | O54: 2017-11-29
A55: 53 | B55: 2017-11-28 | C55: USDINR DEC FUT | D55: Buy | E55: 64.63 | F55: 64.13 | G55: 64.13 | H55: 65.63 | I55: Loss of Rs.0.50/- | K55: -0.50 | L55: =K55*M55 -> -500 | M55: 1000.00 | N55: Unsuccessful | O55: 2017-12-15
A56: 54 | B56: 2017-11-28 | C56: EURINR DEC FUT | D56: Buy | E56: 76.93 | F56: 76.43 | G56: 76.43 | H56: 77.93 | I56: Loss of Rs.0.50/- | K56: =G56-E56 -> -0.50 | L56: =K56*M56 -> -500 | M56: 1000.00 | N56: Unsuccessful | O56: 2017-11-29
A57: 55 | B57: 2017-12-12 | C57: EURINR DEC FUT | D57: Buy | E57: 76.105 | F57: 75.7 | G57: 76.27 | H57: 76.8 | I57: Profit of Rs 0.16/- | K57: =G57-E57 -> 0.16 | L57: 165 | M57: 1000 | N57: Successful | O57: 2017-12-14
A58: 56 | B58: 2017-12-12 | C58: JPYINR DEC FUT | D58: Buy | E58: 56.975 | F58: 56.7 | G58: 57.21 | H58: 57.6 | I58: Profit of Rs 0.23/- | K58: =G58-E58 -> 0.23 | L58: =K58*M58 -> 235 | M58: 1000 | N58: Successful | O58: 2017-12-14

Sheet Sheet2 (hidden)
A1: SYMBOL | B1: SERIES | C1: OPEN | D1: HIGH | E1: LOW | F1: CLOSE | G1: LAST | H1: PREVCLOSE | I1: TOTTRDQTY | J1: TOTTRDVAL | K1: TIMESTAMP | L1: TOTALTRADES | M1: ISIN
A2: 20MICRONS | B2: EQ | C2: 50.1 | D2: 52.3 | E2: 49 | F2: 49.3 | G2: 49.5 | H2: 49.9 | I2: 193457 | J2: 9861984.7 | K2: 2018-04-04 | L2: 1874 | M2: INE144J01027
A3: 3IINFOTECH | B3: EQ | C3: 5.15 | D3: 5.3 | E3: 5 | F3: 5.1 | G3: 5.1 | H3: 5.15 | I3: 3773118 | J3: 19390662.15 | K3: 2018-04-04 | L3: 1210 | M3: INE748C01020
A4: 3MINDIA | B4: EQ | C4: 20111.3 | D4: 21000.05 | E4: 19851 | F4: 20105 | G4: 20131 | H4: 20111.3 | I4: 3744 | J4: 76867491.05 | K4: 2018-04-04 | L4: 1062 | M4: INE470A01017
A5: 63MOONS | B5: EQ | C5: 101 | D5: 107 | E5: 99.65 | F5: 101.05 | G5: 101.2 | H5: 100.15 | I5: 975603 | J5: 100866140.2 | K5: 2018-04-04 | L5: 12650 | M5: INE111B01023
A6: 8KMILES | B6: EQ | C6: 704.95 | D6: 716 | E6: 684.7 | F6: 689.75 | G6: 691 | H6: 698.25 | I6: 182882 | J6: 128035493.2 | K6: 2018-04-04 | L6: 6255 | M6: INE650K01021
A7: A2ZINFRA | B7: EQ | C7: 28.85 | D7: 29.4 | E7: 27.25 | F7: 27.9 | G7: 28.4 | H7: 28.85 | I7: 963860 | J7: 27350404 | K7: 2018-04-04 | L7: 3425 | M7: INE619I01012
A8: AARTIDRUGS | B8: EQ | C8: 540.8 | D8: 556 | E8: 535 | F8: 543.8 | G8: 547 | H8: 534.9 | I8: 7147 | J8: 3900299.4 | K8: 2018-04-04 | L8: 598 | M8: INE767A01016
A9: AARTIIND | B9: EQ | C9: 1165 | D9: 1165 | E9: 1150 | F9: 1154.6 | G9: 1155 | H9: 1155.4 | I9: 93973 | J9: 108770579.7 | K9: 2018-04-04 | L9: 2537 | M9: INE769A01020
A10: AARVEEDEN | B10: EQ | C10: 46.45 | D10: 47.2 | E10: 44 | F10: 44.2 | G10: 44.7 | H10: 45.4 | I10: 18317 | J10: 825979.45 | K10: 2018-04-04 | L10: 201 | M10: INE273D01019
A11: ABAN | B11: EQ | C11: 163.7 | D11: 165.9 | E11: 158.3 | F11: 159.65 | G11: 159.55 | H11: 163 | I11: 874550 | J11: 141924319.1 | K11: 2018-04-04 | L11: 10647 | M11: INE421A01028
A12: ABB | B12: EQ | C12: 1294.9 | D12: 1300 | E12: 1267.55 | F12: 1271.35 | G12: 1270 | H12: 1283.15 | I12: 44414 | J12: 57027459.75 | K12: 2018-04-04 | L12: 4245 | M12: INE117A01022
A13: ABBOTINDIA | B13: EQ | C13: 5674 | D13: 5884 | E13: 5600 | F13: 5624.5 | G13: 5601 | H13: 5617.9 | I13: 12475 | J13: 72064803 | K13: 2018-04-04 | L13: 1394 | M13: INE358A01014
A14: ABCAPITAL | B14: EQ | C14: 152.9 | D14: 155.8 | E14: 151 | F14: 151.7 | G14: 151.8 | H14: 152 | I14: 3032787 | J14: 466355877.1 | K14: 2018-04-04 | L14: 42130 | M14: INE674K01013
A15: ABFRL | B15: EQ | C15: 147.9 | D15: 152.8 | E15: 146.9 | F15: 151 | G15: 151.05 | H15: 146.7 | I15: 835680 | J15: 125139153.4 | K15: 2018-04-04 | L15: 6790 | M15: INE647O01011
A16: ACC | B16: EQ | C16: 1554 | D16: 1576.85 | E16: 1525.85 | F16: 1530 | G16: 1532 | H16: 1554.8 | I16: 171614 | J16: 266555404.2 | K16: 2018-04-04 | L16: 10236 | M16: INE012A01025
A17: ACCELYA | B17: EQ | C17: 1359.9 | D17: 1362.45 | E17: 1335 | F17: 1341.9 | G17: 1335 | H17: 1355.7 | I17: 1859 | J17: 2497493.9 | K17: 2018-04-04 | L17: 402 | M17: INE793A01012
A18: ACE | B18: EQ | C18: 176.8 | D18: 181 | E18: 172.1 | F18: 172.55 | G18: 172.4 | H18: 176.05 | I18: 807084 | J18: 142941692.5 | K18: 2018-04-04 | L18: 7294 | M18: INE731H01025
A19: ADANIENT | B19: EQ | C19: 162.45 | D19: 166.4 | E19: 147.1 | F19: 151.45 | G19: 149.55 | H19: 162.4 | I19: 33352404 | J19: 5275615582 | K19: 2018-04-04 | L19: 115437 | M19: INE423A01024
A20: ADANIPORTS | B20: EQ | C20: 368 | D20: 373.7 | E20: 363.75 | F20: 367.8 | G20: 368 | H20: 366.4 | I20: 5611445 | J20: 2070968762 | K20: 2018-04-04 | L20: 60620 | M20: INE742F01042
A21: ADANIPOWER | B21: EQ | C21: 25.05 | D21: 26.35 | E21: 24.75 | F21: 25.05 | G21: 25.1 | H21: 25.1 | I21: 26472761 | J21: 672466150.8 | K21: 2018-04-04 | L21: 28762 | M21: INE814H01011
A22: ADANITRANS | B22: EQ | C22: 192.5 | D22: 194 | E22: 180.1 | F22: 182.8 | G22: 183.85 | H22: 191.35 | I22: 3331179 | J22: 626217740.2 | K22: 2018-04-04 | L22: 23476 | M22: INE931S01010
A23: ADFFOODS | B23: EQ | C23: 240 | D23: 249 | E23: 218.9 | F23: 220.65 | G23: 219.9 | H23: 239.4 | I23: 795445 | J23: 188340942.1 | K23: 2018-04-04 | L23: 8718 | M23: INE982B01019
A24: ADHUNIK | B24: EQ | C24: 3.9 | D24: 3.9 | E24: 3.9 | F24: 3.9 | G24: 3.9 | H24: 3.75 | I24: 10481 | J24: 40875.9 | K24: 2018-04-04 | L24: 21 | M24: INE400H01019
A25: ADLABS | B25: EQ | C25: 53.25 | D25: 53.8 | E25: 50.5 | F25: 51.55 | G25: 52 | H25: 51.25 | I25: 190130 | J25: 9988512.35 | K25: 2018-04-04 | L25: 1689 | M25: INE172N01012
A26: ADORWELD | B26: EQ | C26: 405.8 | D26: 412.35 | E26: 385 | F26: 389.25 | G26: 385 | H26: 405.75 | I26: 29834 | J26: 11876930.35 | K26: 2018-04-04 | L26: 1176 | M26: INE045A01017
A27: ADSL | B27: EQ | C27: 22.35 | D27: 22.35 | E27: 21.4 | F27: 21.7 | G27: 21.7 | H27: 21.3 | I27: 21019 | J27: 457876.85 | K27: 2018-04-04 | L27: 115 | M27: INE102I01027
A28: ADVANIHOTR | B28: EQ | C28: 56.5 | D28: 58.45 | E28: 55 | F28: 56 | G28: 56.8 | H28: 56.5 | I28: 16617 | J28: 941622.5 | K28: 2018-04-04 | L28: 200 | M28: INE199C01026
A29: ADVENZYMES | B29: EQ | C29: 239 | D29: 240.75 | E29: 233 | F29: 233.75 | G29: 233.4 | H29: 237.95 | I29: 170481 | J29: 40224209.2 | K29: 2018-04-04 | L29: 3642 | M29: INE837H01020
A30: AEGISCHEM | B30: EQ | C30: 266.75 | D30: 266.75 | E30: 254.1 | F30: 256.6 | G30: 256 | H30: 262.85 | I30: 144547 | J30: 37712680.2 | K30: 2018-04-04 | L30: 4548 | M30: INE208C01025
A31: AFL | B31: EQ | C31: 53.45 | D31: 53.45 | E31: 52.15 | F31: 52.2 | G31: 52.2 | H31: 52.9 | I31: 1118 | J31: 58688.6 | K31: 2018-04-04 | L31: 11 | M31: INE020G01017
A32: AGCNET | B32: EQ | C32: 114.8 | D32: 114.8 | E32: 105.05 | F32: 108.15 | G32: 105.6 | H32: 109.35 | I32: 4279 | J32: 466188.8 | K32: 2018-04-04 | L32: 45 | M32: INE676A01019
A33: AGLSL | B33: EQ | C33: 107.5 | D33: 107.75 | E33: 100.5 | F33: 101.5 | G33: 101.55 | H33: 103.65 | I33: 5687 | J33: 584587.5 | K33: 2018-04-04 | L33: 96 | M33: INE517U01013
A34: AGRITECH | B34: EQ | C34: 122.2 | D34: 134.25 | E34: 119.1 | F34: 134.2 | G34: 134.25 | H34: 122.05 | I34: 239743 | J34: 31957602.25 | K34: 2018-04-04 | L34: 1810 | M34: INE449G01018
A35: AHLUCONT | B35: EQ | C35: 386.55 | D35: 391.75 | E35: 385.1 | F35: 390 | G35: 390 | H35: 381.95 | I35: 11222 | J35: 4361069 | K35: 2018-04-04 | L35: 304 | M35: INE758C01029
A36: AHLWEST | B36: EQ | C36: 266.55 | D36: 270.2 | E36: 266.5 | F36: 270.1 | G36: 270 | H36: 273.85 | I36: 382 | J36: 103026.15 | K36: 2018-04-04 | L36: 15 | M36: INE915K01010
A37: AIAENG | B37: EQ | C37: 1414.2 | D37: 1446 | E37: 1414.2 | F37: 1439.85 | G37: 1439.15 | H37: 1424 | I37: 7933 | J37: 11399333.3 | K37: 2018-04-04 | L37: 1199 | M37: INE212H01026
A38: AIFL | B38: EQ | C38: 462.3 | D38: 471.45 | E38: 456 | F38: 467.2 | G38: 463.15 | H38: 465.4 | I38: 122682 | J38: 57090830.75 | K38: 2018-04-04 | L38: 1754 | M38: INE428O01016
A39: AJANTPHARM | B39: EQ | C39: 1401 | D39: 1417.45 | E39: 1369.45 | F39: 1379.85 | G39: 1382 | H39: 1400.35 | I39: 136281 | J39: 190176117.6 | K39: 2018-04-04 | L39: 7805 | M39: INE031B01049
A40: AJMERA | B40: EQ | C40: 256.9 | D40: 262 | E40: 256.1 | F40: 259.1 | G40: 260.95 | H40: 255.45 | I40: 121092 | J40: 31410185.3 | K40: 2018-04-04 | L40: 1841 | M40: INE298G01027
A41: AKSHARCHEM | B41: EQ | C41: 596.7 | D41: 605 | E41: 589.65 | F41: 597.2 | G41: 595.15 | H41: 590.8 | I41: 9751 | J41: 5813920.55 | K41: 2018-04-04 | L41: 562 | M41: INE542B01011
A42: AKSHOPTFBR | B42: EQ | C42: 35.3 | D42: 36.2 | E42: 34.3 | F42: 35.85 | G42: 36.2 | H42: 34.5 | I42: 2355552 | J42: 84017943.35 | K42: 2018-04-04 | L42: 5395 | M42: INE523B01011
A43: AKZOINDIA | B43: EQ | C43: 1902 | D43: 1979.9 | E43: 1860 | F43: 1938.9 | G43: 1940 | H43: 1805.55 | I43: 94495 | J43: 181888940.2 | K43: 2018-04-04 | L43: 8959 | M43: INE133A01011
A44: ALANKIT | B44: EQ | C44: 46.95 | D44: 48.75 | E44: 44.7 | F44: 46.95 | G44: 46.6 | H44: 46.45 | I44: 523637 | J44: 25015155.4 | K44: 2018-04-04 | L44: 1675 | M44: INE914E01040
A45: ALBK | B45: EQ | C45: 50.4 | D45: 50.75 | E45: 48.9 | F45: 49.2 | G45: 49.15 | H45: 50 | I45: 3648678 | J45: 181574677.5 | K45: 2018-04-04 | L45: 9731 | M45: INE428A01015
A46: ALEMBICLTD | B46: EQ | C46: 55.8 | D46: 57 | E46: 54.8 | F46: 55.05 | G46: 55.1 | H46: 55.6 | I46: 358839 | J46: 20090610.9 | K46: 2018-04-04 | L46: 2129 | M46: INE426A01027
A47: ALICON | B47: EQ | C47: 609.95 | D47: 609.95 | E47: 602.1 | F47: 603.15 | G47: 607.95 | H47: 605.4 | I47: 1448 | J47: 878557.75 | K47: 2018-04-04 | L47: 72 | M47: INE062D01024
A48: ALKALI | B48: EQ | C48: 79.8 | D48: 79.8 | E48: 73.25 | F48: 74.35 | G48: 75 | H48: 80.9 | I48: 100103 | J48: 7581956.2 | K48: 2018-04-04 | L48: 1785 | M48: INE773I01017
A49: ALKEM | B49: EQ | C49: 1924.8 | D49: 1926.9 | E49: 1885 | F49: 1892.6 | G49: 1892 | H49: 1906.9 | I49: 16191 | J49: 30799759.7 | K49: 2018-04-04 | L49: 2782 | M49: INE540L01014
A50: ALKYLAMINE | B50: EQ | C50: 633 | D50: 633 | E50: 610.35 | F50: 612.55 | G50: 611 | H50: 622.7 | I50: 1517 | J50: 937694.4 | K50: 2018-04-04 | L50: 92 | M50: INE150B01021
A51: ALLCARGO | B51: EQ | C51: 152.5 | D51: 152.5 | E51: 149.6 | F51: 150.7 | G51: 150.7 | H51: 151.9 | I51: 248399 | J51: 37607762.65 | K51: 2018-04-04 | L51: 2406 | M51: INE418H01029
A52: ALLSEC | B52: EQ | C52: 336.95 | D52: 343 | E52: 333.15 | F52: 335.85 | G52: 336 | H52: 338 | I52: 7378 | J52: 2508770.6 | K52: 2018-04-04 | L52: 211 | M52: INE835G01018
A53: ALMONDZ | B53: EQ | C53: 24.5 | D53: 24.5 | E53: 24 | F53: 24.05 | G53: 24 | H53: 23.6 | I53: 1522 | J53: 37111.6 | K53: 2018-04-04 | L53: 16 | M53: INE326B01027
A54: ALOKTEXT | B54: EQ | C54: 3.35 | D54: 3.35 | E54: 3.35 | F54: 3.35 | G54: 3.35 | H54: 3.2 | I54: 776801 | J54: 2602283.35 | K54: 2018-04-04 | L54: 294 | M54: INE270A01011
A55: ALPA | B55: EQ | C55: 41.7 | D55: 41.7 | E55: 39.05 | F55: 39.95 | G55: 39.9 | H55: 41 | I55: 27577 | J55: 1122476.55 | K55: 2018-04-04 | L55: 159 | M55: INE385I01010
A56: ALPHAGEO | B56: EQ | C56: 770 | D56: 785 | E56: 770 | F56: 773.1 | G56: 774.55 | H56: 768.7 | I56: 9120 | J56: 7093471.3 | K56: 2018-04-04 | L56: 914 | M56: INE137C01018
A57: AMARAJABAT | B57: EQ | C57: 815 | D57: 821.95 | E57: 794 | F57: 798.45 | G57: 797.6 | H57: 811.8 | I57: 480177 | J57: 388105943.1 | K57: 2018-04-04 | L57: 15729 | M57: INE885A01032
A58: AMBER | B58: EQ | C58: 1091 | D58: 1098.3 | E58: 1076.1 | F58: 1079.9 | G58: 1077 | H58: 1086.55 | I58: 21824 | J58: 23659462.75 | K58: 2018-04-04 | L58: 1789 | M58: INE371P01015
A59: AMBIKCO | B59: EQ | C59: 1323.9 | D59: 1323.9 | E59: 1300 | F59: 1301.5 | G59: 1305.1 | H59: 1299.9 | I59: 2067 | J59: 2696442.65 | K59: 2018-04-04 | L59: 221 | M59: INE540G01014
A60: AMBUJACEM | B60: EQ | C60: 240.6 | D60: 244 | E60: 236 | F60: 236.6 | G60: 236.35 | H60: 240.65 | I60: 1640569 | J60: 392548654.9 | K60: 2018-04-04 | L60: 16211 | M60: INE079A01024
A61: AMJLAND | B61: EQ | C61: 24.55 | D61: 25.5 | E61: 23.35 | F61: 23.75 | G61: 23.65 | H61: 24.2 | I61: 8549 | J61: 209362.4 | K61: 2018-04-04 | L61: 73 | M61: INE606A01024
A62: AMRUTANJAN | B62: EQ | C62: 551.1 | D62: 559.4 | E62: 550 | F62: 551.65 | G62: 552 | H62: 554.2 | I62: 2900 | J62: 1607775.5 | K62: 2018-04-04 | L62: 191 | M62: INE098F01023
A63: ANANTRAJ | B63: EQ | C63: 50.05 | D63: 50.9 | E63: 48.65 | F63: 49 | G63: 48.7 | H63: 49.85 | I63: 1490470 | J63: 74364741.15 | K63: 2018-04-04 | L63: 5023 | M63: INE242C01024
A64: ANDHRABANK | B64: EQ | C64: 44 | D64: 44.05 | E64: 42.05 | F64: 42.35 | G64: 42.25 | H64: 43.6 | I64: 6650591 | J64: 286091801.8 | K64: 2018-04-04 | L64: 11415 | M64: INE434A01013
A65: ANDHRACEMT | B65: EQ | C65: 12 | D65: 12.1 | E65: 10.5 | F65: 10.8 | G65: 11.2 | H65: 11.55 | I65: 747923 | J65: 8327168.45 | K65: 2018-04-04 | L65: 1105 | M65: INE666E01012
A66: ANDHRSUGAR | B66: EQ | C66: 443.85 | D66: 454.5 | E66: 428 | F66: 432.75 | G66: 432 | H66: 449.45 | I66: 24910 | J66: 11055100.25 | K66: 2018-04-04 | L66: 1137 | M66: INE715B01013
A67: ANIKINDS | B67: EQ | C67: 33.05 | D67: 35.55 | E67: 32.15 | F67: 33.1 | G67: 33 | H67: 32.7 | I67: 12263 | J67: 416628.65 | K67: 2018-04-04 | L67: 196 | M67: INE087B01017
A68: ANSALAPI | B68: EQ | C68: 21 | D68: 21.5 | E68: 20.2 | F68: 20.45 | G68: 20.6 | H68: 20.8 | I68: 82428 | J68: 1717204.25 | K68: 2018-04-04 | L68: 333 | M68: INE436A01026
A69: ANSALHSG | B69: EQ | C69: 21.05 | D69: 21.7 | E69: 20.45 | F69: 20.6 | G69: 20.55 | H69: 20.85 | I69: 58872 | J69: 1237979.55 | K69: 2018-04-04 | L69: 336 | M69: INE880B01015
A70: APARINDS | B70: EQ | C70: 745 | D70: 765 | E70: 745 | F70: 760.4 | G70: 760 | H70: 750.55 | I70: 181061 | J70: 136082154 | K70: 2018-04-04 | L70: 951 | M70: INE372A01015
A71: APCL | B71: EQ | C71: 193.35 | D71: 193.85 | E71: 186 | F71: 186 | G71: 186 | H71: 186.5 | I71: 3578 | J71: 676339.95 | K71: 2018-04-04 | L71: 45 | M71: INE071F01012
A72: APCOTEXIND | B72: EQ | C72: 524 | D72: 530 | E72: 512.4 | F72: 518.3 | G72: 518.5 | H72: 522.35 | I72: 3563 | J72: 1855702.55 | K72: 2018-04-04 | L72: 245 | M72: INE116A01024
A73: APEX | B73: EQ | C73: 654.4 | D73: 665 | E73: 632.5 | F73: 641.25 | G73: 642 | H73: 653.15 | I73: 210881 | J73: 137522806.3 | K73: 2018-04-04 | L73: 6119 | M73: INE346W01013
A74: APLAPOLLO | B74: EQ | C74: 2025.05 | D74: 2050 | E74: 2010.1 | F74: 2045.65 | G74: 2050 | H74: 2020 | I74: 64164 | J74: 129779801.3 | K74: 2018-04-04 | L74: 1042 | M74: INE702C01019
A75: APLLTD | B75: EQ | C75: 547 | D75: 555 | E75: 539.85 | F75: 549.8 | G75: 552 | H75: 540.6 | I75: 23518 | J75: 12801820.4 | K75: 2018-04-04 | L75: 1311 | M75: INE901L01018
A76: APOLLO | B76: EQ | C76: 255.8 | D76: 264.8 | E76: 252.2 | F76: 253.6 | G76: 254 | H76: 253.5 | I76: 139069 | J76: 36014697.95 | K76: 2018-04-04 | L76: 2347 | M76: INE713T01010
A77: APOLLOHOSP | B77: EQ | C77: 1095.85 | D77: 1104.05 | E77: 1061 | F77: 1066.95 | G77: 1064.2 | H77: 1095.85 | I77: 622425 | J77: 679126365.1 | K77: 2018-04-04 | L77: 24645 | M77: INE437A01024
A78: APOLLOTYRE | B78: EQ | C78: 286.1 | D78: 289.05 | E78: 280.5 | F78: 282.15 | G78: 281.1 | H78: 285.6 | I78: 2783007 | J78: 792722999 | K78: 2018-04-04 | L78: 22586 | M78: INE438A01022
A79: APOLSINHOT | B79: EQ | C79: 1400 | D79: 1423.95 | E79: 1400 | F79: 1400 | G79: 1400 | H79: 1399.6 | I79: 302 | J79: 425296.45 | K79: 2018-04-04 | L79: 36 | M79: INE451F01016
A80: APTECHT | B80: EQ | C80: 265 | D80: 273.9 | E80: 258 | F80: 259.55 | G80: 258.3 | H80: 267.85 | I80: 889108 | J80: 236594848.6 | K80: 2018-04-04 | L80: 14977 | M80: INE266F01018
A81: ARCHIDPLY | B81: EQ | C81: 79.9 | D81: 83 | E81: 78.6 | F81: 79.3 | G81: 78.6 | H81: 80.35 | I81: 54321 | J81: 4408975.05 | K81: 2018-04-04 | L81: 696 | M81: INE877I01016
A82: ARCHIES | B82: EQ | C82: 34.35 | D82: 35.45 | E82: 33.05 | F82: 33.75 | G82: 34.15 | H82: 34.1 | I82: 147650 | J82: 5039658.2 | K82: 2018-04-04 | L82: 1412 | M82: INE731A01020
A83: ARCOTECH | B83: EQ | C83: 37.2 | D83: 38.5 | E83: 34.25 | F83: 35.05 | G83: 35.15 | H83: 36.7 | I83: 1450421 | J83: 51725534.05 | K83: 2018-04-04 | L83: 4807 | M83: INE574I01035
A84: ARIES | B84: EQ | C84: 193 | D84: 196.15 | E84: 186 | F84: 188.7 | G84: 192.4 | H84: 189.4 | I84: 28667 | J84: 5532615.65 | K84: 2018-04-04 | L84: 610 | M84: INE298I01015
A85: ARIHANTSUP | B85: EQ | C85: 116.25 | D85: 125.95 | E85: 116.25 | F85: 124.15 | G85: 124 | H85: 119.45 | I85: 45506 | J85: 5639403.4 | K85: 2018-04-04 | L85: 4452 | M85: INE643K01018
A86: ARMANFIN | B86: EQ | C86: 339.85 | D86: 339.85 | E86: 322.5 | F86: 328.3 | G86: 327 | H86: 330.35 | I86: 2980 | J86: 991541.9 | K86: 2018-04-04 | L86: 69 | M86: INE109C01017
A87: AROGRANITE | B87: EQ | C87: 60 | D87: 64 | E87: 59.6 | F87: 59.95 | G87: 60.8 | H87: 59.5 | I87: 114559 | J87: 7102627.5 | K87: 2018-04-04 | L87: 962 | M87: INE210C01013
A88: ARROWGREEN | B88: EQ | C88: 394.7 | D88: 408 | E88: 380 | F88: 386 | G88: 385.25 | H88: 384.5 | I88: 138140 | J88: 54107228.5 | K88: 2018-04-04 | L88: 4581 | M88: INE570D01018
A89: ARROWTEX | B89: EQ | C89: 36 | D89: 37.35 | E89: 35.15 | F89: 36.65 | G89: 37 | H89: 35.85 | I89: 19995 | J89: 732024 | K89: 2018-04-04 | L89: 198 | M89: INE933J01015
A90: ARSHIYA | B90: EQ | C90: 81.75 | D90: 81.75 | E90: 76.1 | F90: 76.75 | G90: 76.2 | H90: 79.75 | I90: 50926 | J90: 4043766.6 | K90: 2018-04-04 | L90: 731 | M90: INE968D01022
A91: ARVIND | B91: EQ | C91: 404.4 | D91: 410.55 | E91: 395.85 | F91: 399.85 | G91: 397.55 | H91: 403.25 | I91: 2117047 | J91: 852350612.1 | K91: 2018-04-04 | L91: 31917 | M91: INE034A01011
A92: ARVSMART | B92: EQ | C92: 191.9 | D92: 194.5 | E92: 189 | F92: 190 | G92: 191 | H92: 188.5 | I92: 35442 | J92: 6782228.6 | K92: 2018-04-04 | L92: 648 | M92: INE034S01021
A93: ASAHIINDIA | B93: EQ | C93: 342.55 | D93: 361.75 | E93: 341 | F93: 347.3 | G93: 346.5 | H93: 345.7 | I93: 124862 | J93: 43714055.1 | K93: 2018-04-04 | L93: 2095 | M93: INE439A01020
A94: ASAHISONG | B94: EQ | C94: 335.35 | D94: 354 | E94: 335 | F94: 341.15 | G94: 341.25 | H94: 335.3 | I94: 16560 | J94: 5662666.7 | K94: 2018-04-04 | L94: 365 | M94: INE228I01012
A95: ASAL | B95: EQ | C95: 83.95 | D95: 84 | E95: 78.75 | F95: 79.65 | G95: 79.3 | H95: 81.95 | I95: 12715 | J95: 1038403.1 | K95: 2018-04-04 | L95: 182 | M95: INE900C01027
A96: ASHAPURMIN | B96: EQ | C96: 73.7 | D96: 74.95 | E96: 69.05 | F96: 69.3 | G96: 69.35 | H96: 72.85 | I96: 227767 | J96: 16392571.25 | K96: 2018-04-04 | L96: 1635 | M96: INE348A01023
A97: ASHIANA | B97: EQ | C97: 169.7 | D97: 169.7 | E97: 162 | F97: 163.45 | G97: 163 | H97: 167.45 | I97: 42498 | J97: 7096654.25 | K97: 2018-04-04 | L97: 982 | M97: INE365D01021
A98: ASHIMASYN | B98: EQ | C98: 29 | D98: 30.5 | E98: 27.05 | F98: 27.45 | G98: 27.7 | H98: 28.9 | I98: 227374 | J98: 6549942.1 | K98: 2018-04-04 | L98: 1123 | M98: INE440A01010
A99: ASHOKA | B99: EQ | C99: 264 | D99: 269 | E99: 256 | F99: 260 | G99: 260 | H99: 263.45 | I99: 399733 | J99: 104840897.6 | K99: 2018-04-04 | L99: 9281 | M99: INE442H01029
A100: ASHOKLEY | B100: EQ | C100: 148.4 | D100: 150.6 | E100: 145.05 | F100: 145.85 | G100: 146.15 | H100: 147.75 | I100: 20449016 | J100: 3024347702 | K100: 2018-04-04 | L100: 75786 | M100: INE208A01029
A101: ASIANPAINT | B101: EQ | C101: 1156.9 | D101: 1157.7 | E101: 1126 | F101: 1136 | G101: 1136 | H101: 1152.1 | I101: 607619 | J101: 692526265.8 | K101: 2018-04-04 | L101: 25132 | M101: INE021A01026
A102: ASIANTILES | B102: EQ | C102: 510 | D102: 515 | E102: 489.8 | F102: 495.65 | G102: 496.4 | H102: 501.45 | I102: 53613 | J102: 27049542.25 | K102: 2018-04-04 | L102: 2508 | M102: INE022I01019
A103: ASPINWALL | B103: EQ | C103: 403.95 | D103: 406 | E103: 393 | F103: 396.6 | G103: 398 | H103: 394 | I103: 3257 | J103: 1305990.3 | K103: 2018-04-04 | L103: 46 | M103: INE991I01015
A104: ASSAMCO | B104: EQ | C104: 4.7 | D104: 4.7 | E104: 4.55 | F104: 4.7 | G104: 4.7 | H104: 4.5 | I104: 554052 | J104: 2598269.65 | K104: 2018-04-04 | L104: 291 | M104: INE442A01024
A105: ASTEC | B105: EQ | C105: 601 | D105: 618.45 | E105: 598 | F105: 605.8 | G105: 608 | H105: 595.05 | I105: 44173 | J105: 26993807.3 | K105: 2018-04-04 | L105: 2088 | M105: INE563J01010
A106: ASTERDM | B106: EQ | C106: 168.1 | D106: 172.2 | E106: 162.2 | F106: 167.85 | G106: 166.75 | H106: 168.5 | I106: 207962 | J106: 35450772.3 | K106: 2018-04-04 | L106: 6022 | M106: INE914M01019
A107: ASTRAL | B107: EQ | C107: 908 | D107: 924.75 | E107: 900 | F107: 904.8 | G107: 903.1 | H107: 902.05 | I107: 34676 | J107: 31691423.75 | K107: 2018-04-04 | L107: 1984 | M107: INE006I01046
A108: ASTRAMICRO | B108: EQ | C108: 76.25 | D108: 77.7 | E108: 75.5 | F108: 75.8 | G108: 76 | H108: 75.55 | I108: 639014 | J108: 49121484.9 | K108: 2018-04-04 | L108: 3134 | M108: INE386C01029
A109: ASTRAZEN | B109: EQ | C109: 954.95 | D109: 975 | E109: 941 | F109: 949.05 | G109: 953.85 | H109: 953.35 | I109: 1503 | J109: 1440288.4 | K109: 2018-04-04 | L109: 211 | M109: INE203A01020
A110: ASTRON | B110: EQ | C110: 117.4 | D110: 119.3 | E110: 114.2 | F110: 116 | G110: 116 | H110: 116.9 | I110: 178060 | J110: 20749024.85 | K110: 2018-04-04 | L110: 2288 | M110: INE646X01014
A111: ATFL | B111: EQ | C111: 656.45 | D111: 669.5 | E111: 635 | F111: 640 | G111: 640 | H111: 650 | I111: 33642 | J111: 21852860.5 | K111: 2018-04-04 | L111: 1044 | M111: INE209A01019
A112: ATLANTA | B112: EQ | C112: 82.3 | D112: 83.8 | E112: 78.8 | F112: 79.75 | G112: 78.8 | H112: 81.6 | I112: 115009 | J112: 9418433.85 | K112: 2018-04-04 | L112: 1430 | M112: INE285H01022
A113: ATUL | B113: EQ | C113: 2750 | D113: 2795 | E113: 2675 | F113: 2702.9 | G113: 2700 | H113: 2746.35 | I113: 7332 | J113: 20159373.45 | K113: 2018-04-04 | L113: 899 | M113: INE100A01010
A114: ATULAUTO | B114: EQ | C114: 444.1 | D114: 450 | E114: 440.1 | F114: 442.6 | G114: 440.95 | H114: 441.85 | I114: 28410 | J114: 12679431.8 | K114: 2018-04-04 | L114: 678 | M114: INE951D01028
A115: AUBANK | B115: EQ | C115: 641.9 | D115: 643.85 | E115: 625.1 | F115: 635.9 | G115: 636.5 | H115: 629.2 | I115: 2049211 | J115: 1299683263 | K115: 2018-04-04 | L115: 7704 | M115: INE949L01017
A116: AURIONPRO | B116: EQ | C116: 216.25 | D116: 219 | E116: 216.05 | F116: 217.05 | G116: 217 | H116: 215.9 | I116: 52537 | J116: 11419756.3 | K116: 2018-04-04 | L116: 646 | M116: INE132H01018
A117: AUROPHARMA | B117: EQ | C117: 597.5 | D117: 597.5 | E117: 587 | F117: 590.45 | G117: 591.25 | H117: 593.35 | I117: 1451755 | J117: 858074632.5 | K117: 2018-04-04 | L117: 21780 | M117: INE406A01037
A118: AUSOMENT | B118: EQ | C118: 72.95 | D118: 73.3 | E118: 68.9 | F118: 69.4 | G118: 69 | H118: 71.7 | I118: 28595 | J118: 2028819.9 | K118: 2018-04-04 | L118: 387 | M118: INE218C01016
A119: AUTOAXLES | B119: EQ | C119: 1569.1 | D119: 1637 | E119: 1535.05 | F119: 1551.35 | G119: 1540 | H119: 1556.65 | I119: 30291 | J119: 48263010 | K119: 2018-04-04 | L119: 2088 | M119: INE449A01011
A120: AUTOIND | B120: EQ | C120: 69.65 | D120: 70.7 | E120: 68.2 | F120: 70.35 | G120: 70.15 | H120: 67.35 | I120: 36279 | J120: 2554378.6 | K120: 2018-04-04 | L120: 236 | M120: INE718H01014
A121: AUTOLITIND | B121: EQ | C121: 68.85 | D121: 69.8 | E121: 66.35 | F121: 66.55 | G121: 66.4 | H121: 66.8 | I121: 13739 | J121: 934003.9 | K121: 2018-04-04 | L121: 204 | M121: INE448A01013
A122: AVADHSUGAR | B122: EQ | C122: 454.9 | D122: 467.5 | E122: 416.05 | F122: 421.05 | G122: 418 | H122: 450.7 | I122: 66296 | J122: 28870357.8 | K122: 2018-04-04 | L122: 2601 | M122: INE349W01017
A123: AVANTIFEED | B123: EQ | C123: 2385 | D123: 2399 | E123: 2255 | F123: 2262.85 | G123: 2268 | H123: 2365.55 | I123: 123693 | J123: 286186381.2 | K123: 2018-04-04 | L123: 9604 | M123: INE871C01020
A124: AVTNPL | B124: EQ | C124: 39.3 | D124: 40.7 | E124: 38.7 | F124: 38.95 | G124: 38.8 | H124: 38.9 | I124: 169858 | J124: 6723650 | K124: 2018-04-04 | L124: 1177 | M124: INE488D01021
A125: AXISBANK | B125: EQ | C125: 504.5 | D125: 504.5 | E125: 490.25 | F125: 492.25 | G125: 491.95 | H125: 501.55 | I125: 6047813 | J125: 3005731967 | K125: 2018-04-04 | L125: 66163 | M125: INE238A01034
A126: AXISCADES | B126: EQ | C126: 152.2 | D126: 158 | E126: 148.3 | F126: 149.35 | G126: 149.6 | H126: 151.6 | I126: 190039 | J126: 29311958.15 | K126: 2018-04-04 | L126: 3873 | M126: INE555B01013
A127: AXISGOLD | B127: EQ | C127: 2739 | D127: 2739 | E127: 2718 | F127: 2726 | G127: 2726 | H127: 2720 | I127: 219 | J127: 596379.1 | K127: 2018-04-04 | L127: 22 | M127: INF846K01347
A128: AXISNIFTY | B128: EQ | C128: 1028.69 | D128: 1030.72 | E128: 1028.68 | F128: 1029 | G128: 1029 | H128: 1025.03 | I128: 28 | J128: 28820.69 | K128: 2018-04-04 | L128: 5 | M128: INF846K01ZL0
A129: AYMSYNTEX | B129: EQ | C129: 62 | D129: 63.5 | E129: 61 | F129: 61.55 | G129: 61.6 | H129: 62.1 | I129: 16194 | J129: 1005095.7 | K129: 2018-04-04 | L129: 187 | M129: INE193B01039
A130: BAFNAPHARM | B130: EQ | C130: 27.8 | D130: 28.5 | E130: 27.2 | F130: 28.1 | G130: 28.05 | H130: 28 | I130: 8365 | J130: 235468.05 | K130: 2018-04-04 | L130: 64 | M130: INE878I01014
A131: BAGFILMS | B131: EQ | C131: 4.8 | D131: 5.05 | E131: 4.8 | F131: 4.9 | G131: 4.95 | H131: 4.85 | I131: 242049 | J131: 1209760.2 | K131: 2018-04-04 | L131: 201 | M131: INE116D01028
A132: BAJAJ-AUTO | B132: EQ | C132: 2807 | D132: 2816 | E132: 2746.25 | F132: 2766 | G132: 2765 | H132: 2792 | I132: 308672 | J132: 858245729.8 | K132: 2018-04-04 | L132: 21649 | M132: INE917I01010
A133: BAJAJCORP | B133: EQ | C133: 466 | D133: 469 | E133: 458 | F133: 461.1 | G133: 462 | H133: 461.5 | I133: 16731 | J133: 7725876.8 | K133: 2018-04-04 | L133: 1119 | M133: INE933K01021
A134: BAJAJELEC | B134: EQ | C134: 639.65 | D134: 664 | E134: 603 | F134: 609 | G134: 608.1 | H134: 620.45 | I134: 3031936 | J134: 1930341662 | K134: 2018-04-04 | L134: 61612 | M134: INE193E01025
A135: BAJAJFINSV | B135: EQ | C135: 5420 | D135: 5445.6 | E135: 5202.8 | F135: 5228.55 | G135: 5231 | H135: 5381.6 | I135: 188780 | J135: 1009609757 | K135: 2018-04-04 | L135: 15546 | M135: INE918I01018
A136: BAJAJHIND | B136: EQ | C136: 9.35 | D136: 9.75 | E136: 9.3 | F136: 9.35 | G136: 9.4 | H136: 9.35 | I136: 2843647 | J136: 27060560.2 | K136: 2018-04-04 | L136: 5408 | M136: INE306A01021
A137: BAJAJHLDNG | B137: EQ | C137: 2634 | D137: 2649 | E137: 2605 | F137: 2617.7 | G137: 2620 | H137: 2621.75 | I137: 5817 | J137: 15275810.3 | K137: 2018-04-04 | L137: 1087 | M137: INE118A01012
A138: BAJFINANCE | B138: EQ | C138: 1840 | D138: 1869.6 | E138: 1836.7 | F138: 1850.2 | G138: 1847 | H138: 1834.25 | I138: 1793441 | J138: 3324467952 | K138: 2018-04-04 | L138: 54366 | M138: INE296A01024
A139: BALAJITELE | B139: EQ | C139: 133.15 | D139: 134.25 | E139: 128 | F139: 128.9 | G139: 128.5 | H139: 132.6 | I139: 41250 | J139: 5421651.35 | K139: 2018-04-04 | L139: 688 | M139: INE794B01026
A140: BALAMINES | B140: EQ | C140: 589.95 | D140: 610 | E140: 586.15 | F140: 589.8 | G140: 588 | H140: 587.5 | I140: 35891 | J140: 21519168.35 | K140: 2018-04-04 | L140: 1566 | M140: INE050E01027
A141: BALKRISHNA | B141: EQ | C141: 81.9 | D141: 83.3 | E141: 80 | F141: 81.15 | G141: 80.3 | H141: 79.35 | I141: 32894 | J141: 2716493.55 | K141: 2018-04-04 | L141: 280 | M141: INE875R01011
A142: BALKRISIND | B142: EQ | C142: 1160.1 | D142: 1167.85 | E142: 1144.05 | F142: 1151.45 | G142: 1156.25 | H142: 1156.55 | I142: 443617 | J142: 512211053.9 | K142: 2018-04-04 | L142: 13915 | M142: INE787D01026
A143: BALLARPUR | B143: EQ | C143: 13.7 | D143: 13.7 | E143: 12.95 | F143: 13.2 | G143: 13.15 | H143: 13.55 | I143: 1044752 | J143: 13892488.15 | K143: 2018-04-04 | L143: 1349 | M143: INE294A01037
A144: BALMLAWRIE | B144: EQ | C144: 222.4 | D144: 224 | E144: 218.1 | F144: 218.75 | G144: 219.5 | H144: 220.95 | I144: 68100 | J144: 15081353.8 | K144: 2018-04-04 | L144: 1600 | M144: INE164A01016
A145: BALPHARMA | B145: EQ | C145: 83.1 | D145: 84 | E145: 80.3 | F145: 81.85 | G145: 82 | H145: 82.05 | I145: 26434 | J145: 2181970.4 | K145: 2018-04-04 | L145: 349 | M145: INE083D01012
A146: BALRAMCHIN | B146: EQ | C146: 78 | D146: 79.7 | E146: 76.65 | F146: 78.75 | G146: 78.85 | H146: 77.55 | I146: 4591733 | J146: 358474795.9 | K146: 2018-04-04 | L146: 17253 | M146: INE119A01028
A147: BANARBEADS | B147: EQ | C147: 63.9 | D147: 63.9 | E147: 60 | F147: 61.25 | G147: 60.65 | H147: 61.95 | I147: 612 | J147: 37920.75 | K147: 2018-04-04 | L147: 24 | M147: INE655B01011
A148: BANARISUG | B148: EQ | C148: 1820 | D148: 1824.9 | E148: 1750 | F148: 1756.2 | G148: 1755 | H148: 1796.15 | I148: 516 | J148: 923741.05 | K148: 2018-04-04 | L148: 72 | M148: INE459A01010
A149: BANCOINDIA | B149: EQ | C149: 225.65 | D149: 226 | E149: 221 | F149: 221.8 | G149: 221.15 | H149: 223.5 | I149: 41588 | J149: 9299827.05 | K149: 2018-04-04 | L149: 1841 | M149: INE213C01025
A150: BANDHANBNK | B150: EQ | C150: 484.6 | D150: 488.8 | E150: 478 | F150: 486.05 | G150: 485.65 | H150: 483.45 | I150: 2459030 | J150: 1189372197 | K150: 2018-04-04 | L150: 68144 | M150: INE545U01014
A151: BANG | B151: EQ | C151: 30.65 | D151: 32.85 | E151: 30.5 | F151: 32.15 | G151: 32.65 | H151: 32.05 | I151: 10256 | J151: 322519.25 | K151: 2018-04-04 | L151: 103 | M151: INE863I01016
A152: BANKBARODA | B152: EQ | C152: 145.85 | D152: 146.95 | E152: 139 | F152: 139.9 | G152: 139.6 | H152: 145.35 | I152: 11729950 | J152: 1678307004 | K152: 2018-04-04 | L152: 44567 | M152: INE028A01039
A153: BANKBEES | B153: EQ | C153: 2481.54 | D153: 2494.88 | E153: 2438 | F153: 2441.45 | G153: 2439.5 | H153: 2481.39 | I153: 6974 | J153: 17275292.45 | K153: 2018-04-04 | L153: 339 | M153: INF732E01078
A154: BANKINDIA | B154: EQ | C154: 108.1 | D154: 109.3 | E154: 103.05 | F154: 103.45 | G154: 103.25 | H154: 107.7 | I154: 8498931 | J154: 901473848.2 | K154: 2018-04-04 | L154: 27117 | M154: INE084A01016
A155: BANSWRAS | B155: EQ | C155: 107 | D155: 108.9 | E155: 100 | F155: 101.35 | G155: 101.5 | H155: 107.15 | I155: 24227 | J155: 2487403.3 | K155: 2018-04-04 | L155: 346 | M155: INE629D01012
A156: BARTRONICS | B156: EQ | C156: 10.3 | D156: 10.7 | E156: 10.3 | F156: 10.4 | G156: 10.45 | H156: 10.2 | I156: 79215 | J156: 827888.9 | K156: 2018-04-04 | L156: 146 | M156: INE855F01034
A157: BASF | B157: EQ | C157: 1991.45 | D157: 2027.8 | E157: 1950.6 | F157: 1963 | G157: 1950.6 | H157: 1992.65 | I157: 9879 | J157: 19706503.1 | K157: 2018-04-04 | L157: 1495 | M157: INE373A01013
A158: BASML | B158: EQ | C158: 253.95 | D158: 253.95 | E158: 237.1 | F158: 241.95 | G158: 247.9 | H158: 245.8 | I158: 993 | J158: 239553.55 | K158: 2018-04-04 | L158: 30 | M158: INE186H01014
A159: BATAINDIA | B159: EQ | C159: 752 | D159: 773.4 | E159: 740 | F159: 744.55 | G159: 744.8 | H159: 749.3 | I159: 1519480 | J159: 1156682300 | K159: 2018-04-04 | L159: 30524 | M159: INE176A01028
A160: BAYERCROP | B160: EQ | C160: 4350.75 | D160: 4431 | E160: 4350.75 | F160: 4401.75 | G160: 4410 | H160: 4365.55 | I160: 4774 | J160: 20998259.05 | K160: 2018-04-04 | L160: 1088 | M160: INE462A01022
A161: BBL | B161: EQ | C161: 1545.95 | D161: 1615.3 | E161: 1535 | F161: 1558.15 | G161: 1574.65 | H161: 1538 | I161: 24445 | J161: 38527501.45 | K161: 2018-04-04 | L161: 2141 | M161: INE464A01028
A162: BBTC | B162: EQ | C162: 1302.75 | D162: 1305 | E162: 1225 | F162: 1234.1 | G162: 1229 | H162: 1292.3 | I162: 275156 | J162: 346794301.1 | K162: 2018-04-04 | L162: 12456 | M162: INE050A01025
A163: BDL | B163: EQ | C163: 392 | D163: 395 | E163: 388.5 | F163: 392.1 | G163: 391.95 | H163: 392.25 | I163: 120048 | J163: 47011505.5 | K163: 2018-04-04 | L163: 4424 | M163: INE171Z01018
A164: BEARDSELL | B164: EQ | C164: 51.05 | D164: 53.8 | E164: 50.65 | F164: 50.7 | G164: 50.75 | H164: 50.95 | I164: 3100 | J164: 162358.15 | K164: 2018-04-04 | L164: 39 | M164: INE520H01022
A165: BEDMUTHA | B165: EQ | C165: 19.2 | D165: 20.45 | E165: 18.1 | F165: 19.1 | G165: 19.5 | H165: 19.45 | I165: 18707 | J165: 361357.35 | K165: 2018-04-04 | L165: 134 | M165: INE844K01012
A166: BEL | B166: EQ | C166: 147.3 | D166: 148.75 | E166: 143 | F166: 143.75 | G166: 143.4 | H166: 146.75 | I166: 3913688 | J166: 571938754 | K166: 2018-04-04 | L166: 35819 | M166: INE263A01024
A167: BEML | B167: EQ | C167: 1128 | D167: 1141 | E167: 1078.15 | F167: 1082.9 | G167: 1080.9 | H167: 1115.05 | I167: 896102 | J167: 998586698.2 | K167: 2018-04-04 | L167: 24392 | M167: INE258A01016
A168: BEPL | B168: EQ | C168: 195 | D168: 197.4 | E168: 185 | F168: 191.7 | G168: 193.4 | H168: 188.05 | I168: 2009075 | J168: 386490488.4 | K168: 2018-04-04 | L168: 17102 | M168: INE922A01025
A169: BERGEPAINT | B169: EQ | C169: 260.45 | D169: 262.8 | E169: 255.2 | F169: 258.6 | G169: 256.85 | H169: 260.25 | I169: 507770 | J169: 132101607.8 | K169: 2018-04-04 | L169: 7679 | M169: INE463A01038
A170: BFINVEST | B170: EQ | C170: 296.45 | D170: 304.4 | E170: 283 | F170: 285.25 | G170: 284 | H170: 294.4 | I170: 180986 | J170: 53436765 | K170: 2018-04-04 | L170: 4326 | M170: INE878K01010
A171: BFUTILITIE | B171: EQ | C171: 410 | D171: 413.5 | E171: 392.25 | F171: 394.85 | G171: 394.5 | H171: 407.45 | I171: 619106 | J171: 251567294.7 | K171: 2018-04-04 | L171: 12798 | M171: INE243D01012
A172: BGRENERGY | B172: EQ | C172: 106.8 | D172: 108.6 | E172: 103.1 | F172: 104.05 | G172: 104.1 | H172: 106 | I172: 70324 | J172: 7466531.95 | K172: 2018-04-04 | L172: 1038 | M172: INE661I01014
A173: BHAGERIA | B173: EQ | C173: 300 | D173: 300 | E173: 286.05 | F173: 289.75 | G173: 288 | H173: 294.15 | I173: 13471 | J173: 3971492.3 | K173: 2018-04-04 | L173: 377 | M173: INE354C01027
A174: BHAGYANGR | B174: EQ | C174: 46.65 | D174: 47.75 | E174: 44.2 | F174: 44.4 | G174: 44.3 | H174: 46.15 | I174: 121409 | J174: 5578758.5 | K174: 2018-04-04 | L174: 960 | M174: INE458B01036
A175: BHAGYAPROP | B175: EQ | C175: 19.95 | D175: 19.95 | E175: 18.4 | F175: 18.5 | G175: 18.5 | H175: 18.5 | I175: 2432 | J175: 45132.8 | K175: 2018-04-04 | L175: 22 | M175: INE363W01018
A176: BHANDARI | B176: EQ | C176: 2.9 | D176: 3.05 | E176: 2.9 | F176: 3 | G176: 3 | H176: 2.95 | I176: 144955 | J176: 433253.45 | K176: 2018-04-04 | L176: 105 | M176: INE474E01029
A177: BHARATFIN | B177: EQ | C177: 1120 | D177: 1125 | E177: 1096.35 | F177: 1101.35 | G177: 1104.7 | H177: 1115.85 | I177: 521334 | J177: 579060955.9 | K177: 2018-04-04 | L177: 14860 | M177: INE180K01011
A178: BHARATFORG | B178: EQ | C178: 728.1 | D178: 734.5 | E178: 707.85 | F178: 716.45 | G178: 714.15 | H178: 717.5 | I178: 3094364 | J178: 2232061440 | K178: 2018-04-04 | L178: 57563 | M178: INE465A01025
A179: BHARATGEAR | B179: EQ | C179: 182.45 | D179: 192 | E179: 182.15 | F179: 185.05 | G179: 184.9 | H179: 181.3 | I179: 77207 | J179: 14506548.1 | K179: 2018-04-04 | L179: 1829 | M179: INE561C01019
A180: BHARATIWIN | B180: EQ | C180: 35.39 | D180: 35.49 | E180: 34.9 | F180: 34.93 | G180: 35.01 | H180: 35.35 | I180: 226724 | J180: 7979318.49 | K180: 2018-04-04 | L180: 1065 | M180: INF109KB15Y7
A181: BHARATRAS | B181: EQ | C181: 4617 | D181: 4699.5 | E181: 4511.4 | F181: 4528.65 | G181: 4512 | H181: 4615.5 | I181: 326 | J181: 1501927 | K181: 2018-04-04 | L181: 155 | M181: INE838B01013
A182: BHARATWIRE | B182: EQ | C182: 117.3 | D182: 118 | E182: 112.5 | F182: 113.1 | G182: 112.85 | H182: 116.65 | I182: 41457 | J182: 4799333.45 | K182: 2018-04-04 | L182: 500 | M182: INE316L01019
A183: BHARTIARTL | B183: EQ | C183: 404 | D183: 404.8 | E183: 392.95 | F183: 395.05 | G183: 394.7 | H183: 402.2 | I183: 3627666 | J183: 1447940373 | K183: 2018-04-04 | L183: 48147 | M183: INE397D01024
A184: BHEL | B184: EQ | C184: 85.65 | D184: 87.6 | E184: 84.7 | F184: 85.15 | G184: 84.9 | H184: 85.7 | I184: 10485067 | J184: 901719559 | K184: 2018-04-04 | L184: 32260 | M184: INE257A01026
A185: BHUSANSTL | B185: EQ | C185: 44.5 | D185: 44.7 | E185: 42.85 | F185: 43.95 | G185: 43.7 | H185: 44.1 | I185: 2773619 | J185: 121866156.3 | K185: 2018-04-04 | L185: 12320 | M185: INE824B01021
A186: BIGBLOC | B186: EQ | C186: 174.45 | D186: 175.9 | E186: 169.5 | F186: 170.45 | G186: 170 | H186: 172.8 | I186: 27486 | J186: 4767864.4 | K186: 2018-04-04 | L186: 657 | M186: INE412U01017
A187: BIL | B187: EQ | C187: 405 | D187: 411.5 | E187: 405 | F187: 410.15 | G187: 411.5 | H187: 403 | I187: 7647 | J187: 3104833.75 | K187: 2018-04-04 | L187: 79 | M187: INE828A01016
A188: BILENERGY | B188: EQ | C188: 0.7 | D188: 0.75 | E188: 0.65 | F188: 0.65 | G188: 0.65 | H188: 0.7 | I188: 911161 | J188: 602217.8 | K188: 2018-04-04 | L188: 366 | M188: INE607L01029
A189: BILPOWER | B189: EQ | C189: 1.55 | D189: 1.55 | E189: 1.55 | F189: 1.55 | G189: 1.55 | H189: 1.6 | I189: 2929 | J189: 4539.95 | K189: 2018-04-04 | L189: 9 | M189: INE952D01018
A190: BINANIIND | B190: EQ | C190: 96.15 | D190: 96.15 | E190: 94 | F190: 96.15 | G190: 96.15 | H190: 91.6 | I190: 90065 | J190: 8649616.4 | K190: 2018-04-04 | L190: 732 | M190: INE071A01013
A191: BINDALAGRO | B191: EQ | C191: 28 | D191: 29.5 | E191: 28 | F191: 28.8 | G191: 28.6 | H191: 27.8 | I191: 206937 | J191: 5969546.75 | K191: 2018-04-04 | L191: 454 | M191: INE143A01010
A192: BIOCON | B192: EQ | C192: 612.4 | D192: 614 | E192: 595.75 | F192: 598.3 | G192: 597 | H192: 608.65 | I192: 1563949 | J192: 945367834.4 | K192: 2018-04-04 | L192: 28122 | M192: INE376G01013
A193: BIRLACABLE | B193: EQ | C193: 65 | D193: 68.3 | E193: 65 | F193: 67.3 | G193: 67.7 | H193: 65.05 | I193: 76732 | J193: 5172035.95 | K193: 2018-04-04 | L193: 641 | M193: INE800A01015
A194: BIRLACORPN | B194: EQ | C194: 766 | D194: 791 | E194: 757 | F194: 767.05 | G194: 769 | H194: 756.5 | I194: 101412 | J194: 78586206.4 | K194: 2018-04-04 | L194: 4893 | M194: INE340A01012
A195: BIRLAMONEY | B195: EQ | C195: 78.8 | D195: 87.2 | E195: 78 | F195: 86.65 | G195: 87.2 | H195: 72.7 | I195: 5308147 | J195: 446314638.8 | K195: 2018-04-04 | L195: 37156 | M195: INE865C01022
A196: BKMINDST | B196: EQ | C196: 31.25 | D196: 31.3 | E196: 29 | F196: 31.15 | G196: 31 | H196: 30.6 | I196: 15858 | J196: 489643.7 | K196: 2018-04-04 | L196: 89 | M196: INE831Q01016
A197: BLISSGVS | B197: EQ | C197: 200.5 | D197: 202.9 | E197: 198.1 | F197: 200.95 | G197: 201.7 | H197: 199.5 | I197: 261210 | J197: 52496973.8 | K197: 2018-04-04 | L197: 4333 | M197: INE416D01022
A198: BLKASHYAP | B198: EQ | C198: 45.1 | D198: 46 | E198: 43.3 | F198: 44.05 | G198: 44.05 | H198: 45.3 | I198: 294480 | J198: 13155945.7 | K198: 2018-04-04 | L198: 1472 | M198: INE350H01032
A199: BLS | B199: EQ | C199: 137.8 | D199: 143.4 | E199: 132 | F199: 135.2 | G199: 136.3 | H199: 136 | I199: 881820 | J199: 122311654.2 | K199: 2018-04-04 | L199: 7911 | M199: INE153T01027
A200: BLUEBLENDS | B200: EQ | C200: 19.55 | D200: 19.55 | E200: 18.7 | F200: 18.8 | G200: 18.7 | H200: 19.4 | I200: 8154 | J200: 155167.85 | K200: 2018-04-04 | L200: 46 | M200: INE113O01014
... 1326 more rows
